Service Delivery Area(T),Service Delivery Team(T),ExpenditureGroup(T),Account(T),Supplier Name(T),Trans Date,Amount,,
Adult Social Care,ASC Directorate,Employees,Staff Training,THE OPEN UNIVERSITY,31/03/2021,7308,,
Adult Social Care,ASC Directorate,Supplies & Services,Other Grants (Expenses),Accomplish Group Ltd ,31/03/2021,1919.45,,
Adult Social Care,ASC Directorate,Supplies & Services,Other Grants (Expenses),Accomplish Group Ltd ,31/03/2021,1775.21,,
Adult Social Care,ASC Directorate,Supplies & Services,Other Grants (Expenses),ACCORD HOUSING ASSOCIATION LTD ,02/03/2021,4200,,
Adult Social Care,ASC Directorate,Supplies & Services,Other Grants (Expenses),ACCORD HOUSING ASSOCIATION LTD ,02/03/2021,4200,,
Adult Social Care,ASC Directorate,Supplies & Services,Other Grants (Expenses),ACCORD HOUSING ASSOCIATION LTD ,02/03/2021,4200,,
Adult Social Care,ASC Directorate,Supplies & Services,Other Grants (Expenses),ACCORD HOUSING ASSOCIATION LTD ,31/03/2021,1919.45,,
Adult Social Care,ASC Directorate,Supplies & Services,Other Grants (Expenses),ACCORD HOUSING ASSOCIATION LTD ,31/03/2021,1919.45,,
Adult Social Care,ASC Directorate,Supplies & Services,Other Grants (Expenses),ACCORD HOUSING ASSOCIATION LTD ,31/03/2021,1919.45,,
Adult Social Care,ASC Directorate,Supplies & Services,Other Grants (Expenses),ACCORD HOUSING ASSOCIATION LTD ,31/03/2021,1919.45,,
Adult Social Care,ASC Directorate,Supplies & Services,Other Grants (Expenses),ACCORD HOUSING ASSOCIATION LTD ,25/03/2021,1800,,
Adult Social Care,ASC Directorate,Supplies & Services,Other Grants (Expenses),ACCORD HOUSING ASSOCIATION LTD ,25/03/2021,1800,,
Adult Social Care,ASC Directorate,Supplies & Services,Other Grants (Expenses),ACCORD HOUSING ASSOCIATION LTD ,25/03/2021,1800,,
Adult Social Care,ASC Directorate,Supplies & Services,Other Grants (Expenses),A Care Homes Telford Limited,02/03/2021,4200,,
Adult Social Care,ASC Directorate,Supplies & Services,Other Grants (Expenses),A Care Homes Telford Limited,31/03/2021,1919.45,,
Adult Social Care,ASC Directorate,Supplies & Services,Other Grants (Expenses),A Care Homes Telford Limited,25/03/2021,1800,,
Adult Social Care,ASC Directorate,Supplies & Services,Other Grants (Expenses),REDACTED PERSONAL INFORMATION,30/03/2021,500,,
Adult Social Care,ASC Directorate,Supplies & Services,Other Grants (Expenses),Beaumaris Healthcare Ltd,02/03/2021,3850,,
Adult Social Care,ASC Directorate,Supplies & Services,Other Grants (Expenses),Beaumaris Healthcare Ltd,25/03/2021,1650,,
Adult Social Care,ASC Directorate,Supplies & Services,Other Grants (Expenses),BETHPHAGE,02/03/2021,4200,,
Adult Social Care,ASC Directorate,Supplies & Services,Other Grants (Expenses),BETHPHAGE,25/03/2021,1800,,
Adult Social Care,ASC Directorate,Supplies & Services,Other Grants (Expenses),Brockton Care LTD,02/03/2021,4200,,
Adult Social Care,ASC Directorate,Supplies & Services,Other Grants (Expenses),Brockton Care LTD,25/03/2021,1800,,
Adult Social Care,ASC Directorate,Supplies & Services,Software Purchases,Care Friends Limited,31/03/2021,30455,,
Adult Social Care,ASC Directorate,Supplies & Services,Other Grants (Expenses),Caretech LTD,02/03/2021,4200,,
Adult Social Care,ASC Directorate,Supplies & Services,Other Grants (Expenses),Caretech LTD,31/03/2021,1919.45,,
Adult Social Care,ASC Directorate,Supplies & Services,Other Grants (Expenses),Caretech LTD,31/03/2021,1919.45,,
Adult Social Care,ASC Directorate,Supplies & Services,Other Grants (Expenses),Caretech LTD,25/03/2021,1800,,
Adult Social Care,ASC Directorate,Supplies & Services,Other Grants (Expenses),COMPLETE CARE HOLDINGS LTD,02/03/2021,4200,,
Adult Social Care,ASC Directorate,Supplies & Services,Other Grants (Expenses),COMPLETE CARE HOLDINGS LTD,25/03/2021,1800,,
Adult Social Care,ASC Directorate,Supplies & Services,Other Grants (Expenses),COVERAGE CARE SERVICES LTD,02/03/2021,4200,,
Adult Social Care,ASC Directorate,Supplies & Services,Other Grants (Expenses),COVERAGE CARE SERVICES LTD,02/03/2021,4200,,
Adult Social Care,ASC Directorate,Supplies & Services,Other Grants (Expenses),COVERAGE CARE SERVICES LTD,02/03/2021,4200,,
Adult Social Care,ASC Directorate,Supplies & Services,Other Grants (Expenses),COVERAGE CARE SERVICES LTD,31/03/2021,1919.45,,
Adult Social Care,ASC Directorate,Supplies & Services,Other Grants (Expenses),COVERAGE CARE SERVICES LTD,31/03/2021,1919.45,,
Adult Social Care,ASC Directorate,Supplies & Services,Other Grants (Expenses),COVERAGE CARE SERVICES LTD,25/03/2021,1800,,
Adult Social Care,ASC Directorate,Supplies & Services,Other Grants (Expenses),COVERAGE CARE SERVICES LTD,25/03/2021,1800,,
Adult Social Care,ASC Directorate,Supplies & Services,Other Grants (Expenses),COVERAGE CARE SERVICES LTD,02/03/2021,4200,,
Adult Social Care,ASC Directorate,Supplies & Services,Other Grants (Expenses),COVERAGE CARE SERVICES LTD,25/03/2021,1800,,
Adult Social Care,ASC Directorate,Supplies & Services,Other Grants (Expenses),CREATIVE SUPPORT LTD,02/03/2021,4200,,
Adult Social Care,ASC Directorate,Supplies & Services,Other Grants (Expenses),CREATIVE SUPPORT LTD,02/03/2021,4200,,
Adult Social Care,ASC Directorate,Supplies & Services,Other Grants (Expenses),CREATIVE SUPPORT LTD,31/03/2021,1919.45,,
Adult Social Care,ASC Directorate,Supplies & Services,Other Grants (Expenses),CREATIVE SUPPORT LTD,25/03/2021,1800,,
Adult Social Care,ASC Directorate,Supplies & Services,Other Grants (Expenses),CREATIVE SUPPORT LTD,25/03/2021,1800,,
Adult Social Care,ASC Directorate,Supplies & Services,Other Grants (Expenses),Daily Care 4 U,02/03/2021,3003,,
Adult Social Care,ASC Directorate,Supplies & Services,Other Grants (Expenses),Daily Care 4 U,25/03/2021,1287,,
Adult Social Care,ASC Directorate,Supplies & Services,Other Grants (Expenses),Direct Health Homecare Limited,02/03/2021,4200,,
Adult Social Care,ASC Directorate,Supplies & Services,Other Grants (Expenses),Direct Health Homecare Limited,25/03/2021,1800,,
Adult Social Care,ASC Directorate,Supplies & Services,Other Grants (Expenses),Empowering U Care Ltd,02/03/2021,4200,,
Adult Social Care,ASC Directorate,Supplies & Services,Other Grants (Expenses),Empowering U Care Ltd,25/03/2021,1800,,
Adult Social Care,ASC Directorate,Supplies & Services,Other Grants (Expenses),Epic Care Services Ltd,02/03/2021,1365,,
Adult Social Care,ASC Directorate,Supplies & Services,Other Grants (Expenses),Epic Care Services Ltd,25/03/2021,585,,
Adult Social Care,ASC Directorate,Supplies & Services,Other Grants (Expenses),REDACTED PERSONAL INFORMATION,30/03/2021,500,,
Adult Social Care,ASC Directorate,Supplies & Services,Other Grants (Expenses),Hands On Care Homecare Services Ltd,02/03/2021,3640,,
Adult Social Care,ASC Directorate,Supplies & Services,Other Grants (Expenses),Hands On Care Homecare Services Ltd,25/03/2021,1560,,
Adult Social Care,ASC Directorate,Supplies & Services,Other Grants (Expenses),Helping Hands Domiciliary Care Services,02/03/2021,4200,,
Adult Social Care,ASC Directorate,Supplies & Services,Other Grants (Expenses),Helping Hands Domiciliary Care Services,25/03/2021,1800,,
Adult Social Care,ASC Directorate,Supplies & Services,Other Grants (Expenses),Home Instead,02/03/2021,4200,,
Adult Social Care,ASC Directorate,Supplies & Services,Other Grants (Expenses),Home Instead,25/03/2021,1800,,
Adult Social Care,ASC Directorate,Supplies & Services,Other Grants (Expenses),Interserve Healthcare Group - Trading as Advantage Healthcare,02/03/2021,4200,,
Adult Social Care,ASC Directorate,Supplies & Services,Other Grants (Expenses),Interserve Healthcare Group - Trading as Advantage Healthcare,25/03/2021,1800,,
Adult Social Care,ASC Directorate,Supplies & Services,Other Grants (Expenses),Komplex Care Limited,02/03/2021,4200,,
Adult Social Care,ASC Directorate,Supplies & Services,Other Grants (Expenses),Komplex Care Limited,25/03/2021,1800,,
Adult Social Care,ASC Directorate,Supplies & Services,Other Grants (Expenses),REDACTED PERSONAL INFORMATION,30/03/2021,500,,
Adult Social Care,ASC Directorate,Supplies & Services,Other Grants (Expenses),M T Support Ltd,02/03/2021,4200,,
Adult Social Care,ASC Directorate,Supplies & Services,Other Grants (Expenses),M T Support Ltd,25/03/2021,1800,,
Adult Social Care,ASC Directorate,Supplies & Services,Other Grants (Expenses),REDACTED PERSONAL INFORMATION,30/03/2021,500,,
Adult Social Care,ASC Directorate,Supplies & Services,Other Grants (Expenses),REDACTED PERSONAL INFORMATION,30/03/2021,500,,
Adult Social Care,ASC Directorate,Supplies & Services,Other Grants (Expenses),Nutrix Curae Care Ltd,02/03/2021,3010,,
Adult Social Care,ASC Directorate,Supplies & Services,Other Grants (Expenses),Nutrix Curae Care Ltd,25/03/2021,1290,,
Adult Social Care,ASC Directorate,Supplies & Services,Other Grants (Expenses),O House - Sanctuary Housing,02/03/2021,3360,,
Adult Social Care,ASC Directorate,Supplies & Services,Other Grants (Expenses),O House - Sanctuary Housing,25/03/2021,1440,,
Adult Social Care,ASC Directorate,Supplies & Services,Other Grants (Expenses),PARADIGM HEALTH & SOCIAL CARE LTD,02/03/2021,3640,,
Adult Social Care,ASC Directorate,Supplies & Services,Other Grants (Expenses),PARADIGM HEALTH & SOCIAL CARE LTD,25/03/2021,1560,,
Adult Social Care,ASC Directorate,Supplies & Services,Other Grants (Expenses),PEACE OF MIND HOMECARE LIMITED,02/03/2021,3143.42,,
Adult Social Care,ASC Directorate,Supplies & Services,Other Grants (Expenses),PEACE OF MIND HOMECARE LIMITED,25/03/2021,1347.18,,
Adult Social Care,ASC Directorate,Supplies & Services,Other Grants (Expenses),PHOENIX CARE,02/03/2021,3885,,
Adult Social Care,ASC Directorate,Supplies & Services,Other Grants (Expenses),PHOENIX CARE,25/03/2021,1665,,
Adult Social Care,ASC Directorate,Supplies & Services,Other Grants (Expenses),R Manor Extra Care (Sanctuary),02/03/2021,2268,,
Adult Social Care,ASC Directorate,Supplies & Services,Other Grants (Expenses),R Manor Extra Care (Sanctuary),25/03/2021,972,,
Adult Social Care,ASC Directorate,Supplies & Services,Other Grants (Expenses),Rotherwood Healthcare (Roden Hall) Ltd,02/03/2021,4200,,
Adult Social Care,ASC Directorate,Supplies & Services,Other Grants (Expenses),Rotherwood Healthcare (Roden Hall) Ltd,31/03/2021,1919.45,,
Adult Social Care,ASC Directorate,Supplies & Services,Other Grants (Expenses),Rotherwood Healthcare (Roden Hall) Ltd,25/03/2021,1800,,
Adult Social Care,ASC Directorate,Supplies & Services,Other Grants (Expenses),REDACTED PERSONAL INFORMATION,30/03/2021,500,,
Adult Social Care,ASC Directorate,Supplies & Services,Other Grants (Expenses),Sanctuary Home Care ,02/03/2021,2772,,
Adult Social Care,ASC Directorate,Supplies & Services,Other Grants (Expenses),Sanctuary Home Care ,25/03/2021,1188,,
Adult Social Care,ASC Directorate,Supplies & Services,Other Grants (Expenses),SANCTUARY HOUSING ASSOCIATION,02/03/2021,1008,,
Adult Social Care,ASC Directorate,Supplies & Services,Other Grants (Expenses),SANCTUARY HOUSING ASSOCIATION,25/03/2021,432,,
Adult Social Care,ASC Directorate,Supplies & Services,Other Grants (Expenses),SUPREME HOME CARE,02/03/2021,4200,,
Adult Social Care,ASC Directorate,Supplies & Services,Other Grants (Expenses),SUPREME HOME CARE,25/03/2021,1800,,
Adult Social Care,ASC Directorate,Supplies & Services,Other Grants (Expenses),Sutton Hill Community Trust,31/03/2021,4891.94,,
Adult Social Care,ASC Directorate,Supplies & Services,Other Grants (Expenses),S Care & Community Ltd (Darwin Community Support),02/03/2021,4200,,
Adult Social Care,ASC Directorate,Supplies & Services,Other Grants (Expenses),S Care & Community Ltd (Darwin Community Support),25/03/2021,1800,,
Adult Social Care,ASC Directorate,Supplies & Services,Other Grants (Expenses),THE CARE BUREAU,02/03/2021,4200,,
Adult Social Care,ASC Directorate,Supplies & Services,Other Grants (Expenses),THE CARE BUREAU,25/03/2021,1800,,
Adult Social Care,ASC Directorate,Supplies & Services,Other Grants (Expenses),THE QUIL CARE GROUP,02/03/2021,4200,,
Adult Social Care,ASC Directorate,Supplies & Services,Other Grants (Expenses),THE QUIL CARE GROUP,25/03/2021,1800,,
Adult Social Care,ASC Directorate,Supplies & Services,Other Grants (Expenses),WE ARE THE CARE COMPANY LTD,02/03/2021,4200,,
Adult Social Care,ASC Directorate,Supplies & Services,Other Grants (Expenses),WE ARE THE CARE COMPANY LTD,25/03/2021,1800,,
Adult Social Care,ASC Directorate,Supplies & Services,Other Grants (Expenses),W Support Services,02/03/2021,4200,,
Adult Social Care,ASC Directorate,Supplies & Services,Other Grants (Expenses),W Support Services,25/03/2021,1800,,
Adult Social Care,ASC Prevention & Enablement,Supplies & Services,Aids & Appliances,Alert-it Care Alarms,25/03/2021,231,,
Adult Social Care,ASC Prevention & Enablement,Supplies & Services,Aids & Appliances,Easylink,25/03/2021,320.4,,
Adult Social Care,ASC Prevention & Enablement,Supplies & Services,Aids & Appliances,Possum Ltd,04/03/2021,160,,
Adult Social Care,ASC Prevention & Enablement,Supplies & Services,Other Services,VISS LTD,31/03/2021,115,,
Adult Social Care,ASC Prevention & Enablement,Supplies & Services,Aids & Appliances,WREKIN HOUSING TRUST LTD,05/03/2021,125,,
Adult Social Care,ASC Prevention & Enablement,Supplies & Services,Aids & Appliances,WREKIN HOUSING TRUST LTD,05/03/2021,125,,
Adult Social Care,ASC Prevention & Enablement,Supplies & Services,Aids & Appliances,WREKIN HOUSING TRUST LTD,02/03/2021,250,,
Adult Social Care,ASC Prevention & Enablement,Supplies & Services,Aids & Appliances,Ableworld (UK) Ltd,16/03/2021,1874,,
Adult Social Care,ASC Prevention & Enablement,Supplies & Services,Aids & Appliances,ARJO UK LTD,19/03/2021,226.14,,
Adult Social Care,ASC Prevention & Enablement,Supplies & Services,Aids & Appliances,BERWICK CARE EQUIPMENT LTD,17/03/2021,595,,
Adult Social Care,ASC Prevention & Enablement,Supplies & Services,Aids & Appliances,BERWICK CARE EQUIPMENT LTD,17/03/2021,-599,,
Adult Social Care,ASC Prevention & Enablement,Supplies & Services,Aids & Appliances,BERWICK CARE EQUIPMENT LTD,10/03/2021,599,,
Adult Social Care,ASC Prevention & Enablement,Supplies & Services,Aids & Appliances,Chanter Biomed Ltd,15/03/2021,478.68,,
Adult Social Care,ASC Prevention & Enablement,Supplies & Services,Aids & Appliances,Chanter Biomed Ltd,23/03/2021,597.6,,
Adult Social Care,ASC Prevention & Enablement,Supplies & Services,Equipment - Repair,Closomat Limited,26/03/2021,190,,
Adult Social Care,ASC Prevention & Enablement,Supplies & Services,Equipment - Repair,Closomat Limited,17/03/2021,185,,
Adult Social Care,ASC Prevention & Enablement,Supplies & Services,Aids & Appliances,Direct Healthcare Group Limited,25/03/2021,175,,
Adult Social Care,ASC Prevention & Enablement,Supplies & Services,Aids & Appliances,Direct Healthcare Group Limited,26/03/2021,188,,
Adult Social Care,ASC Prevention & Enablement,Supplies & Services,Aids & Appliances,Invacare,16/03/2021,288,,
Adult Social Care,ASC Prevention & Enablement,Supplies & Services,Aids & Appliances,MANGAR INTERNATIONAL LTD,17/03/2021,4346.6,,
Adult Social Care,ASC Prevention & Enablement,Supplies & Services,Aids & Appliances,Mobility Smart Limited,29/03/2021,214.95,,
Adult Social Care,ASC Prevention & Enablement,Supplies & Services,Aids & Appliances,NRS Healthcare ,09/03/2021,295.12,,
Adult Social Care,ASC Prevention & Enablement,Supplies & Services,Aids & Appliances,NRS Healthcare ,09/03/2021,259.09,,
Adult Social Care,ASC Prevention & Enablement,Supplies & Services,Aids & Appliances,OSPREY HEALTHCARE LTD,25/03/2021,205,,
Adult Social Care,ASC Prevention & Enablement,Supplies & Services,Aids & Appliances,OSPREY HEALTHCARE LTD,09/03/2021,198,,
Adult Social Care,ASC Prevention & Enablement,Supplies & Services,Aids & Appliances,OSPREY HEALTHCARE LTD,04/03/2021,244,,
Adult Social Care,ASC Prevention & Enablement,Supplies & Services,Aids & Appliances,OSPREY HEALTHCARE LTD,09/03/2021,981.6,,
Adult Social Care,ASC Prevention & Enablement,Supplies & Services,Aids & Appliances,OSPREY HEALTHCARE LTD,09/03/2021,113,,
Adult Social Care,ASC Prevention & Enablement,Supplies & Services,Aids & Appliances,OSPREY HEALTHCARE LTD,17/03/2021,1267.6,,
Adult Social Care,ASC Prevention & Enablement,Supplies & Services,Aids & Appliances,OSPREY HEALTHCARE LTD,17/03/2021,170,,
Adult Social Care,ASC Prevention & Enablement,Supplies & Services,Aids & Appliances,OSPREY HEALTHCARE LTD,09/03/2021,689.2,,
Adult Social Care,ASC Prevention & Enablement,Supplies & Services,Equipment - Repair,WESSEX LIFT CO. LTD,09/03/2021,7297,,
Adult Social Care,ASC Prevention & Enablement,Employees,Employee Costs Recharged,SHROPSHIRE COMMUNITY HEALTH NHS TRUST,02/03/2021,19662,,
Adult Social Care,ASC Prevention & Enablement,Employees,Employee Costs Recharged,SHROPSHIRE COMMUNITY HEALTH NHS TRUST,02/03/2021,19662,,
Adult Social Care,ASC Prevention & Enablement,Employees,Employee Costs Recharged,SHROPSHIRE COMMUNITY HEALTH NHS TRUST,02/03/2021,19662,,
Adult Social Care,ASC Prevention & Enablement,Employees,Employee Costs Recharged,SHROPSHIRE COMMUNITY HEALTH NHS TRUST,30/03/2021,19662,,
Adult Social Care,ASC Prevention & Enablement,Employees,Employee Costs Recharged,SHROPSHIRE COMMUNITY HEALTH NHS TRUST,30/03/2021,19662,,
Adult Social Care,ASC Prevention & Enablement,Supplies & Services,Equipment - Purchase,Lawley Pharmacy,30/03/2021,120,,
Adult Social Care,ASC Prevention & Enablement,Supplies & Services,Equipment - Purchase,Lawley Pharmacy,30/03/2021,140,,
Adult Social Care,ASC Prevention & Enablement,Supplies & Services,Aids & Appliances,1st Call Mobility,30/03/2021,980,,
Adult Social Care,ASC Prevention & Enablement,Supplies & Services,Aids & Appliances,1st Call Mobility,30/03/2021,1696,,
Adult Social Care,ASC Prevention & Enablement,Supplies & Services,Aids & Appliances,1st Call Mobility,30/03/2021,520,,
Adult Social Care,ASC Prevention & Enablement,Supplies & Services,Aids & Appliances,1st Call Mobility,30/03/2021,1187,,
Adult Social Care,ASC Prevention & Enablement,Supplies & Services,Aids & Appliances,1st Call Mobility,30/03/2021,620,,
Adult Social Care,ASC Prevention & Enablement,Supplies & Services,Aids & Appliances,1st Call Mobility,30/03/2021,728,,
Adult Social Care,ASC Prevention & Enablement,Supplies & Services,Aids & Appliances,1st Call Mobility,30/03/2021,560,,
Adult Social Care,ASC Prevention & Enablement,Supplies & Services,Aids & Appliances,1st Call Mobility,30/03/2021,1085,,
Adult Social Care,ASC Prevention & Enablement,Supplies & Services,Aids & Appliances,1st Call Mobility,30/03/2021,806,,
Adult Social Care,ASC Prevention & Enablement,Third Party Payments,Homecare Expenditure,Brockton Care LTD,02/03/2021,14720,,
Adult Social Care,ASC Prevention & Enablement,Third Party Payments,Homecare Expenditure,Brockton Care LTD,30/03/2021,12880,,
Adult Social Care,ASC Prevention & Enablement,Third Party Payments,Nursing Expenditure,NHS Telford and Wrekin CCG ,02/03/2021,7440,,
Adult Social Care,ASC Prevention & Enablement,Third Party Payments,Nursing Expenditure,NHS Telford and Wrekin CCG ,30/03/2021,6720,,
Adult Social Care,ASC Prevention & Enablement,Third Party Payments,Homecare Expenditure,Serenity Always Healthcare,24/03/2021,889.14,,
Adult Social Care,ASC Prevention & Enablement,Third Party Payments,Homecare Expenditure,Serenity Always Healthcare,24/03/2021,674.52,,
Adult Social Care,ASC Prevention & Enablement,Third Party Payments,Homecare Expenditure,Serenity Always Healthcare,24/03/2021,1103.76,,
Adult Social Care,ASC Prevention & Enablement,Third Party Payments,Homecare Expenditure,Serenity Always Healthcare,24/03/2021,157.68,,
Adult Social Care,ASC Prevention & Enablement,Third Party Payments,Homecare Expenditure,Serenity Always Healthcare,24/03/2021,271.56,,
Adult Social Care,ASC Prevention & Enablement,Third Party Payments,Homecare Expenditure,Serenity Always Healthcare,24/03/2021,747.74,,
Adult Social Care,ASC Prevention & Enablement,Third Party Payments,Homecare Expenditure,Serenity Always Healthcare,24/03/2021,157.68,,
Adult Social Care,ASC Prevention & Enablement,Third Party Payments,Homecare Expenditure,Serenity Always Healthcare,24/03/2021,275.94,,
Adult Social Care,ASC Prevention & Enablement,Third Party Payments,Homecare Expenditure,Serenity Always Healthcare,24/03/2021,175.52,,
Adult Social Care,ASC Prevention & Enablement,Third Party Payments,Homecare Expenditure,Serenity Always Healthcare,24/03/2021,427.84,,
Adult Social Care,ASC Prevention & Enablement,Third Party Payments,Homecare Expenditure,Serenity Always Healthcare,24/03/2021,735.84,,
Adult Social Care,ASC Prevention & Enablement,Third Party Payments,Homecare Expenditure,Serenity Always Healthcare,24/03/2021,648.24,,
Adult Social Care,ASC Prevention & Enablement,Transport-Related Expenditure,Taxi Costs,Cartello Ambulance,30/03/2021,147,,
Adult Social Care,ASC Prevention & Enablement,Transport-Related Expenditure,Taxi Costs,Cartello Ambulance,30/03/2021,147,,
Adult Social Care,ASC Prevention & Enablement,Supplies & Services,Aids & Appliances,SHROPSHIRE COMMUNITY HEALTH NHS TRUST,17/03/2021,6301.66,,
Adult Social Care,Community Social Work & Adult Safeguarding,Transport-Related Expenditure,Taxi Costs,Cartello Ambulance,03/03/2021,220.5,,
Adult Social Care,Community Social Work & Adult Safeguarding,Transport-Related Expenditure,Taxi Costs,Cartello Ambulance,03/03/2021,147,,
Adult Social Care,Community Social Work & Adult Safeguarding,Transport-Related Expenditure,Taxi Costs,Cartello Ambulance,03/03/2021,147,,
Adult Social Care,Community Social Work & Adult Safeguarding,Transport-Related Expenditure,Taxi Costs,Cartello Ambulance,03/03/2021,220.5,,
Adult Social Care,Community Social Work & Adult Safeguarding,Transport-Related Expenditure,Taxi Costs,Cartello Ambulance,03/03/2021,147,,
Adult Social Care,Community Social Work & Adult Safeguarding,Transport-Related Expenditure,Taxi Costs,Cartello Ambulance,03/03/2021,147,,
Adult Social Care,Community Social Work & Adult Safeguarding,Transport-Related Expenditure,Taxi Costs,Cartello Ambulance,03/03/2021,147,,
Adult Social Care,Community Social Work & Adult Safeguarding,Transport-Related Expenditure,Taxi Costs,Cartello Ambulance,03/03/2021,147,,
Adult Social Care,Community Social Work & Adult Safeguarding,Transport-Related Expenditure,Taxi Costs,Cartello Ambulance,03/03/2021,147,,
Adult Social Care,Community Social Work & Adult Safeguarding,Transport-Related Expenditure,Taxi Costs,Cartello Ambulance,03/03/2021,147,,
Adult Social Care,Community Social Work & Adult Safeguarding,Transport-Related Expenditure,Taxi Costs,Cartello Ambulance,03/03/2021,147,,
Adult Social Care,Community Social Work & Adult Safeguarding,Transport-Related Expenditure,Taxi Costs,Cartello Ambulance,03/03/2021,147,,
Adult Social Care,Community Social Work & Adult Safeguarding,Transport-Related Expenditure,Taxi Costs,Cartello Ambulance,03/03/2021,196,,
Adult Social Care,Community Social Work & Adult Safeguarding,Transport-Related Expenditure,Taxi Costs,Cartello Ambulance,03/03/2021,147,,
Adult Social Care,Community Social Work & Adult Safeguarding,Transport-Related Expenditure,Taxi Costs,Cartello Ambulance,03/03/2021,147,,
Adult Social Care,Community Social Work & Adult Safeguarding,Transport-Related Expenditure,Taxi Costs,Cartello Ambulance,03/03/2021,147,,
Adult Social Care,Community Social Work & Adult Safeguarding,Transport-Related Expenditure,Taxi Costs,Cartello Ambulance,03/03/2021,171.5,,
Adult Social Care,Community Social Work & Adult Safeguarding,Transport-Related Expenditure,Taxi Costs,Cartello Ambulance,03/03/2021,147,,
Adult Social Care,Community Social Work & Adult Safeguarding,Transport-Related Expenditure,Taxi Costs,Cartello Ambulance,03/03/2021,147,,
Adult Social Care,Community Social Work & Adult Safeguarding,Transport-Related Expenditure,Taxi Costs,Cartello Ambulance,03/03/2021,147,,
Adult Social Care,Community Social Work & Adult Safeguarding,Transport-Related Expenditure,Taxi Costs,Cartello Ambulance,03/03/2021,147,,
Adult Social Care,Community Social Work & Adult Safeguarding,Transport-Related Expenditure,Taxi Costs,Cartello Ambulance,03/03/2021,147,,
Adult Social Care,Community Social Work & Adult Safeguarding,Transport-Related Expenditure,Taxi Costs,Cartello Ambulance,03/03/2021,171.5,,
Adult Social Care,Community Social Work & Adult Safeguarding,Premises-Related Expenditure,General Rents,BOURNVILLE VILLAGE TRUST,16/03/2021,12764.88,,
Adult Social Care,Community Social Work & Adult Safeguarding,Third Party Payments,Homecare Expenditure,Medgen LTD,19/03/2021,26000.57,,
Adult Social Care,Community Social Work & Adult Safeguarding,Third Party Payments,Homecare Expenditure,Medgen LTD,19/03/2021,16355.04,,
Adult Social Care,Community Social Work & Adult Safeguarding,Third Party Payments,Homecare Expenditure,NHS Telford and Wrekin CCG ,23/03/2021,19602.74,,
Adult Social Care,Community Social Work & Adult Safeguarding,Third Party Payments,Homecare Expenditure,NHS Telford and Wrekin CCG ,23/03/2021,11628.08,,
Adult Social Care,Community Social Work & Adult Safeguarding,Premises-Related Expenditure,Bed & Breakfast Charges,OPH Telford Ltd,25/03/2021,1833.33,,
Adult Social Care,Community Social Work & Adult Safeguarding,Third Party Payments,Homecare Expenditure,Medgen LTD,19/03/2021,2907.56,,
Adult Social Care,Community Social Work & Adult Safeguarding,Supplies & Services,Legal Expenses,Kings Chambers,03/03/2021,1293.75,,
Adult Social Care,Community Social Work & Adult Safeguarding,Supplies & Services,Legal Expenses,Kings Chambers,03/03/2021,1425,,
Adult Social Care,Community Social Work & Adult Safeguarding,Supplies & Services,Legal Expenses,Kings Chambers,03/03/2021,450,,
Adult Social Care,Community Social Work (Principal Social Worker),Premises-Related Expenditure,Bed & Breakfast Charges,Mercure Telford Centre Hotel,09/03/2021,371.29,,
Adult Social Care,Community Social Work (Principal Social Worker),Premises-Related Expenditure,Bed & Breakfast Charges,Mercure Telford Centre Hotel,09/03/2021,1909.52,,
Adult Social Care,Community Social Work (Principal Social Worker),Third Party Payments,Homecare Expenditure,Medgen LTD,19/03/2021,21806.72,,
Adult Social Care,Community Social Work (Principal Social Worker),Employees,Staff Training,SHROPSHIRE COUNCIL ,09/03/2021,417,,
Adult Social Care,Community Social Work (Principal Social Worker),Supplies & Services,Translation Services,VISS LTD,19/03/2021,115,,
Adult Social Care,Community Social Work (Principal Social Worker),Supplies & Services,Translation Services,VISS LTD,19/03/2021,115,,
Adult Social Care,Community Social Work (Principal Social Worker),Transfer Payments,Non Traditional Care Packages,BOURNVILLE VILLAGE TRUST,09/03/2021,3009.03,,
Adult Social Care,My Options,Premises-Related Expenditure,Clean Mats & Toilet Requisites,PHS GROUP,22/03/2021,112.27,,
Adult Social Care,My Options,Premises-Related Expenditure,Clean Mats & Toilet Requisites,PHS GROUP,24/03/2021,262.74,,
Adult Social Care,My Options,Supplies & Services,Laundry & Towel Hire,PHS GROUP,22/03/2021,144.95,,
Adult Social Care,My Options,Supplies & Services,Laundry & Towel Hire,PHS GROUP,22/03/2021,144.95,,
Adult Social Care,My Options,Supplies & Services,Laundry & Towel Hire,PHS GROUP,22/03/2021,144.95,,
Adult Social Care,My Options,Premises-Related Expenditure,Clean Mats & Toilet Requisites,BERWICK CARE EQUIPMENT LTD,22/03/2021,367.93,,
Adult Social Care,My Options,Premises-Related Expenditure,Clean Mats & Toilet Requisites,BERWICK CARE EQUIPMENT LTD,22/03/2021,103.32,,
Adult Social Care,My Options,Supplies & Services,Protective Clothing,H Workwear,22/03/2021,211,,
Adult Social Care,My Options,Supplies & Services,Protective Clothing,H Workwear,22/03/2021,1385,,
Adult Social Care,My Options,Supplies & Services,Protective Clothing,H Workwear,25/03/2021,-120,,
Adult Social Care,My Options,Employees,Agency Supply Costs,Safehands Recruitment,25/03/2021,691.6,,
Adult Social Care,My Options,Employees,Agency Supply Costs,Safehands Recruitment,25/03/2021,190,,
Adult Social Care,My Options,Employees,Agency Supply Costs,Safehands Recruitment,18/03/2021,431.92,,
Adult Social Care,My Options,Employees,Agency Supply Costs,Safehands Recruitment,18/03/2021,259.84,,
Adult Social Care,My Options,Employees,Agency Supply Costs,Safehands Recruitment,11/03/2021,292.64,,
Adult Social Care,My Options,Employees,Agency Supply Costs,Safehands Recruitment,09/03/2021,524.4,,
Adult Social Care,My Options,Employees,Agency Supply Costs,Safehands Recruitment,09/03/2021,334.4,,
Adult Social Care,My Options,Employees,Agency Supply Costs,Safehands Recruitment,31/03/2021,798.64,,
Adult Social Care,My Options,Employees,Agency Supply Costs,Safehands Recruitment,31/03/2021,524.4,,
Adult Social Care,My Options,Employees,Agency Supply Costs,Safehands Recruitment,31/03/2021,944.35,,
Adult Social Care,My Options,Supplies & Services,Computer Software (Maint),CARE MONITORING 2000 LTD,18/03/2021,644.4,,
Adult Social Care,My Options,Supplies & Services,Comp Hardware (Purch / Hire),CCS MEDIA LIMITED,30/03/2021,107,,
Adult Social Care,My Options,Supplies & Services,Respite Care,REDACTED PERSONAL INFORMATION,09/03/2021,881.24,,
Adult Social Care,My Options,Supplies & Services,Respite Care,REDACTED PERSONAL INFORMATION,17/03/2021,1124.26,,
Adult Social Care,My Options,Supplies & Services,Respite Care,REDACTED PERSONAL INFORMATION,17/03/2021,1448.6,,
Adult Social Care,My Options,Supplies & Services,Respite Care,REDACTED PERSONAL INFORMATION,09/03/2021,1448.6,,
Adult Social Care,My Options,Supplies & Services,Respite Care,REDACTED PERSONAL INFORMATION,09/03/2021,1448.6,,
Adult Social Care,My Options,Supplies & Services,Adult Flexi / Day Care,REDACTED PERSONAL INFORMATION,29/03/2021,197.48,,
Adult Social Care,My Options,Supplies & Services,Adult Flexi / Day Care,REDACTED PERSONAL INFORMATION,29/03/2021,691.18,,
Adult Social Care,Service Improvement & Efficiency,Capital Expenditure,Payments to Contractor,LIQUIDLOGIC LIMITED,31/03/2021,4160,,
Children's Safeguarding & Family Support,Child Protection & Family Support,Supplies & Services,Aids & Appliances,Jiraffe,31/03/2021,1872,,
Children's Safeguarding & Family Support,Child Protection & Family Support,Supplies & Services,Aids & Appliances,Jiraffe,31/03/2021,1674,,
Children's Safeguarding & Family Support,Child Protection & Family Support,Supplies & Services,Aids & Appliances,M A S Associates,09/03/2021,730,,
Children's Safeguarding & Family Support,Child Protection & Family Support,Supplies & Services,Aids & Appliances,M A S Associates,11/03/2021,350,,
Children's Safeguarding & Family Support,Child Protection & Family Support,Supplies & Services,Aids & Appliances,M A S Associates,31/03/2021,450,,
Children's Safeguarding & Family Support,Child Protection & Family Support,Supplies & Services,Equipment - Purchase,MIDSHIRES MOBILITY GROUP,23/03/2021,111,,
Children's Safeguarding & Family Support,Child Protection & Family Support,Supplies & Services,Equipment - Purchase,NRS Healthcare ,30/03/2021,1863.75,,
Children's Safeguarding & Family Support,Child Protection & Family Support,Supplies & Services,Equipment - Purchase,R82 UK LIMITED,30/03/2021,679.5,,
Children's Safeguarding & Family Support,Child Protection & Family Support,Supplies & Services,Aids & Appliances,S LLP,31/03/2021,2944,,
Children's Safeguarding & Family Support,Child Protection & Family Support,Third Party Payments,Contractor Recharge,In Control Partnerships,05/03/2021,5500,,
Children's Safeguarding & Family Support,Child Protection & Family Support,Supplies & Services,Legal Expenses,T SOLICITORS,28/03/2021,291.67,,
Children's Safeguarding & Family Support,Child Protection & Family Support,Supplies & Services,Legal Expenses,Cornwall Street Barristers,10/03/2021,1700,,
Children's Safeguarding & Family Support,Child Protection & Family Support,Supplies & Services,Legal Expenses,Cornwall Street Barristers,08/03/2021,-150,,
Children's Safeguarding & Family Support,Child Protection & Family Support,Supplies & Services,Legal Expenses,No 9 G Chambers,10/03/2021,8150,,
Children's Safeguarding & Family Support,Child Protection & Family Support,Supplies & Services,Legal Expenses,R A ,10/03/2021,1080.96,,
Children's Safeguarding & Family Support,Child Protection & Family Support,Third Party Payments,Joint Financing,DEVON COUNTY COUNCIL,10/03/2021,18000,,
Children's Safeguarding & Family Support,Child Protection & Family Support,Third Party Payments,Joint Financing,STAFFORDSHIRE COUNTY COUNCIL,10/03/2021,1194.45,,
Children's Safeguarding & Family Support,Child Protection & Family Support,Third Party Payments,Joint Financing,STAFFORDSHIRE COUNTY COUNCIL,10/03/2021,1194.45,,
Children's Safeguarding & Family Support,Child Protection & Family Support,Third Party Payments,Joint Financing,STAFFORDSHIRE COUNTY COUNCIL,10/03/2021,1194.45,,
Children's Safeguarding & Family Support,Family Connect & Childrens Centres,Premises-Related Expenditure,R&M -Building Other,GRANVILLE CONSTRUCTION & MAINTENANCE LTD,18/03/2021,282,,
Children's Safeguarding & Family Support,Family Connect & Childrens Centres,Premises-Related Expenditure,R&M -Building Other,JCE & SONS LTD,26/03/2021,137.5,,
Children's Safeguarding & Family Support,Family Connect & Childrens Centres,Premises-Related Expenditure,R&M -Building Other,JCE & SONS LTD,08/03/2021,115,,
Children's Safeguarding & Family Support,Family Connect & Childrens Centres,Premises-Related Expenditure,R&M -Building Other,KRM CONTRACTORS LTD,26/03/2021,1925.5,,
Children's Safeguarding & Family Support,Family Connect & Childrens Centres,Supplies & Services,Administrative/Office Supplies,Kings of the Road,18/03/2021,260,,
Children's Safeguarding & Family Support,Family Connect & Childrens Centres,Supplies & Services,Administrative/Office Supplies,AW LOCKSMITHS,18/03/2021,120,,
Children's Safeguarding & Family Support,Family Connect & Childrens Centres,Third Party Payments,Interpreters Fees,VISS LTD,16/03/2021,115,,
Children's Safeguarding & Family Support,Family Connect & Childrens Centres,Supplies & Services,Other Services,GRANVILLE CONSTRUCTION & MAINTENANCE LTD,29/03/2021,143.46,,
Children's Safeguarding & Family Support,Family Connect & Childrens Centres,Supplies & Services,Equipment - Purchase,BACK CARE SOLUTIONS LTD,08/03/2021,1199.9,,
Children's Safeguarding & Family Support,"Family Placements, Children in Care, Leaving Care & Emergency Duty Team",Employees,Staff Training,UNIVERSITY OF WOLVERHAMPTON,28/03/2021,5262,,
Children's Safeguarding & Family Support,"Family Placements, Children in Care, Leaving Care & Emergency Duty Team",Employees,Staff Training,F & Associates,10/03/2021,4000,,
Children's Safeguarding & Family Support,"Family Placements, Children in Care, Leaving Care & Emergency Duty Team",Employees,Staff Training,F & Associates,29/03/2021,4000,,
Children's Safeguarding & Family Support,"Family Placements, Children in Care, Leaving Care & Emergency Duty Team",Employees,Staff Training,Leaving Care Training & Consultancy Service,02/03/2021,1162.5,,
Children's Safeguarding & Family Support,"Family Placements, Children in Care, Leaving Care & Emergency Duty Team",Third Party Payments,Contractor Recharge,Catch22 Charity Ltd,28/03/2021,2995,,
Children's Safeguarding & Family Support,"Family Placements, Children in Care, Leaving Care & Emergency Duty Team",Transport-Related Expenditure,Season Tickets,ARRIVA MIDLANDS LTD,19/03/2021,135,,
Children's Safeguarding & Family Support,"Family Placements, Children in Care, Leaving Care & Emergency Duty Team",Transport-Related Expenditure,Season Tickets,ARRIVA MIDLANDS LTD,19/03/2021,1080,,
Children's Safeguarding & Family Support,"Family Placements, Children in Care, Leaving Care & Emergency Duty Team",Transport-Related Expenditure,Season Tickets,ARRIVA MIDLANDS LTD,19/03/2021,360,,
Children's Safeguarding & Family Support,"Family Placements, Children in Care, Leaving Care & Emergency Duty Team",Supplies & Services,CL - Travel Costs,Veezu Midlands Ltd,28/03/2021,783,,
Children's Safeguarding & Family Support,"Family Placements, Children in Care, Leaving Care & Emergency Duty Team",Supplies & Services,CL - Travel Costs,Veezu Midlands Ltd,28/03/2021,810,,
Children's Safeguarding & Family Support,"Family Placements, Children in Care, Leaving Care & Emergency Duty Team",Third Party Payments,DSG - High Needs Block,HRP Education,02/03/2021,245,,
Children's Safeguarding & Family Support,"Family Placements, Children in Care, Leaving Care & Emergency Duty Team",Transport-Related Expenditure,Taxi Costs,Veezu Midlands Ltd,28/03/2021,360,,
Children's Safeguarding & Family Support,"Family Placements, Children in Care, Leaving Care & Emergency Duty Team",Transport-Related Expenditure,Taxi Costs,Veezu Midlands Ltd,28/03/2021,200,,
Children's Safeguarding & Family Support,"Family Placements, Children in Care, Leaving Care & Emergency Duty Team",Transport-Related Expenditure,Taxi Costs,Veezu Midlands Ltd,31/03/2021,260,,
Children's Safeguarding & Family Support,"Family Placements, Children in Care, Leaving Care & Emergency Duty Team",Premises-Related Expenditure,Hire Of Rooms,MEETING POINT TRUST LTD,08/03/2021,120,,
Children's Safeguarding & Family Support,"Family Placements, Children in Care, Leaving Care & Emergency Duty Team",Third Party Payments,External Foster Care Payments,Compass Fostering West Ltd,02/03/2021,3491.4,,
Children's Safeguarding & Family Support,"Family Placements, Children in Care, Leaving Care & Emergency Duty Team",Third Party Payments,External Foster Care Payments,Compass Fostering West Ltd,02/03/2021,3491.4,,
Children's Safeguarding & Family Support,"Family Placements, Children in Care, Leaving Care & Emergency Duty Team",Third Party Payments,External Foster Care Payments,Compass Fostering West Ltd,02/03/2021,-3724.16,,
Children's Safeguarding & Family Support,"Family Placements, Children in Care, Leaving Care & Emergency Duty Team",Third Party Payments,External Foster Care Payments,Compass Fostering West Ltd,02/03/2021,-3724.16,,
Children's Safeguarding & Family Support,"Family Placements, Children in Care, Leaving Care & Emergency Duty Team",Supplies & Services,Form F Assessments,Social Care Assessment Services Ltd,19/03/2021,500,,
Children's Safeguarding & Family Support,"Family Placements, Children in Care, Leaving Care & Emergency Duty Team",Supplies & Services,Form F Assessments,Social Care Assessment Services Ltd,19/03/2021,200,,
Children's Safeguarding & Family Support,"Family Placements, Children in Care, Leaving Care & Emergency Duty Team",Supplies & Services,Form F Assessments,Social Care Assessment Services Ltd,19/03/2021,160,,
Children's Safeguarding & Family Support,"Family Placements, Children in Care, Leaving Care & Emergency Duty Team",Supplies & Services,Form F Assessments,Social Care Assessment Services Ltd,19/03/2021,240,,
Children's Safeguarding & Family Support,"Family Placements, Children in Care, Leaving Care & Emergency Duty Team",Supplies & Services,Advertising,Bauer Radio Ltd,11/03/2021,154.8,,
Children's Safeguarding & Family Support,"Family Placements, Children in Care, Leaving Care & Emergency Duty Team",Supplies & Services,Advertising,Bauer Radio Ltd,11/03/2021,429,,
Children's Safeguarding & Family Support,"Family Placements, Children in Care, Leaving Care & Emergency Duty Team",Supplies & Services,Advertising,Bauer Radio Ltd,11/03/2021,1110.4,,
Children's Safeguarding & Family Support,"Family Placements, Children in Care, Leaving Care & Emergency Duty Team",Supplies & Services,Form F Assessments,EW Assessments ltd,25/03/2021,2000,,
Children's Safeguarding & Family Support,"Family Placements, Children in Care, Leaving Care & Emergency Duty Team",Supplies & Services,Form F Assessments,EW Assessments ltd,29/03/2021,2000,,
Children's Safeguarding & Family Support,"Family Placements, Children in Care, Leaving Care & Emergency Duty Team",Supplies & Services,Advertising,Global Radio Services Limited,11/03/2021,1000,,
Children's Safeguarding & Family Support,"Family Placements, Children in Care, Leaving Care & Emergency Duty Team",Supplies & Services,Advertising,Global Radio Services Limited,11/03/2021,3000,,
Children's Safeguarding & Family Support,"Family Placements, Children in Care, Leaving Care & Emergency Duty Team",Supplies & Services,Form F Assessments,Kite Fostering Consultancy Ltd,05/03/2021,2013.68,,
Children's Safeguarding & Family Support,"Family Placements, Children in Care, Leaving Care & Emergency Duty Team",Supplies & Services,Form F Assessments,Kite Fostering Consultancy Ltd,29/03/2021,2276.32,,
Children's Safeguarding & Family Support,"Family Placements, Children in Care, Leaving Care & Emergency Duty Team",Supplies & Services,Other Services,REDACTED PERSONAL INFORMATION,30/03/2021,129,,
Children's Safeguarding & Family Support,"Family Placements, Children in Care, Leaving Care & Emergency Duty Team",Supplies & Services,Doctors Fees,Merron Medical Ltd,05/03/2021,1671.92,,
Children's Safeguarding & Family Support,"Family Placements, Children in Care, Leaving Care & Emergency Duty Team",Supplies & Services,Doctors Fees,Merron Medical Ltd,31/03/2021,1774.92,,
Children's Safeguarding & Family Support,"Family Placements, Children in Care, Leaving Care & Emergency Duty Team",Third Party Payments,Private Contractors,Shared Services Connected Limited,08/03/2021,378,,
Children's Safeguarding & Family Support,"Family Placements, Children in Care, Leaving Care & Emergency Duty Team",Third Party Payments,Private Contractors,Shared Services Connected Limited,08/03/2021,9951,,
Children's Safeguarding & Family Support,"Family Placements, Children in Care, Leaving Care & Emergency Duty Team",Third Party Payments,Private Contractors,Shared Services Connected Limited,08/03/2021,12192,,
Children's Safeguarding & Family Support,"Family Placements, Children in Care, Leaving Care & Emergency Duty Team",Third Party Payments,Private Contractors,Shared Services Connected Limited,08/03/2021,9951,,
Children's Safeguarding & Family Support,Safeguarding Advisory,Supplies & Services,Subscriptions,Sandwell Childrens Trust,19/03/2021,1100,,
Children's Safeguarding & Family Support,Safeguarding Advisory,Employees,Staff Training,Smash Life UK Ltd,01/03/2021,600,,
"Communities, Customer & Commercial Services",Commercial Projects,Supplies & Services,Other Services,GOVNET COMMUNICATIONS,23/03/2021,345,,
"Communities, Customer & Commercial Services",Commercial Projects,Premises-Related Expenditure,Electricity,West Mercia Energy (WME),19/03/2021,134.21,,
"Communities, Customer & Commercial Services",Commercial Projects,Premises-Related Expenditure,Electricity,West Mercia Energy (WME),05/03/2021,140.44,,
"Communities, Customer & Commercial Services",Commercial Projects,Premises-Related Expenditure,Electricity,West Mercia Energy (WME),05/03/2021,140.13,,
"Communities, Customer & Commercial Services",Commercial Projects,Supplies & Services,Other Services,OVE ARUP & PARTNERS LIMITED,15/03/2021,2498,,
"Communities, Customer & Commercial Services",Community Safety & Cohesion,Supplies & Services,Grants To Voluntary Organis,The Children's Society  Ltd,22/03/2021,20000,,
"Communities, Customer & Commercial Services",Community Safety & Cohesion,Premises-Related Expenditure,General Rents,BROMFORD HOUSING ASSOCIATION LIMITED,25/03/2021,414.06,,
"Communities, Customer & Commercial Services",Community Safety & Cohesion,Premises-Related Expenditure,General Rents,BROMFORD HOUSING ASSOCIATION LIMITED,18/03/2021,602.48,,
"Communities, Customer & Commercial Services",Community Safety & Cohesion,Premises-Related Expenditure,Leasehold Rents,GPS Property Shropshire LLP,15/03/2021,600,,
"Communities, Customer & Commercial Services",Community Safety & Cohesion,Premises-Related Expenditure,Leasehold Rents,GPS Property Shropshire LLP,15/03/2021,650,,
"Communities, Customer & Commercial Services",Community Safety & Cohesion,Premises-Related Expenditure,Leasehold Rents,Northwood (Hereford) Ltd,19/03/2021,610,,
"Communities, Customer & Commercial Services",Community Safety & Cohesion,Premises-Related Expenditure,Dilapidations,THE WREKIN HOUSING TRUST ,09/03/2021,533.89,,
"Communities, Customer & Commercial Services",Community Safety & Cohesion,Premises-Related Expenditure,General Rents,THE WREKIN HOUSING TRUST ,01/03/2021,538.17,,
"Communities, Customer & Commercial Services",Community Safety & Cohesion,Premises-Related Expenditure,Leasehold Rents,WREKIN HOUSING TRUST,15/03/2021,560.4,,
"Communities, Customer & Commercial Services",Community Safety & Cohesion,Supplies & Services,Emergency Provisions for Young People,TAYLORS MECHANICAL H & P SERVICES LTD,24/03/2021,-125.47,,
"Communities, Customer & Commercial Services",Community Safety & Cohesion,Supplies & Services,Materials,Stevenage Packaging Ltd,10/03/2021,1579.42,,
"Communities, Customer & Commercial Services",Community Safety & Cohesion,Supplies & Services,Printing - Other,The Purple Company,24/03/2021,798,,
"Communities, Customer & Commercial Services",Community Safety & Cohesion,Supplies & Services,Grants To Voluntary Organis,Admaston House Community Centre Trust,29/03/2021,750,,
"Communities, Customer & Commercial Services",Community Safety & Cohesion,Supplies & Services,Grants To Voluntary Organis,Anstice Community Trust,29/03/2021,500,,
"Communities, Customer & Commercial Services",Community Safety & Cohesion,Supplies & Services,Grants To Voluntary Organis,CHETWYND ASTON & WOODCOTE P.C ,16/03/2021,400,,
"Communities, Customer & Commercial Services",Community Safety & Cohesion,Supplies & Services,Grants To Voluntary Organis,DONNINGTON & MUXTON PARISH COUNCIL,29/03/2021,1000,,
"Communities, Customer & Commercial Services",Community Safety & Cohesion,Supplies & Services,Grants To Voluntary Organis,Hadley Learning Community Academy,29/03/2021,1100,,
"Communities, Customer & Commercial Services",Community Safety & Cohesion,Supplies & Services,Grants To Voluntary Organis,KETLEY PARISH COUNCIL,29/03/2021,580,,
"Communities, Customer & Commercial Services",Community Safety & Cohesion,Supplies & Services,Grants To Voluntary Organis,LAWLEY & OVERDALE PARISH COUNCIL,24/03/2021,490,,
"Communities, Customer & Commercial Services",Community Safety & Cohesion,Supplies & Services,Grants To Voluntary Organis,MADELEY PARISH COUNCIL ,16/03/2021,500,,
"Communities, Customer & Commercial Services",Community Safety & Cohesion,Supplies & Services,Grants To Voluntary Organis,Sutton Hill Community Trust,03/03/2021,1800,,
"Communities, Customer & Commercial Services",Community Safety & Cohesion,Supplies & Services,Grants To Voluntary Organis,WOODEN TOPS DAY NURSERY ,29/03/2021,530,,
"Communities, Customer & Commercial Services",Community Safety & Cohesion,Employees,Other Training,TELFORD & WREKIN CITIZENS ADVICE BUREAU,02/03/2021,355,,
"Communities, Customer & Commercial Services",Community Safety & Cohesion,Supplies & Services,Grants To Voluntary Organis,Sutton Hill Community Trust,03/03/2021,9524.67,,
"Communities, Customer & Commercial Services",Community Safety & Cohesion,Supplies & Services,Other Grants (Expenses),DONNINGTON PARTNERSHIP,16/03/2021,288.35,,
"Communities, Customer & Commercial Services",Community Safety & Cohesion,Supplies & Services,Other Grants (Expenses),GREAT DAWLEY PARISH COUNCIL,17/03/2021,137.8,,
"Communities, Customer & Commercial Services",Community Safety & Cohesion,Supplies & Services,Other Grants (Expenses),OAKENGATES TOWN COUNCIL,29/03/2021,125.01,,
"Communities, Customer & Commercial Services",Community Safety & Cohesion,Supplies & Services,Other Grants (Expenses),STIRCHLEY & BROOKSIDE PARISH COUNCIL (NON PRECEPT),16/03/2021,157.65,,
"Communities, Customer & Commercial Services",Community Safety & Cohesion,Supplies & Services,Grants To Voluntary Organis,PODS,17/03/2021,5000,,
"Communities, Customer & Commercial Services",Community Safety & Cohesion,Supplies & Services,Grants To Voluntary Organis,"Signal- Sensory Impairment Globally, Nationally and Locally",24/03/2021,5000,,
"Communities, Customer & Commercial Services",Community Safety & Cohesion,Supplies & Services,Grants To Voluntary Organis,"Signal- Sensory Impairment Globally, Nationally and Locally",24/03/2021,750,,
"Communities, Customer & Commercial Services",Community Safety & Cohesion,Supplies & Services,Grants To Voluntary Organis,TELFORD & WREKIN CVS,17/03/2021,5000,,
"Communities, Customer & Commercial Services",Culture & Wellbeing,Supplies & Services,Marketing & Publicity,THW Marketing,29/03/2021,3960,,
"Communities, Customer & Commercial Services",Culture & Wellbeing,Supplies & Services,Equipment - Purchase,Coffee Aroma,31/03/2021,200,,
"Communities, Customer & Commercial Services",Culture & Wellbeing,Supplies & Services,Equipment - Purchase,SETON LIMITED,19/03/2021,1709.82,,
"Communities, Customer & Commercial Services",Culture & Wellbeing,Supplies & Services,Equipment - Purchase,SETON LIMITED,15/03/2021,197.98,,
"Communities, Customer & Commercial Services",Culture & Wellbeing,Supplies & Services,Equipment - Purchase,SETON LIMITED,29/03/2021,269.99,,
"Communities, Customer & Commercial Services",Culture & Wellbeing,Employees,Staff Training,The Management Centre (UK) Ltd,19/03/2021,1200,,
"Communities, Customer & Commercial Services",Customer Relationships & Welfare Services,Supplies & Services,Other Services,Kings of the Road,16/03/2021,325,,
"Communities, Customer & Commercial Services",Customer Relationships & Welfare Services,Supplies & Services,Furniture - Purchase,BACK CARE SOLUTIONS LTD,23/03/2021,539,,
"Communities, Customer & Commercial Services",Customer Relationships & Welfare Services,Supplies & Services,Furniture - Purchase,BACK CARE SOLUTIONS LTD,23/03/2021,259.95,,
"Communities, Customer & Commercial Services",Customer Relationships & Welfare Services,Supplies & Services,Administrative/Office Supplies,BACK CARE SOLUTIONS LTD,23/03/2021,165.95,,
"Communities, Customer & Commercial Services",Customer Relationships & Welfare Services,Supplies & Services,Computer Software (Maint),Texthelp Ltd,01/03/2021,8400,,
"Communities, Customer & Commercial Services",Customer Relationships & Welfare Services,Supplies & Services,Postages,Financial Data Management plc,18/03/2021,124.22,,
"Communities, Customer & Commercial Services",Customer Relationships & Welfare Services,Supplies & Services,Printing - Other,Financial Data Management plc,12/03/2021,183.3,,
"Communities, Customer & Commercial Services",Customer Relationships & Welfare Services,Supplies & Services,Stationery,Financial Data Management plc,12/03/2021,780,,
"Communities, Customer & Commercial Services",Customer Relationships & Welfare Services,Supplies & Services,Postages,Financial Data Management plc,16/03/2021,110.45,,
"Communities, Customer & Commercial Services",Customer Relationships & Welfare Services,Supplies & Services,IT Services,NORTHGATE PUBLIC SERVICES (UK) LTD,17/03/2021,1120.42,,
"Communities, Customer & Commercial Services",Customer Relationships & Welfare Services,Supplies & Services,IT Services,NORTHGATE PUBLIC SERVICES (UK) LTD,01/03/2021,1875,,
"Communities, Customer & Commercial Services",Customer Relationships & Welfare Services,Supplies & Services,Postages,ROYAL MAIL GROUP PLC ,26/03/2021,1455,,
"Communities, Customer & Commercial Services",Customer Relationships & Welfare Services,Supplies & Services,Grants To Voluntary Organis,Brookside Central,31/03/2021,2030,,
"Communities, Customer & Commercial Services",Customer Relationships & Welfare Services,Supplies & Services,Grants To Voluntary Organis,DONNINGTON PARTNERSHIP,29/03/2021,2135,,
"Communities, Customer & Commercial Services",Customer Relationships & Welfare Services,Supplies & Services,Grants To Voluntary Organis,GREAT DAWLEY PARISH COUNCIL,29/03/2021,3955,,
"Communities, Customer & Commercial Services",Customer Relationships & Welfare Services,Supplies & Services,Other Grants (Expenses),H Incentives Limited,16/03/2021,250565,,
"Communities, Customer & Commercial Services",Customer Relationships & Welfare Services,Supplies & Services,Other Grants (Expenses),H Incentives Limited,18/03/2021,2205,,
"Communities, Customer & Commercial Services",Customer Relationships & Welfare Services,Supplies & Services,Grants To Voluntary Organis,HOLLINSWOOD & RANDLAY PARISH COUNCIL,31/03/2021,910,,
"Communities, Customer & Commercial Services",Customer Relationships & Welfare Services,Supplies & Services,Grants To Voluntary Organis,KETLEY PARISH COUNCIL,31/03/2021,1232,,
"Communities, Customer & Commercial Services",Customer Relationships & Welfare Services,Supplies & Services,Grants To Voluntary Organis,PARK LANE CENTRE,31/03/2021,3899,,
"Communities, Customer & Commercial Services",Customer Relationships & Welfare Services,Supplies & Services,Grants To Voluntary Organis,ST GEORGES & PRIORSLEE PARISH COUNCIL,30/03/2021,959,,
"Communities, Customer & Commercial Services",Customer Relationships & Welfare Services,Supplies & Services,Grants To Voluntary Organis,Sutton Hill Community Trust,30/03/2021,2625,,
"Communities, Customer & Commercial Services",Customer Relationships & Welfare Services,Supplies & Services,Permit Production - Blue Badge,APS Group,04/03/2021,689.49,,
"Communities, Customer & Commercial Services",Customer Relationships & Welfare Services,Supplies & Services,Blue Badge Assessments,Ascenti,17/03/2021,300,,
"Communities, Customer & Commercial Services",Customer Relationships & Welfare Services,Supplies & Services,Blue Badge Assessments,Ascenti,17/03/2021,210,,
"Communities, Customer & Commercial Services",Customer Relationships & Welfare Services,Supplies & Services,Blue Badge Assessments,Ascenti,17/03/2021,720,,
"Communities, Customer & Commercial Services",Customer Relationships & Welfare Services,Supplies & Services,Blue Badge Assessments,Ascenti,17/03/2021,120,,
"Communities, Customer & Commercial Services",Customer Relationships & Welfare Services,Supplies & Services,Bus Pass Production,Euclid Limited,08/03/2021,1866.6,,
"Communities, Customer & Commercial Services",Customer Relationships & Welfare Services,Supplies & Services,Consultancy,NORTHGATE PUBLIC SERVICES (UK) LTD,12/03/2021,1000,,
"Communities, Customer & Commercial Services",Customer Relationships & Welfare Services,Supplies & Services,Permit Production - Blue Badge,Valtech Limited,16/03/2021,236.35,,
"Communities, Customer & Commercial Services",Customer Relationships & Welfare Services,Transfer Payments,Crisis Assistance Awards,A W HOLDINGS,31/03/2021,1214,,
"Communities, Customer & Commercial Services",Customer Relationships & Welfare Services,Transfer Payments,Crisis Assistance Awards,A W HOLDINGS,30/03/2021,736,,
"Communities, Customer & Commercial Services",Customer Relationships & Welfare Services,Transfer Payments,Crisis Assistance Awards,DAWLEY BARGAIN CENTRE,11/03/2021,370,,
"Communities, Customer & Commercial Services",Customer Relationships & Welfare Services,Transfer Payments,Crisis Assistance Awards,DAWLEY BARGAIN CENTRE,11/03/2021,285,,
"Communities, Customer & Commercial Services",Customer Relationships & Welfare Services,Transfer Payments,Crisis Assistance Awards,DAWLEY BARGAIN CENTRE,11/03/2021,125,,
"Communities, Customer & Commercial Services",Customer Relationships & Welfare Services,Transfer Payments,Crisis Assistance Awards,DAWLEY BARGAIN CENTRE,31/03/2021,145,,
"Communities, Customer & Commercial Services",Customer Relationships & Welfare Services,Transfer Payments,Crisis Assistance Awards,DAWLEY BARGAIN CENTRE,11/03/2021,235,,
"Communities, Customer & Commercial Services",Customer Relationships & Welfare Services,Transfer Payments,Crisis Assistance Awards,DAWLEY BARGAIN CENTRE,11/03/2021,145,,
"Communities, Customer & Commercial Services",Customer Relationships & Welfare Services,Transfer Payments,Crisis Assistance Awards,DAWLEY BARGAIN CENTRE,11/03/2021,195,,
"Communities, Customer & Commercial Services",Customer Relationships & Welfare Services,Transfer Payments,Crisis Assistance Awards,DAWLEY BARGAIN CENTRE,25/03/2021,180,,
"Communities, Customer & Commercial Services",Customer Relationships & Welfare Services,Transfer Payments,Crisis Assistance Awards,DAWLEY BARGAIN CENTRE,25/03/2021,180,,
"Communities, Customer & Commercial Services",Customer Relationships & Welfare Services,Transfer Payments,Crisis Assistance Awards,DAWLEY BARGAIN CENTRE,25/03/2021,320,,
"Communities, Customer & Commercial Services",Customer Relationships & Welfare Services,Transfer Payments,Crisis Assistance Awards,Kings of the Road,31/03/2021,325,,
"Communities, Customer & Commercial Services",Customer Relationships & Welfare Services,Transfer Payments,Crisis Assistance Awards,PayPoint Network Limited,19/03/2021,625,,
"Communities, Customer & Commercial Services",Customer Relationships & Welfare Services,Transfer Payments,Crisis Assistance Awards,PayPoint Network Limited,05/03/2021,180,,
"Communities, Customer & Commercial Services",Customer Relationships & Welfare Services,Transfer Payments,Crisis Assistance Awards,PayPoint Network Limited,09/03/2021,270,,
"Communities, Customer & Commercial Services",Customer Relationships & Welfare Services,Transfer Payments,Crisis Assistance Awards,PayPoint Network Limited,23/03/2021,440,,
"Communities, Customer & Commercial Services",Customer Relationships & Welfare Services,Transfer Payments,Crisis Assistance Awards,PayPoint Network Limited,29/03/2021,300,,
"Communities, Customer & Commercial Services",Customer Relationships & Welfare Services,Transfer Payments,Crisis Assistance Awards,Self Isolation Grant,19/03/2021,500,,
"Communities, Customer & Commercial Services",Customer Relationships & Welfare Services,Transfer Payments,Crisis Assistance Awards,Self Isolation Grant,19/03/2021,500,,
"Communities, Customer & Commercial Services",Customer Relationships & Welfare Services,Transfer Payments,Crisis Assistance Awards,Self Isolation Grant,05/03/2021,500,,
"Communities, Customer & Commercial Services",Customer Relationships & Welfare Services,Transfer Payments,Crisis Assistance Awards,Self Isolation Grant,05/03/2021,500,,
"Communities, Customer & Commercial Services",Customer Relationships & Welfare Services,Transfer Payments,Crisis Assistance Awards,Self Isolation Grant,22/03/2021,500,,
"Communities, Customer & Commercial Services",Customer Relationships & Welfare Services,Transfer Payments,Crisis Assistance Awards,Self Isolation Grant,12/03/2021,500,,
"Communities, Customer & Commercial Services",Customer Relationships & Welfare Services,Transfer Payments,Crisis Assistance Awards,Self Isolation Grant,12/03/2021,500,,
"Communities, Customer & Commercial Services",Customer Relationships & Welfare Services,Transfer Payments,Crisis Assistance Awards,Self Isolation Grant,12/03/2021,500,,
"Communities, Customer & Commercial Services",Customer Relationships & Welfare Services,Transfer Payments,Crisis Assistance Awards,Self Isolation Grant,12/03/2021,500,,
"Communities, Customer & Commercial Services",Customer Relationships & Welfare Services,Transfer Payments,Crisis Assistance Awards,Self Isolation Grant,22/03/2021,500,,
"Communities, Customer & Commercial Services",Customer Relationships & Welfare Services,Transfer Payments,Crisis Assistance Awards,Self Isolation Grant,25/03/2021,500,,
"Communities, Customer & Commercial Services",Customer Relationships & Welfare Services,Transfer Payments,Crisis Assistance Awards,Self Isolation Grant,08/03/2021,500,,
"Communities, Customer & Commercial Services",Customer Relationships & Welfare Services,Transfer Payments,Crisis Assistance Awards,Self Isolation Grant,03/03/2021,500,,
"Communities, Customer & Commercial Services",Customer Relationships & Welfare Services,Transfer Payments,Crisis Assistance Awards,Self Isolation Grant,03/03/2021,500,,
"Communities, Customer & Commercial Services",Customer Relationships & Welfare Services,Transfer Payments,Crisis Assistance Awards,Self Isolation Grant,03/03/2021,500,,
"Communities, Customer & Commercial Services",Customer Relationships & Welfare Services,Transfer Payments,Crisis Assistance Awards,Self Isolation Grant,03/03/2021,500,,
"Communities, Customer & Commercial Services",Customer Relationships & Welfare Services,Transfer Payments,Crisis Assistance Awards,Self Isolation Grant,03/03/2021,500,,
"Communities, Customer & Commercial Services",Customer Relationships & Welfare Services,Transfer Payments,Crisis Assistance Awards,Self Isolation Grant,17/03/2021,500,,
"Communities, Customer & Commercial Services",Customer Relationships & Welfare Services,Transfer Payments,Crisis Assistance Awards,Self Isolation Grant,01/03/2021,500,,
"Communities, Customer & Commercial Services",Customer Relationships & Welfare Services,Transfer Payments,Crisis Assistance Awards,Self Isolation Grant,01/03/2021,500,,
"Communities, Customer & Commercial Services",Customer Relationships & Welfare Services,Transfer Payments,Crisis Assistance Awards,Self Isolation Grant,01/03/2021,500,,
"Communities, Customer & Commercial Services",Customer Relationships & Welfare Services,Transfer Payments,Crisis Assistance Awards,Self Isolation Grant,01/03/2021,500,,
"Communities, Customer & Commercial Services",Customer Relationships & Welfare Services,Transfer Payments,Crisis Assistance Awards,Self Isolation Grant,01/03/2021,500,,
"Communities, Customer & Commercial Services",Customer Relationships & Welfare Services,Transfer Payments,Crisis Assistance Awards,Self Isolation Grant,11/03/2021,500,,
"Communities, Customer & Commercial Services",Customer Relationships & Welfare Services,Transfer Payments,Crisis Assistance Awards,Self Isolation Grant,11/03/2021,500,,
"Communities, Customer & Commercial Services",Customer Relationships & Welfare Services,Transfer Payments,Crisis Assistance Awards,Self Isolation Grant,02/03/2021,500,,
"Communities, Customer & Commercial Services",Customer Relationships & Welfare Services,Transfer Payments,Crisis Assistance Awards,Self Isolation Grant,09/03/2021,500,,
"Communities, Customer & Commercial Services",Customer Relationships & Welfare Services,Transfer Payments,Crisis Assistance Awards,Self Isolation Grant,09/03/2021,500,,
"Communities, Customer & Commercial Services",Customer Relationships & Welfare Services,Transfer Payments,Crisis Assistance Awards,Self Isolation Grant,09/03/2021,500,,
"Communities, Customer & Commercial Services",Customer Relationships & Welfare Services,Transfer Payments,Crisis Assistance Awards,Self Isolation Grant,09/03/2021,500,,
"Communities, Customer & Commercial Services",Customer Relationships & Welfare Services,Transfer Payments,Crisis Assistance Awards,Self Isolation Grant,08/03/2021,500,,
"Communities, Customer & Commercial Services",Customer Relationships & Welfare Services,Transfer Payments,Crisis Assistance Awards,Self Isolation Grant,10/03/2021,500,,
"Communities, Customer & Commercial Services",Customer Relationships & Welfare Services,Transfer Payments,Crisis Assistance Awards,Self Isolation Grant,15/03/2021,500,,
"Communities, Customer & Commercial Services",Customer Relationships & Welfare Services,Transfer Payments,Crisis Assistance Awards,Self Isolation Grant,23/03/2021,500,,
"Communities, Customer & Commercial Services",Customer Relationships & Welfare Services,Transfer Payments,Crisis Assistance Awards,Self Isolation Grant,30/03/2021,500,,
"Communities, Customer & Commercial Services",Customer Relationships & Welfare Services,Transfer Payments,Crisis Assistance Awards,Self Isolation Grant,30/03/2021,500,,
"Communities, Customer & Commercial Services",Customer Relationships & Welfare Services,Transfer Payments,Crisis Assistance Awards,Self Isolation Grant,30/03/2021,500,,
"Communities, Customer & Commercial Services",Customer Relationships & Welfare Services,Transfer Payments,Crisis Assistance Awards,Self Isolation Grant,30/03/2021,500,,
"Communities, Customer & Commercial Services",Customer Relationships & Welfare Services,Transfer Payments,Crisis Assistance Awards,Self Isolation Grant,31/03/2021,500,,
"Communities, Customer & Commercial Services",Customer Relationships & Welfare Services,Transfer Payments,Crisis Assistance Awards,Self Isolation Grant,24/03/2021,500,,
"Communities, Customer & Commercial Services",Customer Relationships & Welfare Services,Transfer Payments,Crisis Assistance Awards,Self Isolation Grant,18/03/2021,500,,
"Communities, Customer & Commercial Services",Customer Relationships & Welfare Services,Transfer Payments,Crisis Assistance Awards,Self Isolation Grant,03/03/2021,500,,
"Communities, Customer & Commercial Services",Customer Relationships & Welfare Services,Transfer Payments,Crisis Assistance Awards,Self Isolation Grant,03/03/2021,500,,
"Communities, Customer & Commercial Services",Customer Relationships & Welfare Services,Transfer Payments,Crisis Assistance Awards,Self Isolation Grant,04/03/2021,500,,
"Communities, Customer & Commercial Services",Customer Relationships & Welfare Services,Transfer Payments,Crisis Assistance Awards,Self Isolation Grant,25/03/2021,500,,
"Communities, Customer & Commercial Services",Customer Relationships & Welfare Services,Transfer Payments,Crisis Assistance Awards,Self Isolation Grant,25/03/2021,500,,
"Communities, Customer & Commercial Services",Customer Relationships & Welfare Services,Transfer Payments,Crisis Assistance Awards,Self Isolation Grant,25/03/2021,500,,
"Communities, Customer & Commercial Services",Customer Relationships & Welfare Services,Transfer Payments,Crisis Assistance Awards,Self Isolation Grant,25/03/2021,500,,
"Communities, Customer & Commercial Services",Customer Relationships & Welfare Services,Transfer Payments,Crisis Assistance Awards,Self Isolation Grant,25/03/2021,500,,
"Communities, Customer & Commercial Services",Customer Relationships & Welfare Services,Transfer Payments,Crisis Assistance Awards,Self Isolation Grant,25/03/2021,500,,
"Communities, Customer & Commercial Services",Customer Relationships & Welfare Services,Premises-Related Expenditure,Grounds Maintenance - Wood,Limetree Landscape Services and Nurseries Limited,01/03/2021,-760,,
"Communities, Customer & Commercial Services",Customer Relationships & Welfare Services,Supplies & Services,Equipment - Hire,SMARTWATER TECHNOLOGY LTD,15/03/2021,130,,
"Communities, Customer & Commercial Services",Customer Relationships & Welfare Services,Capital Expenditure,Computer Software,ICS.Al Ltd,30/03/2021,18783.48,,
"Communities, Customer & Commercial Services",ICT,Supplies & Services,Telecomms,Airband Community Internet,10/03/2021,295,,
"Communities, Customer & Commercial Services",ICT,Supplies & Services,Telecomms,Airband Community Internet,10/03/2021,295,,
"Communities, Customer & Commercial Services",ICT,Supplies & Services,Telecomms,Airband Community Internet,08/03/2021,300,,
"Communities, Customer & Commercial Services",ICT,Supplies & Services,Telecomms,Airband Community Internet,08/03/2021,295,,
"Communities, Customer & Commercial Services",ICT,Supplies & Services,Comp Software (Purch / Hire),PHOENIX SOFTWARE LTD,05/03/2021,1128,,
"Communities, Customer & Commercial Services",ICT,Supplies & Services,Comp Software (Purch / Hire),ScholarPack,25/03/2021,422,,
"Communities, Customer & Commercial Services",ICT,Supplies & Services,Comp Software (Purch / Hire),ScholarPack,25/03/2021,399,,
"Communities, Customer & Commercial Services",ICT,Supplies & Services,Telephones,BRITISH TELECOMMUNICATIONS PLC ,15/03/2021,2041.95,,
"Communities, Customer & Commercial Services",ICT,Supplies & Services,Equipment - Purchase,CCS MEDIA LIMITED,22/03/2021,957.65,,
"Communities, Customer & Commercial Services",ICT,Supplies & Services,Mobile Phones,EE LTD AIRTIME ,10/03/2021,198,,
"Communities, Customer & Commercial Services",ICT,Supplies & Services,Mobile Phones,EE LTD AIRTIME ,10/03/2021,4438.01,,
"Communities, Customer & Commercial Services",ICT,Supplies & Services,Mobile Phones,EE LTD AIRTIME ,17/03/2021,14300.72,,
"Communities, Customer & Commercial Services",ICT,Supplies & Services,Mobile Phones,EE LTD AIRTIME ,02/03/2021,110.9,,
"Communities, Customer & Commercial Services",ICT,Supplies & Services,Mobile Phones,EE LTD AIRTIME ,02/03/2021,3993.56,,
"Communities, Customer & Commercial Services",ICT,Supplies & Services,Mobile Phones,EE LTD AIRTIME ,02/03/2021,13853.07,,
"Communities, Customer & Commercial Services",ICT,Supplies & Services,Text Messages,PROCESS FLOWS UK LTD,08/03/2021,203.43,,
"Communities, Customer & Commercial Services",ICT,Supplies & Services,Telephones,VIRGIN MEDIA BUSINESS LTD,02/03/2021,20909.99,,
"Communities, Customer & Commercial Services",ICT,Supplies & Services,Telephones,VIRGIN MEDIA BUSINESS LTD,02/03/2021,18918.96,,
"Communities, Customer & Commercial Services",ICT,Supplies & Services,Computer Software (Maint),Planet Enterprises ,30/03/2021,1700,,
"Communities, Customer & Commercial Services",ICT,Supplies & Services,Computer Software (Maint),Planet Enterprises ,30/03/2021,1760.65,,
"Communities, Customer & Commercial Services",ICT,Supplies & Services,Computer Software (Maint),Planet Enterprises ,30/03/2021,2342,,
"Communities, Customer & Commercial Services",ICT,Supplies & Services,Comp Software (Purch / Hire),ScholarPack,25/03/2021,554.25,,
"Communities, Customer & Commercial Services",ICT,Supplies & Services,Comp Software (Purch / Hire),The Key Support Services Limited,11/03/2021,-1246,,
"Communities, Customer & Commercial Services",ICT,Premises-Related Expenditure,R&M -Buildings DLO Charge,Churches Fire Security Ltd,08/03/2021,145.95,,
"Communities, Customer & Commercial Services",ICT,Supplies & Services,Equipment - Purchase,COOL SERVICES LTD,23/03/2021,480,,
"Communities, Customer & Commercial Services",ICT,Supplies & Services,Comp Software (Purch / Hire),Dotted Eyes,02/03/2021,500,,
"Communities, Customer & Commercial Services",ICT,Supplies & Services,Comp Software (Purch / Hire),Jadu Creative Limited,18/03/2021,3250,,
"Communities, Customer & Commercial Services",ICT,Supplies & Services,Comp Software (Purch / Hire),PHOENIX SOFTWARE LTD,23/03/2021,2629.94,,
"Communities, Customer & Commercial Services",ICT,Supplies & Services,Comp Software (Purch / Hire),PHOENIX SOFTWARE LTD,01/03/2021,178.84,,
"Communities, Customer & Commercial Services",ICT,Supplies & Services,Comp Software (Purch / Hire),PHOENIX SOFTWARE LTD,25/03/2021,3316.72,,
"Communities, Customer & Commercial Services",ICT,Supplies & Services,Comp Software (Purch / Hire),PHOENIX SOFTWARE LTD,16/03/2021,15750,,
"Communities, Customer & Commercial Services",ICT,Supplies & Services,Comp Software (Purch / Hire),PHOENIX SOFTWARE LTD,16/03/2021,7070,,
"Communities, Customer & Commercial Services",ICT,Supplies & Services,Comp Software (Purch / Hire),PHOENIX SOFTWARE LTD,16/03/2021,132493,,
"Communities, Customer & Commercial Services",ICT,Supplies & Services,Comp Software (Purch / Hire),Quest Software International Limited,26/03/2021,13440,,
"Communities, Customer & Commercial Services",ICT,Supplies & Services,Comp Software (Purch / Hire),Zellis UK Ltd,23/03/2021,352,,
"Communities, Customer & Commercial Services",ICT,Supplies & Services,Equipment - Purchase,CDEC Limited,23/03/2021,130,,
"Communities, Customer & Commercial Services",ICT,Supplies & Services,Comp Software (Purch / Hire),CCS MEDIA LIMITED,19/03/2021,4847.5,,
"Communities, Customer & Commercial Services",ICT,Supplies & Services,Licences,SIEMENS FINANCIAL SERVICES LTD,23/03/2021,1036.73,,
"Communities, Customer & Commercial Services",ICT,Supplies & Services,Comp Hardware (Purch / Hire),CCS MEDIA LIMITED,05/03/2021,150,,
"Communities, Customer & Commercial Services",ICT,Supplies & Services,Comp Hardware (Purch / Hire),CCS MEDIA LIMITED,05/03/2021,31907,,
"Communities, Customer & Commercial Services",ICT,Supplies & Services,Comp Hardware (Purch / Hire),CCS MEDIA LIMITED,30/03/2021,192,,
"Communities, Customer & Commercial Services",ICT,Capital Expenditure,Other Capital Expenditure,AVK/SEG (UK) Ltd,30/03/2021,37672.03,,
"Communities, Customer & Commercial Services",ICT,Capital Expenditure,Computer Hardware,CCS MEDIA LIMITED,02/03/2021,2540,,
"Communities, Customer & Commercial Services",ICT,Capital Expenditure,Computer Hardware,CCS MEDIA LIMITED,01/03/2021,9494.25,,
"Communities, Customer & Commercial Services",ICT,Capital Expenditure,Computer Hardware,CCS MEDIA LIMITED,01/03/2021,192,,
"Communities, Customer & Commercial Services",ICT,Capital Expenditure,Computer Hardware,CCS MEDIA LIMITED,30/03/2021,5400,,
"Communities, Customer & Commercial Services",ICT,Capital Expenditure,Computer Hardware,CCS MEDIA LIMITED,31/03/2021,850,,
"Communities, Customer & Commercial Services",ICT,Capital Expenditure,Computer Hardware,CCS MEDIA LIMITED,31/03/2021,540,,
"Communities, Customer & Commercial Services",ICT,Capital Expenditure,Other Capital Expenditure,Charlton Academy,08/03/2021,212.89,,
"Communities, Customer & Commercial Services",ICT,Capital Expenditure,Other Capital Expenditure,Charlton Academy,25/03/2021,106.45,,
"Communities, Customer & Commercial Services",ICT,Capital Expenditure,Computer Software,PHOENIX SOFTWARE LTD,12/03/2021,3384.04,,
"Communities, Customer & Commercial Services",ICT,Capital Expenditure,Payments to Contractor,PowerON Platforms Ltd,17/03/2021,960,,
"Communities, Customer & Commercial Services",ICT,Capital Expenditure,Fixtures & Fittings & Equipment,USystems Limited,15/03/2021,45484.83,,
"Communities, Customer & Commercial Services",ICT,Capital Expenditure,Payments to Contractor,Wave 9 Managed Services LTD,22/03/2021,1609.9,,
"Communities, Customer & Commercial Services",Sport & Leisure,Premises-Related Expenditure,Electricity,E.ON ,04/03/2021,283.76,,
"Communities, Customer & Commercial Services",Sport & Leisure,Supplies & Services,Provisions,On A Roll,23/03/2021,119.94,,
"Communities, Customer & Commercial Services",Sport & Leisure,Supplies & Services,Holidays & Outings,PLANGLOW LTD,04/03/2021,225.87,,
"Communities, Customer & Commercial Services",Sport & Leisure,Supplies & Services,Holidays & Outings,PLANGLOW LTD,04/03/2021,188.22,,
"Communities, Customer & Commercial Services",Sport & Leisure,Supplies & Services,Holidays & Outings,PLANGLOW LTD,08/03/2021,295.19,,
"Communities, Customer & Commercial Services",Sport & Leisure,Supplies & Services,Holidays & Outings,PLANGLOW LTD,08/03/2021,100.92,,
"Communities, Customer & Commercial Services",Sport & Leisure,Supplies & Services,Holidays & Outings,PLANGLOW LTD,08/03/2021,201.84,,
"Communities, Customer & Commercial Services",Sport & Leisure,Supplies & Services,Holidays & Outings,PLANGLOW LTD,08/03/2021,100.92,,
"Communities, Customer & Commercial Services",Sport & Leisure,Supplies & Services,Crockery/Hardware/Light Equip,PLANGLOW LTD,19/03/2021,427.71,,
"Communities, Customer & Commercial Services",Sport & Leisure,Supplies & Services,Crockery/Hardware/Light Equip,PLANGLOW LTD,15/03/2021,225.87,,
"Communities, Customer & Commercial Services",Sport & Leisure,Supplies & Services,Crockery/Hardware/Light Equip,PLANGLOW LTD,31/03/2021,225.87,,
"Communities, Customer & Commercial Services",Sport & Leisure,Supplies & Services,Crockery/Hardware/Light Equip,PLANGLOW LTD,31/03/2021,570.26,,
"Communities, Customer & Commercial Services",Sport & Leisure,Supplies & Services,Publications,ROYAL MAIL GROUP PLC ,04/03/2021,103.48,,
"Communities, Customer & Commercial Services",Sport & Leisure,Supplies & Services,Holidays & Outings,Vegware,04/03/2021,410.16,,
"Communities, Customer & Commercial Services",Sport & Leisure,Supplies & Services,Holidays & Outings,Vegware,08/03/2021,411.91,,
"Communities, Customer & Commercial Services",Sport & Leisure,Supplies & Services,Holidays & Outings,Vegware,08/03/2021,294.88,,
"Communities, Customer & Commercial Services",Sport & Leisure,Supplies & Services,Crockery/Hardware/Light Equip,Vegware,15/03/2021,280.24,,
"Communities, Customer & Commercial Services",Sport & Leisure,Supplies & Services,Crockery/Hardware/Light Equip,Vegware,15/03/2021,380.59,,
"Communities, Customer & Commercial Services",Sport & Leisure,Supplies & Services,Crockery/Hardware/Light Equip,Vegware,23/03/2021,189.74,,
"Communities, Customer & Commercial Services",Sport & Leisure,Supplies & Services,Crockery/Hardware/Light Equip,Vegware,31/03/2021,700.39,,
"Communities, Customer & Commercial Services",Sport & Leisure,Supplies & Services,Crockery/Hardware/Light Equip,Vegware,25/03/2021,137.92,,
"Communities, Customer & Commercial Services",Sport & Leisure,Supplies & Services,EEC Whole Milk,J DAIRIES,04/03/2021,241.51,,
"Communities, Customer & Commercial Services",Sport & Leisure,Supplies & Services,EEC Whole Milk,J DAIRIES,04/03/2021,461.19,,
"Communities, Customer & Commercial Services",Sport & Leisure,Supplies & Services,EEC Whole Milk,J DAIRIES,25/03/2021,770.68,,
"Communities, Customer & Commercial Services",Sport & Leisure,Supplies & Services,EEC Whole Milk,J DAIRIES,25/03/2021,1561.49,,
"Communities, Customer & Commercial Services",Sport & Leisure,Supplies & Services,EEC Whole Milk,J DAIRIES,17/03/2021,1751.98,,
"Communities, Customer & Commercial Services",Sport & Leisure,Supplies & Services,EEC Whole Milk,J DAIRIES,17/03/2021,745.27,,
"Communities, Customer & Commercial Services",Sport & Leisure,Supplies & Services,Provisions,BIKOLD,18/03/2021,100.57,,
"Communities, Customer & Commercial Services",Sport & Leisure,Premises-Related Expenditure,Clean Mats & Toilet Requisites,Border Janitorial Supplies Limited,17/03/2021,229.52,,
"Communities, Customer & Commercial Services",Sport & Leisure,Premises-Related Expenditure,Clean Mats & Toilet Requisites,Border Janitorial Supplies Limited,17/03/2021,148.77,,
"Communities, Customer & Commercial Services",Sport & Leisure,Premises-Related Expenditure,Clean Mats & Toilet Requisites,Border Janitorial Supplies Limited,17/03/2021,172.22,,
"Communities, Customer & Commercial Services",Sport & Leisure,Premises-Related Expenditure,Clean Mats & Toilet Requisites,Border Janitorial Supplies Limited,19/03/2021,128.9,,
"Communities, Customer & Commercial Services",Sport & Leisure,Premises-Related Expenditure,Clean Mats & Toilet Requisites,Border Janitorial Supplies Limited,19/03/2021,132.52,,
"Communities, Customer & Commercial Services",Sport & Leisure,Premises-Related Expenditure,Clean Mats & Toilet Requisites,Border Janitorial Supplies Limited,19/03/2021,260.28,,
"Communities, Customer & Commercial Services",Sport & Leisure,Premises-Related Expenditure,Clean Mats & Toilet Requisites,Border Janitorial Supplies Limited,15/03/2021,209.86,,
"Communities, Customer & Commercial Services",Sport & Leisure,Premises-Related Expenditure,Clean Mats & Toilet Requisites,Border Janitorial Supplies Limited,15/03/2021,281.81,,
"Communities, Customer & Commercial Services",Sport & Leisure,Premises-Related Expenditure,Trade Refuse,FCC Recycling (UK) Ltd,15/03/2021,236.08,,
"Communities, Customer & Commercial Services",Sport & Leisure,Supplies & Services,Provisions,BIKOLD,04/03/2021,501.13,,
"Communities, Customer & Commercial Services",Sport & Leisure,Supplies & Services,Provisions,BIKOLD,04/03/2021,160.15,,
"Communities, Customer & Commercial Services",Sport & Leisure,Supplies & Services,Provisions,BIKOLD,04/03/2021,145.64,,
"Communities, Customer & Commercial Services",Sport & Leisure,Supplies & Services,Provisions,BIKOLD,04/03/2021,120.14,,
"Communities, Customer & Commercial Services",Sport & Leisure,Supplies & Services,Provisions,BIKOLD,04/03/2021,165.65,,
"Communities, Customer & Commercial Services",Sport & Leisure,Supplies & Services,Provisions,BIKOLD,04/03/2021,106.06,,
"Communities, Customer & Commercial Services",Sport & Leisure,Supplies & Services,Provisions,BIKOLD,04/03/2021,201.86,,
"Communities, Customer & Commercial Services",Sport & Leisure,Supplies & Services,Provisions,BIKOLD,04/03/2021,146.59,,
"Communities, Customer & Commercial Services",Sport & Leisure,Supplies & Services,Provisions,BIKOLD,04/03/2021,157.66,,
"Communities, Customer & Commercial Services",Sport & Leisure,Supplies & Services,Provisions,BIKOLD,04/03/2021,119.73,,
"Communities, Customer & Commercial Services",Sport & Leisure,Supplies & Services,Provisions,BIKOLD,04/03/2021,109.88,,
"Communities, Customer & Commercial Services",Sport & Leisure,Supplies & Services,Provisions,BIKOLD,04/03/2021,310.44,,
"Communities, Customer & Commercial Services",Sport & Leisure,Supplies & Services,Provisions,BIKOLD,04/03/2021,170.85,,
"Communities, Customer & Commercial Services",Sport & Leisure,Supplies & Services,Provisions,BIKOLD,04/03/2021,147.15,,
"Communities, Customer & Commercial Services",Sport & Leisure,Supplies & Services,Provisions,BIKOLD,04/03/2021,322.43,,
"Communities, Customer & Commercial Services",Sport & Leisure,Supplies & Services,Provisions,BIKOLD,04/03/2021,140.01,,
"Communities, Customer & Commercial Services",Sport & Leisure,Supplies & Services,Provisions,BIKOLD,04/03/2021,158.78,,
"Communities, Customer & Commercial Services",Sport & Leisure,Supplies & Services,Provisions,BIKOLD,04/03/2021,131.71,,
"Communities, Customer & Commercial Services",Sport & Leisure,Supplies & Services,Provisions,BIKOLD,04/03/2021,178.05,,
"Communities, Customer & Commercial Services",Sport & Leisure,Supplies & Services,Provisions,BIKOLD,04/03/2021,184.72,,
"Communities, Customer & Commercial Services",Sport & Leisure,Supplies & Services,Provisions,BIKOLD,04/03/2021,127.64,,
"Communities, Customer & Commercial Services",Sport & Leisure,Supplies & Services,Provisions,BIKOLD,04/03/2021,112.44,,
"Communities, Customer & Commercial Services",Sport & Leisure,Supplies & Services,Provisions,BIKOLD,04/03/2021,123.98,,
"Communities, Customer & Commercial Services",Sport & Leisure,Supplies & Services,Provisions,BIKOLD,04/03/2021,271.37,,
"Communities, Customer & Commercial Services",Sport & Leisure,Supplies & Services,Provisions,BIKOLD,04/03/2021,246.71,,
"Communities, Customer & Commercial Services",Sport & Leisure,Supplies & Services,Provisions,BIKOLD,04/03/2021,212.45,,
"Communities, Customer & Commercial Services",Sport & Leisure,Supplies & Services,Provisions,BIKOLD,04/03/2021,184.74,,
"Communities, Customer & Commercial Services",Sport & Leisure,Supplies & Services,Provisions,BIKOLD,04/03/2021,149.61,,
"Communities, Customer & Commercial Services",Sport & Leisure,Supplies & Services,Provisions,BIKOLD,04/03/2021,140.26,,
"Communities, Customer & Commercial Services",Sport & Leisure,Supplies & Services,Provisions,BIKOLD,04/03/2021,224.93,,
"Communities, Customer & Commercial Services",Sport & Leisure,Supplies & Services,Provisions,BIKOLD,04/03/2021,184.97,,
"Communities, Customer & Commercial Services",Sport & Leisure,Supplies & Services,Provisions,BIKOLD,04/03/2021,166.58,,
"Communities, Customer & Commercial Services",Sport & Leisure,Supplies & Services,Provisions,BIKOLD,04/03/2021,108.66,,
"Communities, Customer & Commercial Services",Sport & Leisure,Supplies & Services,Provisions,BIKOLD,04/03/2021,157.19,,
"Communities, Customer & Commercial Services",Sport & Leisure,Supplies & Services,Provisions,BIKOLD,04/03/2021,124.23,,
"Communities, Customer & Commercial Services",Sport & Leisure,Supplies & Services,Provisions,BIKOLD,04/03/2021,183.18,,
"Communities, Customer & Commercial Services",Sport & Leisure,Supplies & Services,Provisions,BIKOLD,04/03/2021,420.46,,
"Communities, Customer & Commercial Services",Sport & Leisure,Supplies & Services,Provisions,BIKOLD,04/03/2021,157.61,,
"Communities, Customer & Commercial Services",Sport & Leisure,Supplies & Services,Provisions,BIKOLD,04/03/2021,122.71,,
"Communities, Customer & Commercial Services",Sport & Leisure,Supplies & Services,Provisions,BIKOLD,04/03/2021,116.42,,
"Communities, Customer & Commercial Services",Sport & Leisure,Supplies & Services,Provisions,BIKOLD,04/03/2021,421.02,,
"Communities, Customer & Commercial Services",Sport & Leisure,Supplies & Services,Provisions,BIKOLD,04/03/2021,111.86,,
"Communities, Customer & Commercial Services",Sport & Leisure,Supplies & Services,Provisions,BIKOLD,04/03/2021,110.61,,
"Communities, Customer & Commercial Services",Sport & Leisure,Supplies & Services,Provisions,BIKOLD,04/03/2021,252.57,,
"Communities, Customer & Commercial Services",Sport & Leisure,Supplies & Services,Provisions,BIKOLD,04/03/2021,158.29,,
"Communities, Customer & Commercial Services",Sport & Leisure,Supplies & Services,Provisions,BIKOLD,04/03/2021,245.5,,
"Communities, Customer & Commercial Services",Sport & Leisure,Supplies & Services,Provisions,BIKOLD,04/03/2021,198.5,,
"Communities, Customer & Commercial Services",Sport & Leisure,Supplies & Services,Provisions,BIKOLD,04/03/2021,309.55,,
"Communities, Customer & Commercial Services",Sport & Leisure,Supplies & Services,Provisions,BIKOLD,25/03/2021,146.12,,
"Communities, Customer & Commercial Services",Sport & Leisure,Supplies & Services,Provisions,BIKOLD,04/03/2021,258.25,,
"Communities, Customer & Commercial Services",Sport & Leisure,Supplies & Services,Provisions,BIKOLD,04/03/2021,328.78,,
"Communities, Customer & Commercial Services",Sport & Leisure,Supplies & Services,Provisions,BIKOLD,04/03/2021,174.29,,
"Communities, Customer & Commercial Services",Sport & Leisure,Supplies & Services,Provisions,BIKOLD,04/03/2021,277.44,,
"Communities, Customer & Commercial Services",Sport & Leisure,Supplies & Services,Provisions,BIKOLD,04/03/2021,104.58,,
"Communities, Customer & Commercial Services",Sport & Leisure,Supplies & Services,Provisions,BIKOLD,04/03/2021,178.32,,
"Communities, Customer & Commercial Services",Sport & Leisure,Supplies & Services,Provisions,BIKOLD,04/03/2021,123.94,,
"Communities, Customer & Commercial Services",Sport & Leisure,Supplies & Services,Provisions,BIKOLD,04/03/2021,281.3,,
"Communities, Customer & Commercial Services",Sport & Leisure,Supplies & Services,Provisions,BIKOLD,25/03/2021,245.15,,
"Communities, Customer & Commercial Services",Sport & Leisure,Supplies & Services,Provisions,BIKOLD,25/03/2021,104.03,,
"Communities, Customer & Commercial Services",Sport & Leisure,Supplies & Services,Provisions,BIKOLD,25/03/2021,177.48,,
"Communities, Customer & Commercial Services",Sport & Leisure,Supplies & Services,Provisions,BIKOLD,25/03/2021,131.27,,
"Communities, Customer & Commercial Services",Sport & Leisure,Supplies & Services,Provisions,BIKOLD,04/03/2021,108.98,,
"Communities, Customer & Commercial Services",Sport & Leisure,Supplies & Services,Provisions,BIKOLD,04/03/2021,234,,
"Communities, Customer & Commercial Services",Sport & Leisure,Supplies & Services,Provisions,BIKOLD,04/03/2021,106.6,,
"Communities, Customer & Commercial Services",Sport & Leisure,Supplies & Services,Provisions,BIKOLD,25/03/2021,345.88,,
"Communities, Customer & Commercial Services",Sport & Leisure,Supplies & Services,Provisions,BIKOLD,25/03/2021,411.48,,
"Communities, Customer & Commercial Services",Sport & Leisure,Supplies & Services,Provisions,BIKOLD,25/03/2021,196.21,,
"Communities, Customer & Commercial Services",Sport & Leisure,Supplies & Services,Provisions,BIKOLD,25/03/2021,132.74,,
"Communities, Customer & Commercial Services",Sport & Leisure,Supplies & Services,Provisions,BIKOLD,25/03/2021,148.67,,
"Communities, Customer & Commercial Services",Sport & Leisure,Supplies & Services,Provisions,BIKOLD,25/03/2021,291.63,,
"Communities, Customer & Commercial Services",Sport & Leisure,Supplies & Services,Provisions,BIKOLD,25/03/2021,279.07,,
"Communities, Customer & Commercial Services",Sport & Leisure,Supplies & Services,Provisions,BIKOLD,25/03/2021,316.69,,
"Communities, Customer & Commercial Services",Sport & Leisure,Supplies & Services,Provisions,BIKOLD,25/03/2021,214.29,,
"Communities, Customer & Commercial Services",Sport & Leisure,Supplies & Services,Provisions,BIKOLD,25/03/2021,249.9,,
"Communities, Customer & Commercial Services",Sport & Leisure,Supplies & Services,Provisions,BIKOLD,25/03/2021,187.83,,
"Communities, Customer & Commercial Services",Sport & Leisure,Supplies & Services,Provisions,BIKOLD,25/03/2021,103.64,,
"Communities, Customer & Commercial Services",Sport & Leisure,Supplies & Services,Provisions,BIKOLD,25/03/2021,146.86,,
"Communities, Customer & Commercial Services",Sport & Leisure,Supplies & Services,Provisions,BIKOLD,25/03/2021,123.28,,
"Communities, Customer & Commercial Services",Sport & Leisure,Supplies & Services,Provisions,BIKOLD,25/03/2021,129.86,,
"Communities, Customer & Commercial Services",Sport & Leisure,Supplies & Services,Provisions,BIKOLD,25/03/2021,133.52,,
"Communities, Customer & Commercial Services",Sport & Leisure,Supplies & Services,Provisions,BIKOLD,25/03/2021,107.06,,
"Communities, Customer & Commercial Services",Sport & Leisure,Supplies & Services,Provisions,BIKOLD,25/03/2021,286.9,,
"Communities, Customer & Commercial Services",Sport & Leisure,Supplies & Services,Provisions,BIKOLD,25/03/2021,154.13,,
"Communities, Customer & Commercial Services",Sport & Leisure,Supplies & Services,Provisions,BIKOLD,25/03/2021,422.14,,
"Communities, Customer & Commercial Services",Sport & Leisure,Supplies & Services,Provisions,BIKOLD,25/03/2021,119.65,,
"Communities, Customer & Commercial Services",Sport & Leisure,Supplies & Services,Provisions,BIKOLD,25/03/2021,268.72,,
"Communities, Customer & Commercial Services",Sport & Leisure,Supplies & Services,Provisions,BIKOLD,25/03/2021,153.76,,
"Communities, Customer & Commercial Services",Sport & Leisure,Supplies & Services,Provisions,BIKOLD,25/03/2021,172.9,,
"Communities, Customer & Commercial Services",Sport & Leisure,Supplies & Services,Provisions,BIKOLD,25/03/2021,116.97,,
"Communities, Customer & Commercial Services",Sport & Leisure,Supplies & Services,Provisions,BIKOLD,25/03/2021,439.38,,
"Communities, Customer & Commercial Services",Sport & Leisure,Supplies & Services,Provisions,BIKOLD,25/03/2021,275.28,,
"Communities, Customer & Commercial Services",Sport & Leisure,Supplies & Services,Provisions,BIKOLD,25/03/2021,110.61,,
"Communities, Customer & Commercial Services",Sport & Leisure,Supplies & Services,Provisions,BIKOLD,25/03/2021,171.55,,
"Communities, Customer & Commercial Services",Sport & Leisure,Supplies & Services,Provisions,BIKOLD,25/03/2021,116.68,,
"Communities, Customer & Commercial Services",Sport & Leisure,Supplies & Services,Provisions,BIKOLD,25/03/2021,147.28,,
"Communities, Customer & Commercial Services",Sport & Leisure,Supplies & Services,Provisions,BIKOLD,25/03/2021,100.17,,
"Communities, Customer & Commercial Services",Sport & Leisure,Supplies & Services,Provisions,BIKOLD,12/03/2021,179,,
"Communities, Customer & Commercial Services",Sport & Leisure,Supplies & Services,Provisions,BIKOLD,12/03/2021,122.24,,
"Communities, Customer & Commercial Services",Sport & Leisure,Supplies & Services,Provisions,BIKOLD,25/03/2021,132.16,,
"Communities, Customer & Commercial Services",Sport & Leisure,Supplies & Services,Provisions,BIKOLD,25/03/2021,127.92,,
"Communities, Customer & Commercial Services",Sport & Leisure,Supplies & Services,Provisions,BIKOLD,25/03/2021,108.8,,
"Communities, Customer & Commercial Services",Sport & Leisure,Supplies & Services,Provisions,BIKOLD,25/03/2021,179.44,,
"Communities, Customer & Commercial Services",Sport & Leisure,Supplies & Services,Provisions,BIKOLD,25/03/2021,186.26,,
"Communities, Customer & Commercial Services",Sport & Leisure,Supplies & Services,Provisions,BIKOLD,12/03/2021,209.55,,
"Communities, Customer & Commercial Services",Sport & Leisure,Supplies & Services,Provisions,BIKOLD,12/03/2021,223.32,,
"Communities, Customer & Commercial Services",Sport & Leisure,Supplies & Services,Provisions,BIKOLD,25/03/2021,-146.07,,
"Communities, Customer & Commercial Services",Sport & Leisure,Supplies & Services,Provisions,BIKOLD,25/03/2021,149.76,,
"Communities, Customer & Commercial Services",Sport & Leisure,Supplies & Services,Provisions,BIKOLD,25/03/2021,126.22,,
"Communities, Customer & Commercial Services",Sport & Leisure,Supplies & Services,Provisions,BIKOLD,25/03/2021,124.87,,
"Communities, Customer & Commercial Services",Sport & Leisure,Supplies & Services,Provisions,BIKOLD,25/03/2021,119.59,,
"Communities, Customer & Commercial Services",Sport & Leisure,Supplies & Services,Provisions,BIKOLD,25/03/2021,146,,
"Communities, Customer & Commercial Services",Sport & Leisure,Supplies & Services,Provisions,BIKOLD,25/03/2021,305.75,,
"Communities, Customer & Commercial Services",Sport & Leisure,Supplies & Services,Provisions,BIKOLD,25/03/2021,244.95,,
"Communities, Customer & Commercial Services",Sport & Leisure,Supplies & Services,Provisions,BIKOLD,25/03/2021,407.44,,
"Communities, Customer & Commercial Services",Sport & Leisure,Supplies & Services,Provisions,BIKOLD,25/03/2021,278.4,,
"Communities, Customer & Commercial Services",Sport & Leisure,Supplies & Services,Provisions,BIKOLD,25/03/2021,468.36,,
"Communities, Customer & Commercial Services",Sport & Leisure,Supplies & Services,Provisions,BIKOLD,12/03/2021,579.43,,
"Communities, Customer & Commercial Services",Sport & Leisure,Supplies & Services,Provisions,BIKOLD,25/03/2021,196.97,,
"Communities, Customer & Commercial Services",Sport & Leisure,Supplies & Services,Provisions,BIKOLD,25/03/2021,162.3,,
"Communities, Customer & Commercial Services",Sport & Leisure,Supplies & Services,Provisions,BIKOLD,25/03/2021,125.45,,
"Communities, Customer & Commercial Services",Sport & Leisure,Supplies & Services,Provisions,BIKOLD,25/03/2021,167.78,,
"Communities, Customer & Commercial Services",Sport & Leisure,Supplies & Services,Provisions,BIKOLD,25/03/2021,104.14,,
"Communities, Customer & Commercial Services",Sport & Leisure,Supplies & Services,Provisions,BIKOLD,25/03/2021,146.07,,
"Communities, Customer & Commercial Services",Sport & Leisure,Supplies & Services,Provisions,BIKOLD,25/03/2021,118.88,,
"Communities, Customer & Commercial Services",Sport & Leisure,Supplies & Services,Provisions,BIKOLD,25/03/2021,103.29,,
"Communities, Customer & Commercial Services",Sport & Leisure,Supplies & Services,Provisions,BIKOLD,25/03/2021,114,,
"Communities, Customer & Commercial Services",Sport & Leisure,Supplies & Services,Provisions,BIKOLD,25/03/2021,120.41,,
"Communities, Customer & Commercial Services",Sport & Leisure,Supplies & Services,Provisions,BIKOLD,25/03/2021,163.8,,
"Communities, Customer & Commercial Services",Sport & Leisure,Supplies & Services,Provisions,BIKOLD,25/03/2021,146.06,,
"Communities, Customer & Commercial Services",Sport & Leisure,Supplies & Services,Provisions,BIKOLD,25/03/2021,147.8,,
"Communities, Customer & Commercial Services",Sport & Leisure,Supplies & Services,Provisions,BIKOLD,25/03/2021,152.75,,
"Communities, Customer & Commercial Services",Sport & Leisure,Supplies & Services,Provisions,BIKOLD,12/03/2021,174.41,,
"Communities, Customer & Commercial Services",Sport & Leisure,Supplies & Services,Provisions,BIKOLD,12/03/2021,116.63,,
"Communities, Customer & Commercial Services",Sport & Leisure,Supplies & Services,Provisions,BIKOLD,12/03/2021,125.29,,
"Communities, Customer & Commercial Services",Sport & Leisure,Supplies & Services,Provisions,BIKOLD,12/03/2021,308.99,,
"Communities, Customer & Commercial Services",Sport & Leisure,Supplies & Services,Provisions,BIKOLD,12/03/2021,214.95,,
"Communities, Customer & Commercial Services",Sport & Leisure,Supplies & Services,Provisions,BIKOLD,12/03/2021,313.39,,
"Communities, Customer & Commercial Services",Sport & Leisure,Supplies & Services,Provisions,BIKOLD,12/03/2021,130.9,,
"Communities, Customer & Commercial Services",Sport & Leisure,Supplies & Services,Provisions,BIKOLD,12/03/2021,326.86,,
"Communities, Customer & Commercial Services",Sport & Leisure,Supplies & Services,Provisions,BIKOLD,12/03/2021,329.7,,
"Communities, Customer & Commercial Services",Sport & Leisure,Supplies & Services,Provisions,BIKOLD,12/03/2021,117.46,,
"Communities, Customer & Commercial Services",Sport & Leisure,Supplies & Services,Provisions,BIKOLD,12/03/2021,124.12,,
"Communities, Customer & Commercial Services",Sport & Leisure,Supplies & Services,Provisions,BIKOLD,12/03/2021,215.66,,
"Communities, Customer & Commercial Services",Sport & Leisure,Supplies & Services,Provisions,BIKOLD,25/03/2021,150.16,,
"Communities, Customer & Commercial Services",Sport & Leisure,Supplies & Services,Provisions,BIKOLD,25/03/2021,120.5,,
"Communities, Customer & Commercial Services",Sport & Leisure,Supplies & Services,Provisions,BIKOLD,12/03/2021,118.77,,
"Communities, Customer & Commercial Services",Sport & Leisure,Supplies & Services,Provisions,BIKOLD,25/03/2021,138.74,,
"Communities, Customer & Commercial Services",Sport & Leisure,Supplies & Services,Provisions,BIKOLD,25/03/2021,101.3,,
"Communities, Customer & Commercial Services",Sport & Leisure,Supplies & Services,Provisions,BIKOLD,25/03/2021,114.16,,
"Communities, Customer & Commercial Services",Sport & Leisure,Supplies & Services,Provisions,BIKOLD,25/03/2021,118.15,,
"Communities, Customer & Commercial Services",Sport & Leisure,Supplies & Services,Provisions,BIKOLD,12/03/2021,215.61,,
"Communities, Customer & Commercial Services",Sport & Leisure,Supplies & Services,Provisions,BIKOLD,25/03/2021,161.35,,
"Communities, Customer & Commercial Services",Sport & Leisure,Supplies & Services,Provisions,BIKOLD,25/03/2021,262.45,,
"Communities, Customer & Commercial Services",Sport & Leisure,Supplies & Services,Provisions,BIKOLD,25/03/2021,194.29,,
"Communities, Customer & Commercial Services",Sport & Leisure,Supplies & Services,Provisions,BIKOLD,25/03/2021,322.4,,
"Communities, Customer & Commercial Services",Sport & Leisure,Supplies & Services,Provisions,BIKOLD,25/03/2021,144.18,,
"Communities, Customer & Commercial Services",Sport & Leisure,Supplies & Services,Provisions,BIKOLD,25/03/2021,384.51,,
"Communities, Customer & Commercial Services",Sport & Leisure,Supplies & Services,Provisions,BIKOLD,12/03/2021,273.4,,
"Communities, Customer & Commercial Services",Sport & Leisure,Supplies & Services,Provisions,BIKOLD,12/03/2021,197.93,,
"Communities, Customer & Commercial Services",Sport & Leisure,Supplies & Services,Provisions,BIKOLD,25/03/2021,156.75,,
"Communities, Customer & Commercial Services",Sport & Leisure,Supplies & Services,Provisions,BIKOLD,25/03/2021,357.93,,
"Communities, Customer & Commercial Services",Sport & Leisure,Supplies & Services,Provisions,BIKOLD,12/03/2021,126.66,,
"Communities, Customer & Commercial Services",Sport & Leisure,Supplies & Services,Provisions,BIKOLD,12/03/2021,255.53,,
"Communities, Customer & Commercial Services",Sport & Leisure,Supplies & Services,Provisions,BIKOLD,12/03/2021,162.56,,
"Communities, Customer & Commercial Services",Sport & Leisure,Supplies & Services,Provisions,BIKOLD,12/03/2021,274.7,,
"Communities, Customer & Commercial Services",Sport & Leisure,Supplies & Services,Provisions,BIKOLD,25/03/2021,110.05,,
"Communities, Customer & Commercial Services",Sport & Leisure,Supplies & Services,Provisions,BIKOLD,25/03/2021,180.62,,
"Communities, Customer & Commercial Services",Sport & Leisure,Supplies & Services,Provisions,BIKOLD,25/03/2021,235.88,,
"Communities, Customer & Commercial Services",Sport & Leisure,Supplies & Services,Provisions,BIKOLD,12/03/2021,186.92,,
"Communities, Customer & Commercial Services",Sport & Leisure,Supplies & Services,Provisions,BIKOLD,12/03/2021,284.46,,
"Communities, Customer & Commercial Services",Sport & Leisure,Supplies & Services,Provisions,BIKOLD,12/03/2021,106.92,,
"Communities, Customer & Commercial Services",Sport & Leisure,Supplies & Services,Provisions,BIKOLD,12/03/2021,115.11,,
"Communities, Customer & Commercial Services",Sport & Leisure,Supplies & Services,Provisions,BIKOLD,12/03/2021,344.3,,
"Communities, Customer & Commercial Services",Sport & Leisure,Supplies & Services,Provisions,BIKOLD,12/03/2021,304.14,,
"Communities, Customer & Commercial Services",Sport & Leisure,Supplies & Services,Provisions,BIKOLD,12/03/2021,157.78,,
"Communities, Customer & Commercial Services",Sport & Leisure,Supplies & Services,Provisions,BIKOLD,12/03/2021,111.65,,
"Communities, Customer & Commercial Services",Sport & Leisure,Supplies & Services,Provisions,BIKOLD,12/03/2021,109.13,,
"Communities, Customer & Commercial Services",Sport & Leisure,Supplies & Services,Provisions,BIKOLD,25/03/2021,321.15,,
"Communities, Customer & Commercial Services",Sport & Leisure,Supplies & Services,Provisions,BIKOLD,25/03/2021,140.28,,
"Communities, Customer & Commercial Services",Sport & Leisure,Supplies & Services,Provisions,BIKOLD,25/03/2021,287.02,,
"Communities, Customer & Commercial Services",Sport & Leisure,Supplies & Services,Provisions,BIKOLD,25/03/2021,304.37,,
"Communities, Customer & Commercial Services",Sport & Leisure,Supplies & Services,Provisions,BIKOLD,25/03/2021,119.9,,
"Communities, Customer & Commercial Services",Sport & Leisure,Supplies & Services,Provisions,BIKOLD,25/03/2021,362.33,,
"Communities, Customer & Commercial Services",Sport & Leisure,Supplies & Services,Provisions,BIKOLD,25/03/2021,183.15,,
"Communities, Customer & Commercial Services",Sport & Leisure,Supplies & Services,Provisions,BIKOLD,25/03/2021,172.15,,
"Communities, Customer & Commercial Services",Sport & Leisure,Supplies & Services,Provisions,BIKOLD,25/03/2021,103.29,,
"Communities, Customer & Commercial Services",Sport & Leisure,Supplies & Services,Provisions,BIKOLD,25/03/2021,134.71,,
"Communities, Customer & Commercial Services",Sport & Leisure,Supplies & Services,Provisions,BIKOLD,25/03/2021,163.88,,
"Communities, Customer & Commercial Services",Sport & Leisure,Supplies & Services,Provisions,BIKOLD,25/03/2021,172.68,,
"Communities, Customer & Commercial Services",Sport & Leisure,Supplies & Services,Provisions,BIKOLD,25/03/2021,217.56,,
"Communities, Customer & Commercial Services",Sport & Leisure,Supplies & Services,Provisions,BIKOLD,25/03/2021,183.47,,
"Communities, Customer & Commercial Services",Sport & Leisure,Supplies & Services,Provisions,BIKOLD,25/03/2021,123.67,,
"Communities, Customer & Commercial Services",Sport & Leisure,Supplies & Services,Provisions,BIKOLD,25/03/2021,258.47,,
"Communities, Customer & Commercial Services",Sport & Leisure,Supplies & Services,Provisions,BIKOLD,12/03/2021,122.04,,
"Communities, Customer & Commercial Services",Sport & Leisure,Supplies & Services,Provisions,BIKOLD,12/03/2021,101.46,,
"Communities, Customer & Commercial Services",Sport & Leisure,Supplies & Services,Provisions,BIKOLD,12/03/2021,121.72,,
"Communities, Customer & Commercial Services",Sport & Leisure,Supplies & Services,Provisions,BIKOLD,12/03/2021,165.55,,
"Communities, Customer & Commercial Services",Sport & Leisure,Supplies & Services,Provisions,BIKOLD,12/03/2021,118.98,,
"Communities, Customer & Commercial Services",Sport & Leisure,Supplies & Services,Provisions,BIKOLD,12/03/2021,158.4,,
"Communities, Customer & Commercial Services",Sport & Leisure,Supplies & Services,Provisions,BIKOLD,12/03/2021,355.9,,
"Communities, Customer & Commercial Services",Sport & Leisure,Supplies & Services,Provisions,BIKOLD,12/03/2021,176.7,,
"Communities, Customer & Commercial Services",Sport & Leisure,Supplies & Services,Provisions,BIKOLD,12/03/2021,147,,
"Communities, Customer & Commercial Services",Sport & Leisure,Supplies & Services,Provisions,BIKOLD,12/03/2021,101.94,,
"Communities, Customer & Commercial Services",Sport & Leisure,Supplies & Services,Provisions,BIKOLD,12/03/2021,368.67,,
"Communities, Customer & Commercial Services",Sport & Leisure,Supplies & Services,Provisions,BIKOLD,12/03/2021,349.6,,
"Communities, Customer & Commercial Services",Sport & Leisure,Supplies & Services,Provisions,BIKOLD,12/03/2021,223.33,,
"Communities, Customer & Commercial Services",Sport & Leisure,Supplies & Services,Provisions,BIKOLD,12/03/2021,151.11,,
"Communities, Customer & Commercial Services",Sport & Leisure,Supplies & Services,Provisions,BIKOLD,12/03/2021,190.47,,
"Communities, Customer & Commercial Services",Sport & Leisure,Supplies & Services,Provisions,BIKOLD,12/03/2021,163.46,,
"Communities, Customer & Commercial Services",Sport & Leisure,Supplies & Services,Provisions,BIKOLD,12/03/2021,127.23,,
"Communities, Customer & Commercial Services",Sport & Leisure,Supplies & Services,Provisions,BIKOLD,12/03/2021,114.23,,
"Communities, Customer & Commercial Services",Sport & Leisure,Supplies & Services,Provisions,BIKOLD,12/03/2021,116.71,,
"Communities, Customer & Commercial Services",Sport & Leisure,Supplies & Services,Provisions,BIKOLD,12/03/2021,115.26,,
"Communities, Customer & Commercial Services",Sport & Leisure,Supplies & Services,Provisions,BIKOLD,12/03/2021,410.63,,
"Communities, Customer & Commercial Services",Sport & Leisure,Supplies & Services,Provisions,BIKOLD,12/03/2021,197.8,,
"Communities, Customer & Commercial Services",Sport & Leisure,Supplies & Services,Provisions,BIKOLD,12/03/2021,331.63,,
"Communities, Customer & Commercial Services",Sport & Leisure,Supplies & Services,Provisions,BIKOLD,12/03/2021,166.16,,
"Communities, Customer & Commercial Services",Sport & Leisure,Supplies & Services,Provisions,BIKOLD,12/03/2021,199.28,,
"Communities, Customer & Commercial Services",Sport & Leisure,Supplies & Services,Provisions,BIKOLD,12/03/2021,435.92,,
"Communities, Customer & Commercial Services",Sport & Leisure,Supplies & Services,Provisions,BIKOLD,25/03/2021,183.44,,
"Communities, Customer & Commercial Services",Sport & Leisure,Supplies & Services,Provisions,BIKOLD,12/03/2021,134.52,,
"Communities, Customer & Commercial Services",Sport & Leisure,Supplies & Services,Provisions,BIKOLD,12/03/2021,171.44,,
"Communities, Customer & Commercial Services",Sport & Leisure,Supplies & Services,Provisions,BIKOLD,12/03/2021,345.89,,
"Communities, Customer & Commercial Services",Sport & Leisure,Supplies & Services,Provisions,BIKOLD,12/03/2021,204.66,,
"Communities, Customer & Commercial Services",Sport & Leisure,Supplies & Services,Provisions,BIKOLD,12/03/2021,162.36,,
"Communities, Customer & Commercial Services",Sport & Leisure,Supplies & Services,Provisions,BIKOLD,12/03/2021,139.84,,
"Communities, Customer & Commercial Services",Sport & Leisure,Supplies & Services,Provisions,BIKOLD,12/03/2021,311.98,,
"Communities, Customer & Commercial Services",Sport & Leisure,Supplies & Services,Provisions,BIKOLD,12/03/2021,121.44,,
"Communities, Customer & Commercial Services",Sport & Leisure,Supplies & Services,Provisions,BIKOLD,12/03/2021,143.25,,
"Communities, Customer & Commercial Services",Sport & Leisure,Supplies & Services,Provisions,BIKOLD,12/03/2021,320.18,,
"Communities, Customer & Commercial Services",Sport & Leisure,Supplies & Services,Provisions,BIKOLD,12/03/2021,174.13,,
"Communities, Customer & Commercial Services",Sport & Leisure,Supplies & Services,Provisions,BIKOLD,12/03/2021,136.43,,
"Communities, Customer & Commercial Services",Sport & Leisure,Supplies & Services,Provisions,BIKOLD,12/03/2021,127.09,,
"Communities, Customer & Commercial Services",Sport & Leisure,Supplies & Services,Provisions,BIKOLD,12/03/2021,130.47,,
"Communities, Customer & Commercial Services",Sport & Leisure,Supplies & Services,Provisions,BIKOLD,12/03/2021,115.94,,
"Communities, Customer & Commercial Services",Sport & Leisure,Supplies & Services,Provisions,BIKOLD,12/03/2021,219.3,,
"Communities, Customer & Commercial Services",Sport & Leisure,Supplies & Services,Provisions,BIKOLD,12/03/2021,133.85,,
"Communities, Customer & Commercial Services",Sport & Leisure,Supplies & Services,Provisions,BIKOLD,12/03/2021,100.35,,
"Communities, Customer & Commercial Services",Sport & Leisure,Supplies & Services,Provisions,BIKOLD,12/03/2021,116.89,,
"Communities, Customer & Commercial Services",Sport & Leisure,Supplies & Services,Provisions,BIKOLD,12/03/2021,199.22,,
"Communities, Customer & Commercial Services",Sport & Leisure,Supplies & Services,Provisions,BIKOLD,12/03/2021,350.42,,
"Communities, Customer & Commercial Services",Sport & Leisure,Supplies & Services,Provisions,BIKOLD,12/03/2021,189.27,,
"Communities, Customer & Commercial Services",Sport & Leisure,Supplies & Services,Provisions,BIKOLD,12/03/2021,215.77,,
"Communities, Customer & Commercial Services",Sport & Leisure,Supplies & Services,Provisions,BIKOLD,12/03/2021,104.26,,
"Communities, Customer & Commercial Services",Sport & Leisure,Supplies & Services,Provisions,BIKOLD,12/03/2021,364.2,,
"Communities, Customer & Commercial Services",Sport & Leisure,Supplies & Services,Provisions,BIKOLD,12/03/2021,101.25,,
"Communities, Customer & Commercial Services",Sport & Leisure,Supplies & Services,Provisions,BIKOLD,12/03/2021,122.32,,
"Communities, Customer & Commercial Services",Sport & Leisure,Supplies & Services,Provisions,BIKOLD,12/03/2021,161.45,,
"Communities, Customer & Commercial Services",Sport & Leisure,Supplies & Services,Provisions,BIKOLD,12/03/2021,217.01,,
"Communities, Customer & Commercial Services",Sport & Leisure,Supplies & Services,Provisions,BIKOLD,12/03/2021,162.74,,
"Communities, Customer & Commercial Services",Sport & Leisure,Supplies & Services,Provisions,BIKOLD,12/03/2021,282.94,,
"Communities, Customer & Commercial Services",Sport & Leisure,Supplies & Services,Provisions,BIKOLD,12/03/2021,181.49,,
"Communities, Customer & Commercial Services",Sport & Leisure,Supplies & Services,Provisions,BIKOLD,12/03/2021,120.89,,
"Communities, Customer & Commercial Services",Sport & Leisure,Supplies & Services,Provisions,BIKOLD,12/03/2021,100.94,,
"Communities, Customer & Commercial Services",Sport & Leisure,Supplies & Services,Provisions,BIKOLD,12/03/2021,195.61,,
"Communities, Customer & Commercial Services",Sport & Leisure,Supplies & Services,Provisions,BIKOLD,12/03/2021,177.31,,
"Communities, Customer & Commercial Services",Sport & Leisure,Supplies & Services,Provisions,BIKOLD,18/03/2021,106.3,,
"Communities, Customer & Commercial Services",Sport & Leisure,Supplies & Services,Provisions,BIKOLD,18/03/2021,166.26,,
"Communities, Customer & Commercial Services",Sport & Leisure,Supplies & Services,Provisions,BIKOLD,18/03/2021,144.52,,
"Communities, Customer & Commercial Services",Sport & Leisure,Supplies & Services,Provisions,BIKOLD,18/03/2021,247.18,,
"Communities, Customer & Commercial Services",Sport & Leisure,Supplies & Services,Provisions,BIKOLD,18/03/2021,144.25,,
"Communities, Customer & Commercial Services",Sport & Leisure,Supplies & Services,Provisions,BIKOLD,18/03/2021,175.98,,
"Communities, Customer & Commercial Services",Sport & Leisure,Supplies & Services,Provisions,BIKOLD,18/03/2021,328.3,,
"Communities, Customer & Commercial Services",Sport & Leisure,Supplies & Services,Provisions,BIKOLD,18/03/2021,153.45,,
"Communities, Customer & Commercial Services",Sport & Leisure,Supplies & Services,Provisions,BIKOLD,18/03/2021,817.87,,
"Communities, Customer & Commercial Services",Sport & Leisure,Supplies & Services,Provisions,BIKOLD,18/03/2021,135.42,,
"Communities, Customer & Commercial Services",Sport & Leisure,Supplies & Services,Provisions,BIKOLD,18/03/2021,127.32,,
"Communities, Customer & Commercial Services",Sport & Leisure,Supplies & Services,Provisions,BIKOLD,18/03/2021,115.53,,
"Communities, Customer & Commercial Services",Sport & Leisure,Supplies & Services,Provisions,BIKOLD,18/03/2021,402.3,,
"Communities, Customer & Commercial Services",Sport & Leisure,Supplies & Services,Provisions,BIKOLD,18/03/2021,341.92,,
"Communities, Customer & Commercial Services",Sport & Leisure,Supplies & Services,Provisions,BIKOLD,18/03/2021,345.99,,
"Communities, Customer & Commercial Services",Sport & Leisure,Supplies & Services,Provisions,BIKOLD,18/03/2021,145.84,,
"Communities, Customer & Commercial Services",Sport & Leisure,Supplies & Services,Provisions,BIKOLD,18/03/2021,162.41,,
"Communities, Customer & Commercial Services",Sport & Leisure,Supplies & Services,Provisions,BIKOLD,18/03/2021,331.26,,
"Communities, Customer & Commercial Services",Sport & Leisure,Supplies & Services,Provisions,BIKOLD,18/03/2021,219.84,,
"Communities, Customer & Commercial Services",Sport & Leisure,Supplies & Services,Provisions,BIKOLD,18/03/2021,228.31,,
"Communities, Customer & Commercial Services",Sport & Leisure,Supplies & Services,Provisions,BIKOLD,18/03/2021,155.03,,
"Communities, Customer & Commercial Services",Sport & Leisure,Supplies & Services,Provisions,BIKOLD,18/03/2021,204.72,,
"Communities, Customer & Commercial Services",Sport & Leisure,Supplies & Services,Provisions,BIKOLD,18/03/2021,518.21,,
"Communities, Customer & Commercial Services",Sport & Leisure,Supplies & Services,Provisions,BIKOLD,18/03/2021,104.59,,
"Communities, Customer & Commercial Services",Sport & Leisure,Supplies & Services,Provisions,BIKOLD,18/03/2021,117.12,,
"Communities, Customer & Commercial Services",Sport & Leisure,Supplies & Services,Provisions,BIKOLD,18/03/2021,100.07,,
"Communities, Customer & Commercial Services",Sport & Leisure,Supplies & Services,Provisions,BIKOLD,18/03/2021,192.57,,
"Communities, Customer & Commercial Services",Sport & Leisure,Supplies & Services,Provisions,BIKOLD,18/03/2021,377.51,,
"Communities, Customer & Commercial Services",Sport & Leisure,Supplies & Services,Provisions,BIKOLD,18/03/2021,226.94,,
"Communities, Customer & Commercial Services",Sport & Leisure,Supplies & Services,Provisions,BIKOLD,18/03/2021,409.7,,
"Communities, Customer & Commercial Services",Sport & Leisure,Supplies & Services,Provisions,BIKOLD,18/03/2021,129.86,,
"Communities, Customer & Commercial Services",Sport & Leisure,Supplies & Services,Provisions,BIKOLD,18/03/2021,160.21,,
"Communities, Customer & Commercial Services",Sport & Leisure,Supplies & Services,Provisions,BIKOLD,18/03/2021,122.62,,
"Communities, Customer & Commercial Services",Sport & Leisure,Supplies & Services,Provisions,BIKOLD,18/03/2021,216.39,,
"Communities, Customer & Commercial Services",Sport & Leisure,Supplies & Services,Provisions,BIKOLD,18/03/2021,204.43,,
"Communities, Customer & Commercial Services",Sport & Leisure,Supplies & Services,Provisions,BIKOLD,18/03/2021,-119.19,,
"Communities, Customer & Commercial Services",Sport & Leisure,Supplies & Services,Provisions,BIKOLD,18/03/2021,325.28,,
"Communities, Customer & Commercial Services",Sport & Leisure,Supplies & Services,Provisions,BIKOLD,18/03/2021,100.29,,
"Communities, Customer & Commercial Services",Sport & Leisure,Supplies & Services,Provisions,BIKOLD,18/03/2021,136.59,,
"Communities, Customer & Commercial Services",Sport & Leisure,Supplies & Services,Provisions,BIKOLD,18/03/2021,257.17,,
"Communities, Customer & Commercial Services",Sport & Leisure,Supplies & Services,Provisions,BIKOLD,18/03/2021,385.22,,
"Communities, Customer & Commercial Services",Sport & Leisure,Supplies & Services,Provisions,BIKOLD,18/03/2021,137.72,,
"Communities, Customer & Commercial Services",Sport & Leisure,Supplies & Services,Provisions,BIKOLD,18/03/2021,191.11,,
"Communities, Customer & Commercial Services",Sport & Leisure,Supplies & Services,Provisions,BIKOLD,18/03/2021,375.73,,
"Communities, Customer & Commercial Services",Sport & Leisure,Supplies & Services,Provisions,BIKOLD,18/03/2021,182.52,,
"Communities, Customer & Commercial Services",Sport & Leisure,Supplies & Services,Provisions,BIKOLD,18/03/2021,144.02,,
"Communities, Customer & Commercial Services",Sport & Leisure,Supplies & Services,Provisions,BIKOLD,18/03/2021,113.62,,
"Communities, Customer & Commercial Services",Sport & Leisure,Supplies & Services,Provisions,BIKOLD,18/03/2021,157.93,,
"Communities, Customer & Commercial Services",Sport & Leisure,Supplies & Services,Provisions,BIKOLD,18/03/2021,103.29,,
"Communities, Customer & Commercial Services",Sport & Leisure,Supplies & Services,Provisions,BIKOLD,18/03/2021,124.6,,
"Communities, Customer & Commercial Services",Sport & Leisure,Supplies & Services,Provisions,BIKOLD,18/03/2021,478.47,,
"Communities, Customer & Commercial Services",Sport & Leisure,Supplies & Services,Provisions,BIKOLD,18/03/2021,261.65,,
"Communities, Customer & Commercial Services",Sport & Leisure,Supplies & Services,Provisions,BIKOLD,18/03/2021,240.19,,
"Communities, Customer & Commercial Services",Sport & Leisure,Supplies & Services,Provisions,BIKOLD,18/03/2021,221.26,,
"Communities, Customer & Commercial Services",Sport & Leisure,Supplies & Services,Provisions,BIKOLD,18/03/2021,-191.11,,
"Communities, Customer & Commercial Services",Sport & Leisure,Supplies & Services,Provisions,BIKOLD,18/03/2021,208.27,,
"Communities, Customer & Commercial Services",Sport & Leisure,Supplies & Services,Provisions,BIKOLD,18/03/2021,392.94,,
"Communities, Customer & Commercial Services",Sport & Leisure,Supplies & Services,Provisions,BIKOLD,18/03/2021,206.58,,
"Communities, Customer & Commercial Services",Sport & Leisure,Supplies & Services,Provisions,BIKOLD,18/03/2021,202.79,,
"Communities, Customer & Commercial Services",Sport & Leisure,Supplies & Services,Provisions,BIKOLD,18/03/2021,256.99,,
"Communities, Customer & Commercial Services",Sport & Leisure,Supplies & Services,Provisions,BIKOLD,18/03/2021,163.81,,
"Communities, Customer & Commercial Services",Sport & Leisure,Supplies & Services,Provisions,BIKOLD,18/03/2021,296.3,,
"Communities, Customer & Commercial Services",Sport & Leisure,Supplies & Services,Provisions,BIKOLD,18/03/2021,112.7,,
"Communities, Customer & Commercial Services",Sport & Leisure,Supplies & Services,Provisions,BIKOLD,18/03/2021,151.27,,
"Communities, Customer & Commercial Services",Sport & Leisure,Supplies & Services,Provisions,BIKOLD,18/03/2021,152.06,,
"Communities, Customer & Commercial Services",Sport & Leisure,Supplies & Services,Provisions,BIKOLD,18/03/2021,165.21,,
"Communities, Customer & Commercial Services",Sport & Leisure,Supplies & Services,Provisions,BIKOLD,18/03/2021,104.17,,
"Communities, Customer & Commercial Services",Sport & Leisure,Supplies & Services,Provisions,BIKOLD,18/03/2021,155.19,,
"Communities, Customer & Commercial Services",Sport & Leisure,Supplies & Services,Provisions,BIKOLD,18/03/2021,113.34,,
"Communities, Customer & Commercial Services",Sport & Leisure,Supplies & Services,Provisions,BIKOLD,18/03/2021,128.59,,
"Communities, Customer & Commercial Services",Sport & Leisure,Supplies & Services,Provisions,BIKOLD,18/03/2021,271.19,,
"Communities, Customer & Commercial Services",Sport & Leisure,Supplies & Services,Provisions,BIKOLD,18/03/2021,119.19,,
"Communities, Customer & Commercial Services",Sport & Leisure,Supplies & Services,Provisions,BIKOLD,18/03/2021,191.11,,
"Communities, Customer & Commercial Services",Sport & Leisure,Supplies & Services,Provisions,BIKOLD,18/03/2021,317.03,,
"Communities, Customer & Commercial Services",Sport & Leisure,Supplies & Services,Provisions,BIKOLD,18/03/2021,346.5,,
"Communities, Customer & Commercial Services",Sport & Leisure,Supplies & Services,Provisions,BIKOLD,18/03/2021,-137.72,,
"Communities, Customer & Commercial Services",Sport & Leisure,Supplies & Services,Provisions,BIKOLD,18/03/2021,368.53,,
"Communities, Customer & Commercial Services",Sport & Leisure,Supplies & Services,Provisions,BIKOLD,18/03/2021,153.22,,
"Communities, Customer & Commercial Services",Sport & Leisure,Supplies & Services,Provisions,BIKOLD,18/03/2021,116.97,,
"Communities, Customer & Commercial Services",Sport & Leisure,Supplies & Services,Provisions,BIKOLD,18/03/2021,137.72,,
"Communities, Customer & Commercial Services",Sport & Leisure,Supplies & Services,Provisions,BIKOLD,18/03/2021,122.26,,
"Communities, Customer & Commercial Services",Sport & Leisure,Supplies & Services,Provisions,BIKOLD,18/03/2021,158.82,,
"Communities, Customer & Commercial Services",Sport & Leisure,Supplies & Services,Provisions,BIKOLD,18/03/2021,397.86,,
"Communities, Customer & Commercial Services",Sport & Leisure,Supplies & Services,Provisions,BIKOLD,18/03/2021,160.46,,
"Communities, Customer & Commercial Services",Sport & Leisure,Supplies & Services,Provisions,BIKOLD,18/03/2021,625.82,,
"Communities, Customer & Commercial Services",Sport & Leisure,Supplies & Services,Provisions,BIKOLD,18/03/2021,113.4,,
"Communities, Customer & Commercial Services",Sport & Leisure,Supplies & Services,Provisions,BIKOLD,18/03/2021,121.62,,
"Communities, Customer & Commercial Services",Sport & Leisure,Supplies & Services,Provisions,BIKOLD,18/03/2021,104.76,,
"Communities, Customer & Commercial Services",Sport & Leisure,Supplies & Services,Provisions,BIKOLD,18/03/2021,184.96,,
"Communities, Customer & Commercial Services",Sport & Leisure,Supplies & Services,Provisions,BIKOLD,18/03/2021,154.78,,
"Communities, Customer & Commercial Services",Sport & Leisure,Supplies & Services,Provisions,BIKOLD,18/03/2021,172.73,,
"Communities, Customer & Commercial Services",Sport & Leisure,Supplies & Services,Provisions,BIKOLD,18/03/2021,238.06,,
"Communities, Customer & Commercial Services",Sport & Leisure,Supplies & Services,Provisions,BIKOLD,18/03/2021,317.68,,
"Communities, Customer & Commercial Services",Sport & Leisure,Supplies & Services,Provisions,BIKOLD,18/03/2021,113.89,,
"Communities, Customer & Commercial Services",Sport & Leisure,Supplies & Services,Provisions,BIKOLD,18/03/2021,215.87,,
"Communities, Customer & Commercial Services",Sport & Leisure,Supplies & Services,Provisions,BIKOLD,18/03/2021,119.28,,
"Communities, Customer & Commercial Services",Sport & Leisure,Supplies & Services,Provisions,BIKOLD,18/03/2021,250.39,,
"Communities, Customer & Commercial Services",Sport & Leisure,Supplies & Services,Provisions,BIKOLD,18/03/2021,310.57,,
"Communities, Customer & Commercial Services",Sport & Leisure,Supplies & Services,Provisions,BIKOLD,18/03/2021,297.65,,
"Communities, Customer & Commercial Services",Sport & Leisure,Supplies & Services,Provisions,BIKOLD,18/03/2021,339.06,,
"Communities, Customer & Commercial Services",Sport & Leisure,Supplies & Services,Provisions,ICare (GB) Limited,08/03/2021,336.05,,
"Communities, Customer & Commercial Services",Sport & Leisure,Supplies & Services,Loss On Catering,J S Catering Butchers,02/03/2021,194.19,,
"Communities, Customer & Commercial Services",Sport & Leisure,Supplies & Services,Provisions,J S Catering Butchers,08/03/2021,147.45,,
"Communities, Customer & Commercial Services",Sport & Leisure,Supplies & Services,Provisions,J S Catering Butchers,08/03/2021,147.04,,
"Communities, Customer & Commercial Services",Sport & Leisure,Supplies & Services,Provisions,J S Catering Butchers,08/03/2021,108.84,,
"Communities, Customer & Commercial Services",Sport & Leisure,Supplies & Services,Provisions,J S Catering Butchers,08/03/2021,100.63,,
"Communities, Customer & Commercial Services",Sport & Leisure,Supplies & Services,Provisions,J S Catering Butchers,15/03/2021,224.06,,
"Communities, Customer & Commercial Services",Sport & Leisure,Supplies & Services,Provisions,J S Catering Butchers,15/03/2021,157.5,,
"Communities, Customer & Commercial Services",Sport & Leisure,Supplies & Services,Provisions,J S Catering Butchers,15/03/2021,109.72,,
"Communities, Customer & Commercial Services",Sport & Leisure,Supplies & Services,Provisions,J S Catering Butchers,15/03/2021,259.03,,
"Communities, Customer & Commercial Services",Sport & Leisure,Supplies & Services,Provisions,J S Catering Butchers,15/03/2021,136.59,,
"Communities, Customer & Commercial Services",Sport & Leisure,Supplies & Services,Provisions,J S Catering Butchers,15/03/2021,124.36,,
"Communities, Customer & Commercial Services",Sport & Leisure,Supplies & Services,Provisions,J S Catering Butchers,15/03/2021,157.73,,
"Communities, Customer & Commercial Services",Sport & Leisure,Supplies & Services,Provisions,J S Catering Butchers,22/03/2021,326.62,,
"Communities, Customer & Commercial Services",Sport & Leisure,Supplies & Services,Provisions,J S Catering Butchers,22/03/2021,172.46,,
"Communities, Customer & Commercial Services",Sport & Leisure,Supplies & Services,Provisions,J S Catering Butchers,22/03/2021,181.43,,
"Communities, Customer & Commercial Services",Sport & Leisure,Supplies & Services,Provisions,J S Catering Butchers,22/03/2021,176.4,,
"Communities, Customer & Commercial Services",Sport & Leisure,Supplies & Services,Provisions,J S Catering Butchers,22/03/2021,198.89,,
"Communities, Customer & Commercial Services",Sport & Leisure,Supplies & Services,Provisions,J S Catering Butchers,22/03/2021,124.28,,
"Communities, Customer & Commercial Services",Sport & Leisure,Supplies & Services,Provisions,J S Catering Butchers,22/03/2021,139,,
"Communities, Customer & Commercial Services",Sport & Leisure,Supplies & Services,Provisions,J S Catering Butchers,22/03/2021,157.5,,
"Communities, Customer & Commercial Services",Sport & Leisure,Supplies & Services,Provisions,J S Catering Butchers,22/03/2021,295.71,,
"Communities, Customer & Commercial Services",Sport & Leisure,Supplies & Services,Provisions,J S Catering Butchers,22/03/2021,126.13,,
"Communities, Customer & Commercial Services",Sport & Leisure,Supplies & Services,Provisions,J S Catering Butchers,22/03/2021,227.1,,
"Communities, Customer & Commercial Services",Sport & Leisure,Supplies & Services,Provisions,J S Catering Butchers,22/03/2021,105.53,,
"Communities, Customer & Commercial Services",Sport & Leisure,Supplies & Services,Provisions,J S Catering Butchers,22/03/2021,166.86,,
"Communities, Customer & Commercial Services",Sport & Leisure,Supplies & Services,Provisions,J S Catering Butchers,26/03/2021,134.44,,
"Communities, Customer & Commercial Services",Sport & Leisure,Supplies & Services,Provisions,J S Catering Butchers,26/03/2021,135.97,,
"Communities, Customer & Commercial Services",Sport & Leisure,Supplies & Services,Provisions,J S Catering Butchers,26/03/2021,169.47,,
"Communities, Customer & Commercial Services",Sport & Leisure,Supplies & Services,Provisions,J S Catering Butchers,26/03/2021,260.18,,
"Communities, Customer & Commercial Services",Sport & Leisure,Supplies & Services,Provisions,J S Catering Butchers,26/03/2021,236.05,,
"Communities, Customer & Commercial Services",Sport & Leisure,Supplies & Services,Provisions,J S Catering Butchers,26/03/2021,108,,
"Communities, Customer & Commercial Services",Sport & Leisure,Supplies & Services,Provisions,J S Catering Butchers,26/03/2021,198.78,,
"Communities, Customer & Commercial Services",Sport & Leisure,Supplies & Services,Provisions,J S Catering Butchers,26/03/2021,251.19,,
"Communities, Customer & Commercial Services",Sport & Leisure,Supplies & Services,Crockery/Hardware/Light Equip,ROWLANDS & COMPANY,02/03/2021,108.04,,
"Communities, Customer & Commercial Services",Sport & Leisure,Supplies & Services,Crockery/Hardware/Light Equip,ROWLANDS & COMPANY,02/03/2021,102.78,,
"Communities, Customer & Commercial Services",Sport & Leisure,Supplies & Services,Crockery/Hardware/Light Equip,ROWLANDS & COMPANY,02/03/2021,207.51,,
"Communities, Customer & Commercial Services",Sport & Leisure,Supplies & Services,Crockery/Hardware/Light Equip,ROWLANDS & COMPANY,02/03/2021,119.99,,
"Communities, Customer & Commercial Services",Sport & Leisure,Supplies & Services,Crockery/Hardware/Light Equip,ROWLANDS & COMPANY,02/03/2021,140.37,,
"Communities, Customer & Commercial Services",Sport & Leisure,Supplies & Services,Provisions,ROWLANDS & COMPANY,08/03/2021,163.43,,
"Communities, Customer & Commercial Services",Sport & Leisure,Supplies & Services,Provisions,ROWLANDS & COMPANY,08/03/2021,111.29,,
"Communities, Customer & Commercial Services",Sport & Leisure,Supplies & Services,Provisions,ROWLANDS & COMPANY,08/03/2021,144.07,,
"Communities, Customer & Commercial Services",Sport & Leisure,Supplies & Services,Provisions,ROWLANDS & COMPANY,08/03/2021,144.22,,
"Communities, Customer & Commercial Services",Sport & Leisure,Supplies & Services,Provisions,ROWLANDS & COMPANY,15/03/2021,184.73,,
"Communities, Customer & Commercial Services",Sport & Leisure,Supplies & Services,Provisions,ROWLANDS & COMPANY,15/03/2021,121.95,,
"Communities, Customer & Commercial Services",Sport & Leisure,Supplies & Services,Provisions,ROWLANDS & COMPANY,15/03/2021,172.52,,
"Communities, Customer & Commercial Services",Sport & Leisure,Supplies & Services,Provisions,ROWLANDS & COMPANY,15/03/2021,132.14,,
"Communities, Customer & Commercial Services",Sport & Leisure,Supplies & Services,Provisions,ROWLANDS & COMPANY,15/03/2021,107.96,,
"Communities, Customer & Commercial Services",Sport & Leisure,Supplies & Services,Provisions,ROWLANDS & COMPANY,15/03/2021,142.14,,
"Communities, Customer & Commercial Services",Sport & Leisure,Supplies & Services,Provisions,ROWLANDS & COMPANY,15/03/2021,162.98,,
"Communities, Customer & Commercial Services",Sport & Leisure,Supplies & Services,Provisions,ROWLANDS & COMPANY,15/03/2021,167.96,,
"Communities, Customer & Commercial Services",Sport & Leisure,Supplies & Services,Provisions,ROWLANDS & COMPANY,29/03/2021,140.08,,
"Communities, Customer & Commercial Services",Sport & Leisure,Supplies & Services,Provisions,ROWLANDS & COMPANY,29/03/2021,105.79,,
"Communities, Customer & Commercial Services",Sport & Leisure,Supplies & Services,Provisions,ROWLANDS & COMPANY,29/03/2021,101.18,,
"Communities, Customer & Commercial Services",Sport & Leisure,Supplies & Services,Provisions,ROWLANDS & COMPANY,29/03/2021,116.12,,
"Communities, Customer & Commercial Services",Sport & Leisure,Supplies & Services,Provisions,ROWLANDS & COMPANY,29/03/2021,211.79,,
"Communities, Customer & Commercial Services",Sport & Leisure,Supplies & Services,Provisions,ROWLANDS & COMPANY,29/03/2021,203.56,,
"Communities, Customer & Commercial Services",Sport & Leisure,Supplies & Services,Provisions,ROWLANDS & COMPANY,29/03/2021,141.34,,
"Communities, Customer & Commercial Services",Sport & Leisure,Supplies & Services,Provisions,ROWLANDS & COMPANY,29/03/2021,148.86,,
"Communities, Customer & Commercial Services",Sport & Leisure,Supplies & Services,Provisions,ROWLANDS & COMPANY,29/03/2021,162.77,,
"Communities, Customer & Commercial Services",Sport & Leisure,Supplies & Services,Provisions,V P ,11/03/2021,107.46,,
"Communities, Customer & Commercial Services",Sport & Leisure,Premises-Related Expenditure,Clean Mats & Toilet Requisites,Border Janitorial Supplies Limited,17/03/2021,117.18,,
"Communities, Customer & Commercial Services",Sport & Leisure,Supplies & Services,Provisions,Delice de France,30/03/2021,245,,
"Communities, Customer & Commercial Services",Sport & Leisure,Supplies & Services,Provisions,BIKOLD,04/03/2021,380.4,,
"Communities, Customer & Commercial Services",Sport & Leisure,Supplies & Services,Provisions,BIKOLD,04/03/2021,127.66,,
"Communities, Customer & Commercial Services",Sport & Leisure,Supplies & Services,Provisions,BIKOLD,04/03/2021,101.48,,
"Communities, Customer & Commercial Services",Sport & Leisure,Supplies & Services,Provisions,BIKOLD,04/03/2021,212.32,,
"Communities, Customer & Commercial Services",Sport & Leisure,Supplies & Services,Provisions,BIKOLD,04/03/2021,281.96,,
"Communities, Customer & Commercial Services",Sport & Leisure,Supplies & Services,Provisions,BIKOLD,04/03/2021,301.09,,
"Communities, Customer & Commercial Services",Sport & Leisure,Supplies & Services,Provisions,BIKOLD,04/03/2021,198.79,,
"Communities, Customer & Commercial Services",Sport & Leisure,Supplies & Services,Provisions,BIKOLD,04/03/2021,124.26,,
"Communities, Customer & Commercial Services",Sport & Leisure,Supplies & Services,Provisions,BIKOLD,04/03/2021,117.15,,
"Communities, Customer & Commercial Services",Sport & Leisure,Supplies & Services,Provisions,BIKOLD,04/03/2021,235.57,,
"Communities, Customer & Commercial Services",Sport & Leisure,Supplies & Services,Provisions,BIKOLD,04/03/2021,133.42,,
"Communities, Customer & Commercial Services",Sport & Leisure,Supplies & Services,Provisions,BIKOLD,04/03/2021,313.36,,
"Communities, Customer & Commercial Services",Sport & Leisure,Supplies & Services,Provisions,BIKOLD,04/03/2021,160.64,,
"Communities, Customer & Commercial Services",Sport & Leisure,Supplies & Services,Provisions,BIKOLD,04/03/2021,246.08,,
"Communities, Customer & Commercial Services",Sport & Leisure,Supplies & Services,Provisions,BIKOLD,04/03/2021,129.86,,
"Communities, Customer & Commercial Services",Sport & Leisure,Supplies & Services,Provisions,BIKOLD,25/03/2021,370.33,,
"Communities, Customer & Commercial Services",Sport & Leisure,Supplies & Services,Provisions,BIKOLD,25/03/2021,195.52,,
"Communities, Customer & Commercial Services",Sport & Leisure,Supplies & Services,Provisions,BIKOLD,25/03/2021,267.82,,
"Communities, Customer & Commercial Services",Sport & Leisure,Supplies & Services,Provisions,BIKOLD,25/03/2021,143.48,,
"Communities, Customer & Commercial Services",Sport & Leisure,Supplies & Services,Provisions,BIKOLD,25/03/2021,461.46,,
"Communities, Customer & Commercial Services",Sport & Leisure,Supplies & Services,Provisions,BIKOLD,25/03/2021,149.87,,
"Communities, Customer & Commercial Services",Sport & Leisure,Supplies & Services,Provisions,BIKOLD,25/03/2021,109.32,,
"Communities, Customer & Commercial Services",Sport & Leisure,Supplies & Services,Provisions,BIKOLD,25/03/2021,138.43,,
"Communities, Customer & Commercial Services",Sport & Leisure,Supplies & Services,Provisions,BIKOLD,25/03/2021,130.43,,
"Communities, Customer & Commercial Services",Sport & Leisure,Supplies & Services,Provisions,BIKOLD,25/03/2021,396.91,,
"Communities, Customer & Commercial Services",Sport & Leisure,Supplies & Services,Provisions,BIKOLD,25/03/2021,234.4,,
"Communities, Customer & Commercial Services",Sport & Leisure,Supplies & Services,Provisions,BIKOLD,25/03/2021,294.04,,
"Communities, Customer & Commercial Services",Sport & Leisure,Supplies & Services,Provisions,BIKOLD,25/03/2021,107.18,,
"Communities, Customer & Commercial Services",Sport & Leisure,Supplies & Services,Provisions,BIKOLD,25/03/2021,125.95,,
"Communities, Customer & Commercial Services",Sport & Leisure,Supplies & Services,Provisions,BIKOLD,25/03/2021,173.26,,
"Communities, Customer & Commercial Services",Sport & Leisure,Supplies & Services,Provisions,BIKOLD,25/03/2021,168.99,,
"Communities, Customer & Commercial Services",Sport & Leisure,Supplies & Services,Provisions,BIKOLD,25/03/2021,208.2,,
"Communities, Customer & Commercial Services",Sport & Leisure,Supplies & Services,Provisions,BIKOLD,25/03/2021,112.32,,
"Communities, Customer & Commercial Services",Sport & Leisure,Supplies & Services,Provisions,BIKOLD,25/03/2021,131.49,,
"Communities, Customer & Commercial Services",Sport & Leisure,Supplies & Services,Provisions,BIKOLD,25/03/2021,506.43,,
"Communities, Customer & Commercial Services",Sport & Leisure,Supplies & Services,Provisions,BIKOLD,25/03/2021,206.24,,
"Communities, Customer & Commercial Services",Sport & Leisure,Supplies & Services,Provisions,BIKOLD,25/03/2021,162.56,,
"Communities, Customer & Commercial Services",Sport & Leisure,Supplies & Services,Provisions,BIKOLD,25/03/2021,407.5,,
"Communities, Customer & Commercial Services",Sport & Leisure,Supplies & Services,Provisions,BIKOLD,12/03/2021,749.47,,
"Communities, Customer & Commercial Services",Sport & Leisure,Supplies & Services,Provisions,BIKOLD,12/03/2021,128.61,,
"Communities, Customer & Commercial Services",Sport & Leisure,Supplies & Services,Provisions,BIKOLD,12/03/2021,111.52,,
"Communities, Customer & Commercial Services",Sport & Leisure,Supplies & Services,Provisions,BIKOLD,12/03/2021,234.67,,
"Communities, Customer & Commercial Services",Sport & Leisure,Supplies & Services,Provisions,BIKOLD,12/03/2021,251.46,,
"Communities, Customer & Commercial Services",Sport & Leisure,Supplies & Services,Provisions,BIKOLD,12/03/2021,389.46,,
"Communities, Customer & Commercial Services",Sport & Leisure,Supplies & Services,Provisions,BIKOLD,12/03/2021,100.67,,
"Communities, Customer & Commercial Services",Sport & Leisure,Supplies & Services,Provisions,BIKOLD,12/03/2021,118.27,,
"Communities, Customer & Commercial Services",Sport & Leisure,Supplies & Services,Provisions,BIKOLD,12/03/2021,215.69,,
"Communities, Customer & Commercial Services",Sport & Leisure,Supplies & Services,Provisions,BIKOLD,12/03/2021,159.14,,
"Communities, Customer & Commercial Services",Sport & Leisure,Supplies & Services,Provisions,BIKOLD,12/03/2021,106.71,,
"Communities, Customer & Commercial Services",Sport & Leisure,Supplies & Services,Provisions,BIKOLD,12/03/2021,125.18,,
"Communities, Customer & Commercial Services",Sport & Leisure,Supplies & Services,Provisions,BIKOLD,12/03/2021,265.46,,
"Communities, Customer & Commercial Services",Sport & Leisure,Supplies & Services,Provisions,BIKOLD,12/03/2021,151.38,,
"Communities, Customer & Commercial Services",Sport & Leisure,Supplies & Services,Provisions,BIKOLD,18/03/2021,512.59,,
"Communities, Customer & Commercial Services",Sport & Leisure,Supplies & Services,Provisions,BIKOLD,18/03/2021,182.89,,
"Communities, Customer & Commercial Services",Sport & Leisure,Supplies & Services,Provisions,BIKOLD,18/03/2021,188.04,,
"Communities, Customer & Commercial Services",Sport & Leisure,Supplies & Services,Provisions,BIKOLD,18/03/2021,138.98,,
"Communities, Customer & Commercial Services",Sport & Leisure,Supplies & Services,Provisions,BIKOLD,18/03/2021,200.33,,
"Communities, Customer & Commercial Services",Sport & Leisure,Supplies & Services,Provisions,BIKOLD,18/03/2021,234.9,,
"Communities, Customer & Commercial Services",Sport & Leisure,Supplies & Services,Provisions,BIKOLD,18/03/2021,312.67,,
"Communities, Customer & Commercial Services",Sport & Leisure,Supplies & Services,Provisions,BIKOLD,18/03/2021,196.38,,
"Communities, Customer & Commercial Services",Sport & Leisure,Supplies & Services,Provisions,BIKOLD,18/03/2021,282.56,,
"Communities, Customer & Commercial Services",Sport & Leisure,Supplies & Services,Provisions,BIKOLD,18/03/2021,186.27,,
"Communities, Customer & Commercial Services",Sport & Leisure,Supplies & Services,Provisions,BIKOLD,18/03/2021,669.79,,
"Communities, Customer & Commercial Services",Sport & Leisure,Supplies & Services,Provisions,BIKOLD,18/03/2021,157.74,,
"Communities, Customer & Commercial Services",Sport & Leisure,Supplies & Services,Provisions,BIKOLD,18/03/2021,133.79,,
"Communities, Customer & Commercial Services",Sport & Leisure,Supplies & Services,Provisions,BIKOLD,18/03/2021,157.38,,
"Communities, Customer & Commercial Services",Sport & Leisure,Supplies & Services,Provisions,BIKOLD,18/03/2021,157.74,,
"Communities, Customer & Commercial Services",Sport & Leisure,Supplies & Services,Provisions,BIKOLD,18/03/2021,118.95,,
"Communities, Customer & Commercial Services",Sport & Leisure,Supplies & Services,Provisions,BIKOLD,18/03/2021,123.17,,
"Communities, Customer & Commercial Services",Sport & Leisure,Supplies & Services,Provisions,BIKOLD,18/03/2021,122.12,,
"Communities, Customer & Commercial Services",Sport & Leisure,Supplies & Services,Provisions,BIKOLD,18/03/2021,136.58,,
"Communities, Customer & Commercial Services",Sport & Leisure,Supplies & Services,Provisions,BIKOLD,18/03/2021,336.98,,
"Communities, Customer & Commercial Services",Sport & Leisure,Supplies & Services,Provisions,Handmade Speciality Products Ltd,17/03/2021,206.8,,
"Communities, Customer & Commercial Services",Sport & Leisure,Supplies & Services,Loss On Catering,J S Catering Butchers,02/03/2021,117.01,,
"Communities, Customer & Commercial Services",Sport & Leisure,Supplies & Services,Provisions,On A Roll,01/03/2021,119.94,,
"Communities, Customer & Commercial Services",Sport & Leisure,Supplies & Services,Provisions,On A Roll,17/03/2021,119.94,,
"Communities, Customer & Commercial Services",Sport & Leisure,Supplies & Services,Provisions,On A Roll,23/03/2021,121.73,,
"Communities, Customer & Commercial Services",Sport & Leisure,Supplies & Services,Provisions,On A Roll,23/03/2021,344.8,,
"Communities, Customer & Commercial Services",Sport & Leisure,Supplies & Services,Provisions,On A Roll,23/03/2021,250.12,,
"Communities, Customer & Commercial Services",Sport & Leisure,Supplies & Services,Provisions,PASTA KING (UK) LIMITED,17/03/2021,180,,
"Communities, Customer & Commercial Services",Sport & Leisure,Supplies & Services,Provisions,PASTA KING (UK) LIMITED,08/03/2021,180,,
"Communities, Customer & Commercial Services",Sport & Leisure,Supplies & Services,Provisions,PASTA KING (UK) LIMITED,19/03/2021,780,,
"Communities, Customer & Commercial Services",Sport & Leisure,Supplies & Services,Provisions,PASTA KING (UK) LIMITED,19/03/2021,180,,
"Communities, Customer & Commercial Services",Sport & Leisure,Supplies & Services,Provisions,PASTA KING (UK) LIMITED,19/03/2021,210,,
"Communities, Customer & Commercial Services",Sport & Leisure,Supplies & Services,Provisions,PASTA KING (UK) LIMITED,25/03/2021,105,,
"Communities, Customer & Commercial Services",Sport & Leisure,Supplies & Services,Provisions,PASTA KING (UK) LIMITED,25/03/2021,330,,
"Communities, Customer & Commercial Services",Sport & Leisure,Supplies & Services,Crockery/Hardware/Light Equip,TROPICAL ICE,01/03/2021,150,,
"Communities, Customer & Commercial Services",Sport & Leisure,Supplies & Services,Crockery/Hardware/Light Equip,TROPICAL ICE,01/03/2021,290,,
"Communities, Customer & Commercial Services",Sport & Leisure,Supplies & Services,Crockery/Hardware/Light Equip,TROPICAL ICE,01/03/2021,370,,
"Communities, Customer & Commercial Services",Sport & Leisure,Supplies & Services,Crockery/Hardware/Light Equip,TROPICAL ICE,01/03/2021,400,,
"Communities, Customer & Commercial Services",Sport & Leisure,Supplies & Services,Crockery/Hardware/Light Equip,TROPICAL ICE,01/03/2021,400,,
"Communities, Customer & Commercial Services",Sport & Leisure,Premises-Related Expenditure,Clean Mats & Toilet Requisites,Border Janitorial Supplies Limited,23/03/2021,177.06,,
"Communities, Customer & Commercial Services",Sport & Leisure,Premises-Related Expenditure,Clean Mats & Toilet Requisites,Border Janitorial Supplies Limited,23/03/2021,155.08,,
"Communities, Customer & Commercial Services",Sport & Leisure,Premises-Related Expenditure,Clean Mats & Toilet Requisites,Border Janitorial Supplies Limited,23/03/2021,283.95,,
"Communities, Customer & Commercial Services",Sport & Leisure,Premises-Related Expenditure,Clean Mats & Toilet Requisites,Border Janitorial Supplies Limited,01/03/2021,176.16,,
"Communities, Customer & Commercial Services",Sport & Leisure,Premises-Related Expenditure,Clean Mats & Toilet Requisites,Border Janitorial Supplies Limited,01/03/2021,160.26,,
"Communities, Customer & Commercial Services",Sport & Leisure,Premises-Related Expenditure,Clean Mats & Toilet Requisites,Border Janitorial Supplies Limited,01/03/2021,160.26,,
"Communities, Customer & Commercial Services",Sport & Leisure,Premises-Related Expenditure,Clean Mats & Toilet Requisites,Border Janitorial Supplies Limited,01/03/2021,132.94,,
"Communities, Customer & Commercial Services",Sport & Leisure,Premises-Related Expenditure,Clean Mats & Toilet Requisites,Border Janitorial Supplies Limited,01/03/2021,149.27,,
"Communities, Customer & Commercial Services",Sport & Leisure,Premises-Related Expenditure,Clean Mats & Toilet Requisites,Border Janitorial Supplies Limited,01/03/2021,190.24,,
"Communities, Customer & Commercial Services",Sport & Leisure,Premises-Related Expenditure,Clean Mats & Toilet Requisites,Border Janitorial Supplies Limited,01/03/2021,160.26,,
"Communities, Customer & Commercial Services",Sport & Leisure,Premises-Related Expenditure,Clean Mats & Toilet Requisites,Border Janitorial Supplies Limited,01/03/2021,225.26,,
"Communities, Customer & Commercial Services",Sport & Leisure,Premises-Related Expenditure,Clean Mats & Toilet Requisites,Border Janitorial Supplies Limited,01/03/2021,103,,
"Communities, Customer & Commercial Services",Sport & Leisure,Premises-Related Expenditure,Clean Mats & Toilet Requisites,Border Janitorial Supplies Limited,01/03/2021,144.36,,
"Communities, Customer & Commercial Services",Sport & Leisure,Premises-Related Expenditure,Clean Mats & Toilet Requisites,Border Janitorial Supplies Limited,01/03/2021,186.74,,
"Communities, Customer & Commercial Services",Sport & Leisure,Premises-Related Expenditure,Clean Mats & Toilet Requisites,Border Janitorial Supplies Limited,01/03/2021,144.36,,
"Communities, Customer & Commercial Services",Sport & Leisure,Premises-Related Expenditure,Clean Mats & Toilet Requisites,Border Janitorial Supplies Limited,01/03/2021,197.2,,
"Communities, Customer & Commercial Services",Sport & Leisure,Premises-Related Expenditure,Clean Mats & Toilet Requisites,Border Janitorial Supplies Limited,01/03/2021,268.59,,
"Communities, Customer & Commercial Services",Sport & Leisure,Premises-Related Expenditure,Clean Mats & Toilet Requisites,Border Janitorial Supplies Limited,01/03/2021,126.84,,
"Communities, Customer & Commercial Services",Sport & Leisure,Premises-Related Expenditure,Clean Mats & Toilet Requisites,Border Janitorial Supplies Limited,01/03/2021,127.32,,
"Communities, Customer & Commercial Services",Sport & Leisure,Premises-Related Expenditure,Clean Mats & Toilet Requisites,Border Janitorial Supplies Limited,18/03/2021,155.08,,
"Communities, Customer & Commercial Services",Sport & Leisure,Premises-Related Expenditure,Clean Mats & Toilet Requisites,Border Janitorial Supplies Limited,18/03/2021,121.22,,
"Communities, Customer & Commercial Services",Sport & Leisure,Premises-Related Expenditure,Clean Mats & Toilet Requisites,Border Janitorial Supplies Limited,18/03/2021,200.06,,
"Communities, Customer & Commercial Services",Sport & Leisure,Premises-Related Expenditure,Clean Mats & Toilet Requisites,Border Janitorial Supplies Limited,18/03/2021,111.36,,
"Communities, Customer & Commercial Services",Sport & Leisure,Premises-Related Expenditure,Clean Mats & Toilet Requisites,Border Janitorial Supplies Limited,18/03/2021,106.33,,
"Communities, Customer & Commercial Services",Sport & Leisure,Premises-Related Expenditure,Clean Mats & Toilet Requisites,Border Janitorial Supplies Limited,16/03/2021,271.9,,
"Communities, Customer & Commercial Services",Sport & Leisure,Premises-Related Expenditure,Clean Mats & Toilet Requisites,Border Janitorial Supplies Limited,16/03/2021,206.05,,
"Communities, Customer & Commercial Services",Sport & Leisure,Premises-Related Expenditure,Clean Mats & Toilet Requisites,Border Janitorial Supplies Limited,16/03/2021,176.16,,
"Communities, Customer & Commercial Services",Sport & Leisure,Premises-Related Expenditure,Clean Mats & Toilet Requisites,Border Janitorial Supplies Limited,16/03/2021,176.16,,
"Communities, Customer & Commercial Services",Sport & Leisure,Premises-Related Expenditure,Clean Mats & Toilet Requisites,Border Janitorial Supplies Limited,16/03/2021,352.78,,
"Communities, Customer & Commercial Services",Sport & Leisure,Premises-Related Expenditure,Clean Mats & Toilet Requisites,Border Janitorial Supplies Limited,16/03/2021,105.32,,
"Communities, Customer & Commercial Services",Sport & Leisure,Premises-Related Expenditure,Clean Mats & Toilet Requisites,Border Janitorial Supplies Limited,16/03/2021,115.8,,
"Communities, Customer & Commercial Services",Sport & Leisure,Premises-Related Expenditure,Clean Mats & Toilet Requisites,Border Janitorial Supplies Limited,16/03/2021,137.12,,
"Communities, Customer & Commercial Services",Sport & Leisure,Premises-Related Expenditure,Clean Mats & Toilet Requisites,Border Janitorial Supplies Limited,16/03/2021,186.22,,
"Communities, Customer & Commercial Services",Sport & Leisure,Premises-Related Expenditure,Clean Mats & Toilet Requisites,Border Janitorial Supplies Limited,16/03/2021,253.1,,
"Communities, Customer & Commercial Services",Sport & Leisure,Premises-Related Expenditure,Clean Mats & Toilet Requisites,Border Janitorial Supplies Limited,16/03/2021,121.22,,
"Communities, Customer & Commercial Services",Sport & Leisure,Premises-Related Expenditure,Clean Mats & Toilet Requisites,Border Janitorial Supplies Limited,31/03/2021,186.22,,
"Communities, Customer & Commercial Services",Sport & Leisure,Premises-Related Expenditure,Clean Mats & Toilet Requisites,Border Janitorial Supplies Limited,31/03/2021,137.12,,
"Communities, Customer & Commercial Services",Sport & Leisure,Premises-Related Expenditure,Clean Mats & Toilet Requisites,Border Janitorial Supplies Limited,31/03/2021,155.08,,
"Communities, Customer & Commercial Services",Sport & Leisure,Premises-Related Expenditure,Clean Mats & Toilet Requisites,Border Janitorial Supplies Limited,31/03/2021,108.76,,
"Communities, Customer & Commercial Services",Sport & Leisure,Premises-Related Expenditure,Clean Mats & Toilet Requisites,Border Janitorial Supplies Limited,31/03/2021,144.74,,
"Communities, Customer & Commercial Services",Sport & Leisure,Premises-Related Expenditure,Clean Mats & Toilet Requisites,Border Janitorial Supplies Limited,04/03/2021,137.97,,
"Communities, Customer & Commercial Services",Sport & Leisure,Premises-Related Expenditure,Clean Mats & Toilet Requisites,Border Janitorial Supplies Limited,15/03/2021,147.4,,
"Communities, Customer & Commercial Services",Sport & Leisure,Premises-Related Expenditure,Clean Mats & Toilet Requisites,Border Janitorial Supplies Limited,15/03/2021,249.5,,
"Communities, Customer & Commercial Services",Sport & Leisure,Premises-Related Expenditure,Clean Mats & Toilet Requisites,Border Janitorial Supplies Limited,04/03/2021,1153.23,,
"Communities, Customer & Commercial Services",Sport & Leisure,Premises-Related Expenditure,Clean Mats & Toilet Requisites,Border Janitorial Supplies Limited,31/03/2021,175.91,,
"Communities, Customer & Commercial Services",Sport & Leisure,Premises-Related Expenditure,Clean Mats & Toilet Requisites,Border Janitorial Supplies Limited,31/03/2021,118.94,,
"Communities, Customer & Commercial Services",Sport & Leisure,Premises-Related Expenditure,Clean Mats & Toilet Requisites,Border Janitorial Supplies Limited,23/03/2021,913.37,,
"Communities, Customer & Commercial Services",Sport & Leisure,Premises-Related Expenditure,Clean Mats & Toilet Requisites,Border Janitorial Supplies Limited,01/03/2021,117.43,,
"Communities, Customer & Commercial Services",Sport & Leisure,Premises-Related Expenditure,Clean Mats & Toilet Requisites,Border Janitorial Supplies Limited,01/03/2021,192.36,,
"Communities, Customer & Commercial Services",Sport & Leisure,Premises-Related Expenditure,Clean Mats & Toilet Requisites,Border Janitorial Supplies Limited,31/03/2021,156.51,,
"Communities, Customer & Commercial Services",Sport & Leisure,Premises-Related Expenditure,Clean Mats & Toilet Requisites,Border Janitorial Supplies Limited,31/03/2021,185.17,,
"Communities, Customer & Commercial Services",Sport & Leisure,Supplies & Services,Equipment - Repair,NUMATIC INTERNATIONAL LTD,04/03/2021,148.87,,
"Communities, Customer & Commercial Services",Sport & Leisure,Premises-Related Expenditure,Clean Mats & Toilet Requisites,Border Janitorial Supplies Limited,18/03/2021,121.22,,
"Communities, Customer & Commercial Services",Sport & Leisure,Premises-Related Expenditure,Clean Mats & Toilet Requisites,Border Janitorial Supplies Limited,18/03/2021,121.22,,
"Communities, Customer & Commercial Services",Sport & Leisure,Premises-Related Expenditure,Clean Mats & Toilet Requisites,Border Janitorial Supplies Limited,18/03/2021,161.04,,
"Communities, Customer & Commercial Services",Sport & Leisure,Premises-Related Expenditure,Clean Mats & Toilet Requisites,Border Janitorial Supplies Limited,18/03/2021,121.22,,
"Communities, Customer & Commercial Services",Sport & Leisure,Premises-Related Expenditure,Clean Mats & Toilet Requisites,Border Janitorial Supplies Limited,18/03/2021,121.22,,
"Communities, Customer & Commercial Services",Sport & Leisure,Premises-Related Expenditure,Clean Mats & Toilet Requisites,Border Janitorial Supplies Limited,18/03/2021,121.28,,
"Communities, Customer & Commercial Services",Sport & Leisure,Premises-Related Expenditure,Clean Mats & Toilet Requisites,Border Janitorial Supplies Limited,18/03/2021,105.32,,
"Communities, Customer & Commercial Services",Sport & Leisure,Premises-Related Expenditure,Clean Mats & Toilet Requisites,Border Janitorial Supplies Limited,18/03/2021,112.5,,
"Communities, Customer & Commercial Services",Sport & Leisure,Premises-Related Expenditure,Clean Mats & Toilet Requisites,Border Janitorial Supplies Limited,18/03/2021,119.55,,
"Communities, Customer & Commercial Services",Sport & Leisure,Premises-Related Expenditure,Clean Mats & Toilet Requisites,Border Janitorial Supplies Limited,22/03/2021,162.7,,
"Communities, Customer & Commercial Services",Sport & Leisure,Premises-Related Expenditure,Clean Mats & Toilet Requisites,Border Janitorial Supplies Limited,22/03/2021,126.68,,
"Communities, Customer & Commercial Services",Sport & Leisure,Premises-Related Expenditure,Clean Mats & Toilet Requisites,Border Janitorial Supplies Limited,04/03/2021,137.12,,
"Communities, Customer & Commercial Services",Sport & Leisure,Premises-Related Expenditure,Clean Mats & Toilet Requisites,Border Janitorial Supplies Limited,04/03/2021,161.04,,
"Communities, Customer & Commercial Services",Sport & Leisure,Premises-Related Expenditure,Clean Mats & Toilet Requisites,Border Janitorial Supplies Limited,04/03/2021,132.76,,
"Communities, Customer & Commercial Services",Sport & Leisure,Premises-Related Expenditure,Clean Mats & Toilet Requisites,Border Janitorial Supplies Limited,04/03/2021,137.12,,
"Communities, Customer & Commercial Services",Sport & Leisure,Premises-Related Expenditure,Clean Mats & Toilet Requisites,Border Janitorial Supplies Limited,04/03/2021,365.56,,
"Communities, Customer & Commercial Services",Sport & Leisure,Premises-Related Expenditure,Clean Mats & Toilet Requisites,Border Janitorial Supplies Limited,04/03/2021,121.22,,
"Communities, Customer & Commercial Services",Sport & Leisure,Premises-Related Expenditure,Clean Mats & Toilet Requisites,Border Janitorial Supplies Limited,04/03/2021,121.22,,
"Communities, Customer & Commercial Services",Sport & Leisure,Premises-Related Expenditure,Clean Mats & Toilet Requisites,Border Janitorial Supplies Limited,04/03/2021,121.22,,
"Communities, Customer & Commercial Services",Sport & Leisure,Premises-Related Expenditure,Clean Mats & Toilet Requisites,Border Janitorial Supplies Limited,04/03/2021,121.22,,
"Communities, Customer & Commercial Services",Sport & Leisure,Premises-Related Expenditure,Clean Mats & Toilet Requisites,Border Janitorial Supplies Limited,04/03/2021,121.22,,
"Communities, Customer & Commercial Services",Sport & Leisure,Premises-Related Expenditure,Clean Mats & Toilet Requisites,Border Janitorial Supplies Limited,04/03/2021,175.42,,
"Communities, Customer & Commercial Services",Sport & Leisure,Premises-Related Expenditure,Clean Mats & Toilet Requisites,Border Janitorial Supplies Limited,04/03/2021,105.32,,
"Communities, Customer & Commercial Services",Sport & Leisure,Premises-Related Expenditure,Clean Mats & Toilet Requisites,Border Janitorial Supplies Limited,04/03/2021,121.22,,
"Communities, Customer & Commercial Services",Sport & Leisure,Premises-Related Expenditure,Clean Mats & Toilet Requisites,Border Janitorial Supplies Limited,04/03/2021,121.22,,
"Communities, Customer & Commercial Services",Sport & Leisure,Premises-Related Expenditure,Clean Mats & Toilet Requisites,Border Janitorial Supplies Limited,04/03/2021,137.12,,
"Communities, Customer & Commercial Services",Sport & Leisure,Premises-Related Expenditure,Clean Mats & Toilet Requisites,Border Janitorial Supplies Limited,15/03/2021,121.22,,
"Communities, Customer & Commercial Services",Sport & Leisure,Premises-Related Expenditure,Clean Mats & Toilet Requisites,Border Janitorial Supplies Limited,15/03/2021,123.99,,
"Communities, Customer & Commercial Services",Sport & Leisure,Premises-Related Expenditure,Clean Mats & Toilet Requisites,Border Janitorial Supplies Limited,15/03/2021,141.64,,
"Communities, Customer & Commercial Services",Sport & Leisure,Premises-Related Expenditure,Clean Mats & Toilet Requisites,Border Janitorial Supplies Limited,15/03/2021,153.97,,
"Communities, Customer & Commercial Services",Sport & Leisure,Premises-Related Expenditure,Clean Mats & Toilet Requisites,Border Janitorial Supplies Limited,15/03/2021,209.95,,
"Communities, Customer & Commercial Services",Sport & Leisure,Premises-Related Expenditure,Clean Mats & Toilet Requisites,Border Janitorial Supplies Limited,30/03/2021,121.22,,
"Communities, Customer & Commercial Services",Sport & Leisure,Premises-Related Expenditure,Clean Mats & Toilet Requisites,Border Janitorial Supplies Limited,30/03/2021,121.22,,
"Communities, Customer & Commercial Services",Sport & Leisure,Premises-Related Expenditure,Clean Mats & Toilet Requisites,Border Janitorial Supplies Limited,30/03/2021,137.12,,
"Communities, Customer & Commercial Services",Sport & Leisure,Premises-Related Expenditure,Clean Mats & Toilet Requisites,Border Janitorial Supplies Limited,30/03/2021,137.12,,
"Communities, Customer & Commercial Services",Sport & Leisure,Premises-Related Expenditure,Clean Mats & Toilet Requisites,Border Janitorial Supplies Limited,31/03/2021,278.4,,
"Communities, Customer & Commercial Services",Sport & Leisure,Premises-Related Expenditure,Clean Mats & Toilet Requisites,Border Janitorial Supplies Limited,31/03/2021,217.88,,
"Communities, Customer & Commercial Services",Sport & Leisure,Premises-Related Expenditure,Clean Mats & Toilet Requisites,Border Janitorial Supplies Limited,31/03/2021,149.46,,
"Communities, Customer & Commercial Services",Sport & Leisure,Premises-Related Expenditure,Clean Mats & Toilet Requisites,Border Janitorial Supplies Limited,31/03/2021,105.32,,
"Communities, Customer & Commercial Services",Sport & Leisure,Premises-Related Expenditure,Clean Mats & Toilet Requisites,Border Janitorial Supplies Limited,31/03/2021,151.67,,
"Communities, Customer & Commercial Services",Sport & Leisure,Premises-Related Expenditure,Clean Mats & Toilet Requisites,Border Janitorial Supplies Limited,31/03/2021,105.32,,
"Communities, Customer & Commercial Services",Sport & Leisure,Premises-Related Expenditure,Clean Mats & Toilet Requisites,Border Janitorial Supplies Limited,31/03/2021,184.8,,
"Communities, Customer & Commercial Services",Sport & Leisure,Premises-Related Expenditure,Clean Mats & Toilet Requisites,Border Janitorial Supplies Limited,31/03/2021,156.24,,
"Communities, Customer & Commercial Services",Sport & Leisure,Premises-Related Expenditure,Clean Mats & Toilet Requisites,Border Janitorial Supplies Limited,31/03/2021,121.22,,
"Communities, Customer & Commercial Services",Sport & Leisure,Premises-Related Expenditure,Clean Mats & Toilet Requisites,Border Janitorial Supplies Limited,31/03/2021,121.22,,
"Communities, Customer & Commercial Services",Sport & Leisure,Premises-Related Expenditure,Clean Mats & Toilet Requisites,Border Janitorial Supplies Limited,31/03/2021,181.65,,
"Communities, Customer & Commercial Services",Sport & Leisure,Premises-Related Expenditure,Clean Mats & Toilet Requisites,Border Janitorial Supplies Limited,04/03/2021,121.22,,
"Communities, Customer & Commercial Services",Sport & Leisure,Premises-Related Expenditure,Clean Mats & Toilet Requisites,Border Janitorial Supplies Limited,04/03/2021,137.12,,
"Communities, Customer & Commercial Services",Sport & Leisure,Premises-Related Expenditure,Clean Mats & Toilet Requisites,Border Janitorial Supplies Limited,15/03/2021,145.73,,
"Communities, Customer & Commercial Services",Sport & Leisure,Premises-Related Expenditure,Clean Mats & Toilet Requisites,Border Janitorial Supplies Limited,30/03/2021,121.22,,
"Communities, Customer & Commercial Services",Sport & Leisure,Premises-Related Expenditure,Clean Mats & Toilet Requisites,Border Janitorial Supplies Limited,30/03/2021,137.12,,
"Communities, Customer & Commercial Services",Sport & Leisure,Premises-Related Expenditure,Clean Mats & Toilet Requisites,Border Janitorial Supplies Limited,31/03/2021,137.12,,
"Communities, Customer & Commercial Services",Sport & Leisure,Premises-Related Expenditure,R&M -Building Other,BRADLEY INDUSTRIAL SERVICES,04/03/2021,151.75,,
"Communities, Customer & Commercial Services",Sport & Leisure,Supplies & Services,Provisions,BIKOLD,12/03/2021,148.97,,
"Communities, Customer & Commercial Services",Sport & Leisure,Supplies & Services,Provisions,BIKOLD,18/03/2021,153.05,,
"Communities, Customer & Commercial Services",Sport & Leisure,Supplies & Services,Other Materials,Austin Mix Ltd,15/03/2021,263.54,,
"Communities, Customer & Commercial Services",Sport & Leisure,Supplies & Services,Sub Contractors,BUSINESS WATCH GUARDING LIMITED,12/03/2021,219.24,,
"Communities, Customer & Commercial Services",Sport & Leisure,Supplies & Services,Sub Contractors,Id verde,31/03/2021,364,,
"Communities, Customer & Commercial Services",Sport & Leisure,Supplies & Services,Sub Contractors,Id verde,31/03/2021,280,,
"Communities, Customer & Commercial Services",Sport & Leisure,Supplies & Services,Sub Contractors,Id verde,31/03/2021,225,,
"Communities, Customer & Commercial Services",Sport & Leisure,Supplies & Services,Sub Contractors,Id verde,31/03/2021,225,,
"Communities, Customer & Commercial Services",Sport & Leisure,Supplies & Services,Sub Contractors,Id verde,31/03/2021,110,,
"Communities, Customer & Commercial Services",Sport & Leisure,Supplies & Services,Other Materials,Landscape Plants (Cleobury) Limited,15/03/2021,120,,
"Communities, Customer & Commercial Services",Sport & Leisure,Supplies & Services,Other Materials,Landscape Plants (Cleobury) Limited,15/03/2021,175,,
"Communities, Customer & Commercial Services",Sport & Leisure,Supplies & Services,Other Materials,Medway Galvanising Company Ltd,10/03/2021,180,,
"Communities, Customer & Commercial Services",Sport & Leisure,Supplies & Services,Other Materials,Medway Galvanising Company Ltd,10/03/2021,1000,,
"Communities, Customer & Commercial Services",Sport & Leisure,Supplies & Services,Other Materials,Medway Galvanising Company Ltd,10/03/2021,1050,,
"Communities, Customer & Commercial Services",Sport & Leisure,Supplies & Services,Other Materials,Medway Galvanising Company Ltd,10/03/2021,1150,,
"Communities, Customer & Commercial Services",Sport & Leisure,Supplies & Services,Sub Contractors,METRIC GROUP LTD,31/03/2021,223.44,,
"Communities, Customer & Commercial Services",Sport & Leisure,Supplies & Services,Sub Contractors,MSM Plant Limited,15/03/2021,4414.75,,
"Communities, Customer & Commercial Services",Sport & Leisure,Supplies & Services,Sub Contractors,PORTAKABIN LTD,16/03/2021,1720.74,,
"Communities, Customer & Commercial Services",Sport & Leisure,Transport-Related Expenditure,District Council Vehicles,THE LODGE TYRE CO LTD,31/03/2021,251.6,,
"Communities, Customer & Commercial Services",Sport & Leisure,Premises-Related Expenditure,Swimming Pool Chemicals,BRENNTAG UK LIMITED,17/03/2021,744.6,,
"Communities, Customer & Commercial Services",Sport & Leisure,Supplies & Services,Chemicals/Cleaning Products,SP SERVICES (UK) LTD,02/03/2021,357,,
"Communities, Customer & Commercial Services",Sport & Leisure,Employees,Staff Training,L M Fitness UK Ltd,25/03/2021,116.68,,
"Communities, Customer & Commercial Services",Sport & Leisure,Supplies & Services,Sport Equip - Purchase,Skitech  Systems Ltd,11/03/2021,7400,,
"Communities, Customer & Commercial Services",Sport & Leisure,Supplies & Services,Sport Equip - Purchase,Skitech  Systems Ltd,11/03/2021,210,,
"Communities, Customer & Commercial Services",Sport & Leisure,Supplies & Services,Sport Equip - Purchase,Skitech  Systems Ltd,11/03/2021,230,,
"Communities, Customer & Commercial Services",Sport & Leisure,Supplies & Services,Carriage/Delivery Charge,Skitech  Systems Ltd,11/03/2021,325,,
"Communities, Customer & Commercial Services",Sport & Leisure,Supplies & Services,Protective Clothing,CORPORATE TOGS LTD,10/03/2021,193.13,,
"Communities, Customer & Commercial Services",Sport & Leisure,Supplies & Services,Equipment - Purchase,Athletics Direct,19/03/2021,1400,,
"Communities, Customer & Commercial Services",Sport & Leisure,Supplies & Services,Carriage/Delivery Charge,Athletics Direct,26/03/2021,120,,
"Communities, Customer & Commercial Services",Sport & Leisure,Supplies & Services,Equipment - Purchase,Athletics Direct,26/03/2021,3518.35,,
"Communities, Customer & Commercial Services",Sport & Leisure,Employees,Professional Subs,Chartered Institute for the Management of Sport and Physical Activity,08/03/2021,131.53,,
"Communities, Customer & Commercial Services",Sport & Leisure,Supplies & Services,Flex Charges,OMNICO GROUP UK LTD,24/03/2021,467.44,,
"Communities, Customer & Commercial Services",Sport & Leisure,Supplies & Services,Flex Charges,OMNICO GROUP UK LTD,24/03/2021,1150.02,,
"Communities, Customer & Commercial Services",Sport & Leisure,Supplies & Services,Flex Charges,OMNICO GROUP UK LTD,24/03/2021,19658.73,,
"Communities, Customer & Commercial Services",Sport & Leisure,Supplies & Services,Flex Charges,OMNICO GROUP UK LTD,24/03/2021,854.72,,
"Communities, Customer & Commercial Services",Sport & Leisure,Supplies & Services,Flex Charges,OMNICO GROUP UK LTD,24/03/2021,1191.85,,
"Communities, Customer & Commercial Services",Sport & Leisure,Supplies & Services,Flex Charges,OMNICO GROUP UK LTD,24/03/2021,534.09,,
"Communities, Customer & Commercial Services",Sport & Leisure,Supplies & Services,Flex Charges,OMNICO GROUP UK LTD,24/03/2021,553.7,,
"Communities, Customer & Commercial Services",Sport & Leisure,Supplies & Services,Flex Charges,OMNICO GROUP UK LTD,24/03/2021,692.68,,
"Communities, Customer & Commercial Services",Sport & Leisure,Supplies & Services,Flex Charges,OMNICO GROUP UK LTD,24/03/2021,1591.58,,
"Communities, Customer & Commercial Services",Sport & Leisure,Premises-Related Expenditure,Preventative Maintenance,Life Fitness UK Ltd,01/03/2021,335.16,,
"Communities, Customer & Commercial Services",Sport & Leisure,Premises-Related Expenditure,Preventative Maintenance,Life Fitness UK Ltd,01/03/2021,335.16,,
"Communities, Customer & Commercial Services",Sport & Leisure,Premises-Related Expenditure,R&M WC Planned,Agrovista UK LTD,17/03/2021,1000,,
"Communities, Customer & Commercial Services",Sport & Leisure,Premises-Related Expenditure,R&M WC Planned,Agrovista UK LTD,29/03/2021,150,,
"Communities, Customer & Commercial Services",Sport & Leisure,Premises-Related Expenditure,R&M WC Planned,Agrovista UK LTD,29/03/2021,100.27,,
"Communities, Customer & Commercial Services",Sport & Leisure,Supplies & Services,Equipment - Purchase,C STORES LTD,12/03/2021,-20450,,
"Communities, Customer & Commercial Services",Sport & Leisure,Supplies & Services,Equipment - Purchase,C STORES LTD,17/03/2021,1300,,
"Communities, Customer & Commercial Services",Sport & Leisure,Supplies & Services,Equipment - Purchase,C STORES LTD,17/03/2021,1300,,
"Communities, Customer & Commercial Services",Sport & Leisure,Supplies & Services,Equipment - Purchase,C STORES LTD,29/03/2021,45450,,
"Communities, Customer & Commercial Services",Sport & Leisure,Supplies & Services,Crockery/Hardware/Light Equip,TROPICAL ICE,01/03/2021,1155,,
"Communities, Customer & Commercial Services",Sport & Leisure,Supplies & Services,Protective Clothing,JBS Group,01/03/2021,181.24,,
"Communities, Customer & Commercial Services",Sport & Leisure,Employees,Staff Training,IQL UK LTD,22/03/2021,170,,
"Communities, Customer & Commercial Services",Sport & Leisure,Employees,Staff Training,TELFORD OCCUPATIONAL HEALTH SERVICE LTD,03/03/2021,175,,
"Communities, Customer & Commercial Services",Sport & Leisure,Supplies & Services,Licences,L M Fitness UK Ltd,19/03/2021,572.68,,
"Communities, Customer & Commercial Services",Sport & Leisure,Supplies & Services,Equipment - Purchase,SP SERVICES (UK) LTD,19/03/2021,190.4,,
"Communities, Customer & Commercial Services",Sport & Leisure,Employees,Professional Subs,Chartered Institute for the Management of Sport and Physical Activity,10/03/2021,131.53,,
"Communities, Customer & Commercial Services",Sport & Leisure,Supplies & Services,Chemicals/Cleaning Products,BRENNTAG UK LIMITED,08/03/2021,297.84,,
"Communities, Customer & Commercial Services",Sport & Leisure,Supplies & Services,Chemicals/Cleaning Products,BRENNTAG UK LIMITED,08/03/2021,309,,
"Communities, Customer & Commercial Services",Sport & Leisure,Supplies & Services,Equipment - Hire,NRC Limited,30/03/2021,144,,
"Communities, Customer & Commercial Services",Sport & Leisure,Supplies & Services,Equipment - Hire,NRC Limited,31/03/2021,144,,
"Communities, Customer & Commercial Services",Sport & Leisure,Supplies & Services,Payment Of Income Collected,WELLINGTON TOWN COUNCIL,22/03/2021,2790.3,,
"Communities, Customer & Commercial Services",Sport & Leisure,Capital Expenditure,Payments to Contractor,Velocity Sports Ltd,08/03/2021,4015.31,,
Corporate Communications,Communications & Marketing,Employees,Recruitment Advertising,360 Resourcing Solutions Ltd,17/03/2021,2694,,
Corporate Communications,Communications & Marketing,Employees,Recruitment Advertising,P PLC,19/03/2021,2282.83,,
Corporate Communications,Communications & Marketing,Employees,Recruitment Advertising,P PLC,17/03/2021,2282.83,,
Corporate Communications,Communications & Marketing,Supplies & Services,Printing - Other,ALLWAG PROMOTIONS LTD,04/03/2021,5100,,
Corporate Communications,Communications & Marketing,Supplies & Services,Advertising,D H Lost World Media,19/03/2021,1220,,
Corporate Communications,Communications & Marketing,Supplies & Services,Advertising,D H Lost World Media,19/03/2021,700,,
Corporate Communications,Communications & Marketing,Supplies & Services,Printing - Other,EPS  LTD,26/03/2021,250,,
Corporate Communications,Communications & Marketing,Supplies & Services,Printing - Other,EPS  LTD,26/03/2021,390,,
Corporate Communications,Communications & Marketing,Supplies & Services,Printing - Other,IMPACT MAIL & PRINT LTD,19/03/2021,7837,,
Corporate Communications,Communications & Marketing,Supplies & Services,Subscriptions,SocialSignIn Ltd,26/03/2021,9515,,
Corporate Communications,Communications & Marketing,Supplies & Services,Advertising,THE MIDLAND NEWS ASSOCIATION LTD,23/03/2021,457.49,,
Corporate Communications,Communications & Marketing,Supplies & Services,Advertising,THE MIDLAND NEWS ASSOCIATION LTD,24/03/2021,667.5,,
Corporate Items,Corporate Codes,Capital Financing Costs,Unitary Charge,PYRAMID SCHOOLS LTD,18/03/2021,894927.15,,
Corporate Items,Corporate Codes,Capital Financing Costs,Penalty Deductions,PYRAMID SCHOOLS LTD,26/03/2021,-359.63,,
Corporate Items,Corporate Codes,Employees,Agency Supply Costs,Matrix SCM,10/03/2021,31673.49,,
Corporate Items,Corporate Codes,Employees,Agency Supply Costs,Matrix SCM,17/03/2021,20131.15,,
Corporate Items,Corporate Codes,Employees,Agency Supply Costs,Matrix SCM,04/03/2021,25273.18,,
Corporate Items,Corporate Codes,Employees,Agency Supply Costs,Matrix SCM,29/03/2021,23539.09,,
Corporate Items,Corporate Codes,Employees,Agency Supply Costs,Matrix SCM,30/03/2021,31633.13,,
Corporate Items,Corporate Codes,Third Party Payments,Contribution To Other La's,SHROPSHIRE COUNCIL ,04/03/2021,4105,,
Corporate Items,Corporate Codes,Supplies & Services,Legal Expenses,HM Courts and Tribunal Service,24/03/2021,-110,,
Corporate Items,Corporate Codes,Premises-Related Expenditure,Dilapidations,G BINTERNATIONAL ,29/03/2021,6935.59,,
Education & Skills,Consultancy & Advisory Services,Employees,Staff Training,L F FOUNDATION,30/03/2021,3370,,
Education & Skills,Consultancy & Advisory Services,Premises-Related Expenditure,Hire Of Rooms,Mercure Telford Centre Hotel,31/03/2021,104.17,,
Education & Skills,Consultancy & Advisory Services,Premises-Related Expenditure,Hire Of Rooms,Mercure Telford Centre Hotel,31/03/2021,104.17,,
Education & Skills,Consultancy & Advisory Services,Supplies & Services,Subsistence,Mercure Telford Centre Hotel,31/03/2021,185.71,,
Education & Skills,Consultancy & Advisory Services,Employees,Staff Training,D U Consultancy LTD,29/03/2021,800,,
Education & Skills,Consultancy & Advisory Services,Supplies & Services,Other Grants (Expenses),Twiggy's Day Nursery DONNINGTON,29/03/2021,450,,
Education & Skills,Consultancy & Advisory Services,Supplies & Services,Other Grants (Expenses),Strawberry Hill Day Nursery,01/03/2021,-200,,
Education & Skills,Consultancy & Advisory Services,Supplies & Services,Subscriptions,Twinkl Ltd,18/03/2021,189.8,,
Education & Skills,Consultancy & Advisory Services,Employees,Agency Supply Costs,Permanent Futures Ltd,18/03/2021,2055,,
Education & Skills,Consultancy & Advisory Services,Employees,Agency Supply Costs,Permanent Futures Ltd,18/03/2021,2055,,
Education & Skills,Culture & Recreation,Supplies & Services,Other Expenses,Entrust Support Services Ltd,05/03/2021,912,,
Education & Skills,Culture & Recreation,Supplies & Services,Other Expenses,Entrust Support Services Ltd,05/03/2021,964.8,,
Education & Skills,Culture & Recreation,Supplies & Services,Other Expenses,Entrust Support Services Ltd,05/03/2021,5612,,
Education & Skills,Culture & Recreation,Supplies & Services,Other Expenses,Entrust Support Services Ltd,05/03/2021,6375,,
Education & Skills,Education & Skills,Capital Expenditure,Payments to Contractor,GRANVILLE CONSTRUCTION & MAINTENANCE LTD,10/03/2021,1263.91,,
Education & Skills,Education & Skills,Capital Expenditure,Legal Fees,W H SOLICITORS,23/03/2021,243,,
Education & Skills,Education & Skills,Capital Expenditure,Legal Fees,W H SOLICITORS,23/03/2021,364.8,,
Education & Skills,Education & Skills,Capital Expenditure,Legal Fees,W H SOLICITORS,23/03/2021,1089.3,,
Education & Skills,Education & Skills,Capital Expenditure,Legal Fees,W H SOLICITORS,23/03/2021,106.4,,
Education & Skills,Education & Skills,Capital Expenditure,Legal Fees,W H SOLICITORS,23/03/2021,1751.7,,
Education & Skills,Education & Skills,Capital Expenditure,Payments to Contractor,E N CATERING SUPPLIES LTD,11/03/2021,6023,,
Education & Skills,Education & Skills,Capital Expenditure,Payments to Contractor,SGS DMW ENVIRONMENTAL SYSTEMS LTD,10/03/2021,225,,
Education & Skills,Education & Skills,Capital Expenditure,Payments to Contractor,SGS DMW ENVIRONMENTAL SYSTEMS LTD,10/03/2021,225,,
Education & Skills,Education & Skills,Capital Expenditure,Payments to Contractor,SGS DMW ENVIRONMENTAL SYSTEMS LTD,10/03/2021,225,,
Education & Skills,Education & Skills,Capital Expenditure,Payments to Contractor,SGS DMW ENVIRONMENTAL SYSTEMS LTD,10/03/2021,225,,
Education & Skills,Education & Skills,Capital Expenditure,Payments to Contractor,SGS DMW ENVIRONMENTAL SYSTEMS LTD,19/03/2021,225,,
Education & Skills,Education & Skills,Capital Expenditure,Payments to Contractor,P (BUILDERS) LTD,10/03/2021,10091.61,,
Education & Skills,Education & Skills,Capital Expenditure,Payments to Contractor,R G STONES (BUILDINGS) LTD,24/03/2021,142500,,
Education & Skills,Education & Skills,Capital Expenditure,Payments to Contractor,P (BUILDERS) LTD,22/03/2021,52731,,
Education & Skills,Education & Skills,Capital Expenditure,Payments to Contractor,P (BUILDERS) LTD,10/03/2021,24109,,
Education & Skills,Education & Skills,Capital Expenditure,Payments to Contractor,R Control Systems Ltd,19/03/2021,9119,,
Education & Skills,Education & Skills,Capital Expenditure,Legal Fees,W H SOLICITORS,23/03/2021,192.5,,
Education & Skills,Education & Skills,Capital Expenditure,Legal Fees,W H SOLICITORS,23/03/2021,516.6,,
Education & Skills,Education & Skills,Capital Expenditure,Payments to Contractor,TAYLORS MECHANICAL H & P SERVICES LTD,15/03/2021,3007.2,,
Education & Skills,Education & Skills,Capital Expenditure,Payments to Contractor,TAYLORS MECHANICAL H & P SERVICES LTD,31/03/2021,3235,,
Education & Skills,Education & Skills,Capital Expenditure,Payments to Contractor,SGS DMW ENVIRONMENTAL SYSTEMS LTD,10/03/2021,469,,
Education & Skills,Education & Skills,Capital Expenditure,Payments to Contractor,M Property Ltd,24/03/2021,356532.92,,
Education & Skills,Education & Skills,Capital Expenditure,Payments to Contractor,PORTAKABIN LTD,04/03/2021,4077.65,,
Education & Skills,Education & Skills,Capital Expenditure,Payments to Contractor,A B ASSOCIATES,19/03/2021,575,,
Education & Skills,Education & Skills,Capital Expenditure,Payments to Contractor,GEO Turf Consulting Limited,10/03/2021,500,,
Education & Skills,Education & Skills,Capital Expenditure,Payments to Contractor,GEO Turf Consulting Limited,10/03/2021,750,,
Education & Skills,Education & Skills,Capital Expenditure,Payments to Contractor,Read Construction Holdings Ltd,24/03/2021,226198.13,,
Education & Skills,Education & Skills,Capital Expenditure,Payments to Contractor,R and Partners LLP,10/03/2021,4000,,
Education & Skills,Pupil Support Services,Third Party Payments,Misc. Education Payments to Non Schools,HRP Education,12/03/2021,490,,
Education & Skills,Pupil Support Services,Third Party Payments,Misc. Education Payments to Non Schools,HRP Education,12/03/2021,294,,
Education & Skills,Pupil Support Services,Third Party Payments,Misc. Education Payments to Non Schools,HRP Education,12/03/2021,196,,
Education & Skills,SEND (0-25),Transport-Related Expenditure,Parents Reimbursements,REDACTED PERSONAL INFORMATION,05/03/2021,117.58,,
Education & Skills,SEND (0-25),Transport-Related Expenditure,Transport Contractors,A-STAR TRANSPORT MIDLANDS LTD,16/03/2021,4762.5,,
Education & Skills,SEND (0-25),Transport-Related Expenditure,Taxi Costs,DIAMOND CARS (TELFORD) LTD,10/03/2021,672,,
Education & Skills,SEND (0-25),Transport-Related Expenditure,Taxi Costs,DIAMOND CARS (TELFORD) LTD,10/03/2021,420,,
Education & Skills,SEND (0-25),Transport-Related Expenditure,Taxi Costs,DIAMOND CARS (TELFORD) LTD,10/03/2021,504,,
Education & Skills,SEND (0-25),Transport-Related Expenditure,Taxi Costs,DIAMOND CARS (TELFORD) LTD,10/03/2021,1080,,
Education & Skills,SEND (0-25),Transport-Related Expenditure,Taxi Costs,DIAMOND CARS (TELFORD) LTD,10/03/2021,540,,
Education & Skills,SEND (0-25),Transport-Related Expenditure,Taxi Costs,DIAMOND CARS (TELFORD) LTD,10/03/2021,396,,
Education & Skills,SEND (0-25),Transport-Related Expenditure,Taxi Costs,DIAMOND CARS (TELFORD) LTD,25/03/2021,540,,
Education & Skills,SEND (0-25),Transport-Related Expenditure,Taxi Costs,Telford and Wrekin Community Enterprise LTD,09/03/2021,351,,
Education & Skills,SEND (0-25),Transport-Related Expenditure,Taxi Costs,Telford and Wrekin Community Enterprise LTD,19/03/2021,459,,
Education & Skills,SEND (0-25),Transport-Related Expenditure,Taxi Costs,Telford Cars ,10/03/2021,528,,
Education & Skills,SEND (0-25),Transport-Related Expenditure,Taxi Costs,Telford Cars ,10/03/2021,646,,
Education & Skills,SEND (0-25),Transport-Related Expenditure,Taxi Costs,Telford Cars ,25/03/2021,646,,
Education & Skills,SEND (0-25),Transport-Related Expenditure,Taxi Costs,Veezu Midlands Ltd,16/03/2021,252,,
Education & Skills,SEND (0-25),Transport-Related Expenditure,Taxi Costs,Veezu Midlands Ltd,16/03/2021,884,,
Education & Skills,SEND (0-25),Transport-Related Expenditure,Taxi Costs,Veezu Midlands Ltd,16/03/2021,375,,
Education & Skills,SEND (0-25),Transport-Related Expenditure,Taxi Costs,Veezu Midlands Ltd,16/03/2021,356.5,,
Education & Skills,SEND (0-25),Transport-Related Expenditure,Taxi Costs,Veezu Midlands Ltd,16/03/2021,4375,,
Education & Skills,SEND (0-25),Transport-Related Expenditure,Taxi Costs,Veezu Midlands Ltd,16/03/2021,792,,
Education & Skills,SEND (0-25),Transport-Related Expenditure,Taxi Costs,Veezu Midlands Ltd,19/03/2021,190,,
Education & Skills,SEND (0-25),Transport-Related Expenditure,Taxi Costs,Veezu Midlands Ltd,25/03/2021,180,,
Education & Skills,SEND (0-25),Transport-Related Expenditure,Taxi Costs,Veezu Midlands Ltd,25/03/2021,300,,
Education & Skills,SEND (0-25),Transport-Related Expenditure,Taxi Costs,Veezu Midlands Ltd,25/03/2021,780,,
Education & Skills,SEND (0-25),Transport-Related Expenditure,Taxi Costs,Veezu Midlands Ltd,25/03/2021,1800,,
Education & Skills,SEND (0-25),Transport-Related Expenditure,Taxi Costs,Veezu Midlands Ltd,25/03/2021,312,,
Education & Skills,SEND (0-25),Transport-Related Expenditure,Taxi Costs,Veezu Midlands Ltd,25/03/2021,840,,
Education & Skills,SEND (0-25),Transport-Related Expenditure,Taxi Costs,Veezu Midlands Ltd,25/03/2021,3450,,
Education & Skills,SEND (0-25),Transport-Related Expenditure,Taxi Costs,Veezu Midlands Ltd,25/03/2021,660,,
Education & Skills,SEND (0-25),Transport-Related Expenditure,Taxi Costs,Veezu Midlands Ltd,25/03/2021,276,,
Education & Skills,SEND (0-25),Transport-Related Expenditure,Taxi Costs,Veezu Midlands Ltd,25/03/2021,241.5,,
Education & Skills,SEND (0-25),Transport-Related Expenditure,Taxi Costs,Veezu Midlands Ltd,25/03/2021,234,,
Education & Skills,SEND (0-25),Supplies & Services,Other Services,NATIONAL PORTAGE ASSOCIATION,26/03/2021,120,,
Education & Skills,SEND (0-25),Third Party Payments,DSG - High Needs Block,ABC DAY NURSERY HOLLINSWOOD ,19/03/2021,104.11,,
Education & Skills,SEND (0-25),Third Party Payments,DSG - High Needs Block,ABC DAY NURSERY LTD ,19/03/2021,104.11,,
Education & Skills,SEND (0-25),Third Party Payments,DSG - High Needs Block,Apley Village Day Nursery,19/03/2021,104.11,,
Education & Skills,SEND (0-25),Third Party Payments,DSG - High Needs Block,Chec Mates Day Care,19/03/2021,104.11,,
Education & Skills,SEND (0-25),Third Party Payments,DSG - High Needs Block,CHIPMUNKS NURSERY,19/03/2021,208.22,,
Education & Skills,SEND (0-25),Third Party Payments,DSG - High Needs Block,Church Street Day Nursery,19/03/2021,104.11,,
Education & Skills,SEND (0-25),Third Party Payments,DSG - High Needs Block,HADLEY UNDER 5'S ,19/03/2021,465.75,,
Education & Skills,SEND (0-25),Third Party Payments,DSG - High Needs Block,HALESFIELD DAY NURSERY CENTRE ,19/03/2021,208.22,,
Education & Skills,SEND (0-25),Third Party Payments,DSG - High Needs Block,LONGFORD PLAYGROUP ,19/03/2021,104.11,,
Education & Skills,SEND (0-25),Third Party Payments,DSG - High Needs Block,SMILEY FACES DAY NURSERIES LTD,19/03/2021,208.22,,
Education & Skills,SEND (0-25),Third Party Payments,DSG - High Needs Block,TEAGUES BRIDGE PRE-SCHOOL ,19/03/2021,104.11,,
Education & Skills,SEND (0-25),Third Party Payments,DSG - High Needs Block,TORTOISE NURSERY SCHOOL ,19/03/2021,312.33,,
Education & Skills,SEND (0-25),Third Party Payments,DSG - High Needs Block,Twiggy's Day Nursery DONNINGTON,19/03/2021,104.11,,
Education & Skills,SEND (0-25),Third Party Payments,DSG - High Needs Block,TWIGGYS DAY NURSERY MADELEY,19/03/2021,208.22,,
Education & Skills,SEND (0-25),Third Party Payments,DSG - High Needs Block,WOODEN TOPS DAY NURSERY ,19/03/2021,104.11,,
Education & Skills,SEND (0-25),Third Party Payments,Health Funded Services,SHROPSHIRE COMMUNITY HEALTH NHS TRUST,26/03/2021,3373,,
Education & Skills,SEND (0-25),Third Party Payments,DSG - High Needs Block,Crudgington Primary School,10/03/2021,1218.99,,
Education & Skills,SEND (0-25),Third Party Payments,DSG - High Needs Block,Dawley C of E Primary Academy,10/03/2021,348.28,,
Education & Skills,SEND (0-25),Third Party Payments,DSG - High Needs Block,Grange Park Primary School - Community Academies Trust,10/03/2021,2786.27,,
Education & Skills,SEND (0-25),Third Party Payments,DSG - High Needs Block,Lawley Village Academy,10/03/2021,1044.85,,
Education & Skills,SEND (0-25),Third Party Payments,DSG - High Needs Block,PRIORSLEE ACADEMY,10/03/2021,1306.06,,
Education & Skills,SEND (0-25),Third Party Payments,DSG - High Needs Block,Redhill Primary Academy,10/03/2021,3308.7,,
Education & Skills,SEND (0-25),Third Party Payments,DSG - High Needs Block,Windmill Primary School Academy,10/03/2021,957.78,,
Education & Skills,SEND (0-25),Third Party Payments,DSG - High Needs Block,Wrekin View Primary School,10/03/2021,2612.24,,
Education & Skills,SEND (0-25),Third Party Payments,DSG - High Needs Block,ABRAHAM DARBY ACADEMY ,10/03/2021,6094.96,,
Education & Skills,SEND (0-25),Third Party Payments,DSG - High Needs Block,CAT - Telford Priory School,10/03/2021,4353.55,,
Education & Skills,SEND (0-25),Third Party Payments,DSG - High Needs Block,Charlton Academy,10/03/2021,3423.16,,
Education & Skills,SEND (0-25),Third Party Payments,DSG - High Needs Block,Ercall Wood Academy,10/03/2021,10100.22,,
Education & Skills,SEND (0-25),Third Party Payments,DSG - High Needs Block,Hadley Learning Community Academy,10/03/2021,14627.92,,
Education & Skills,SEND (0-25),Third Party Payments,DSG - High Needs Block,Hadley Learning Community Academy,10/03/2021,3221.62,,
Education & Skills,SEND (0-25),Third Party Payments,DSG - High Needs Block,MADELEY ACADEMY TRUST LTD,10/03/2021,4614.76,,
Education & Skills,SEND (0-25),Third Party Payments,DSG - High Needs Block,Telford Park School,10/03/2021,4788.9,,
Education & Skills,SEND (0-25),Third Party Payments,DSG - High Needs Block,The Telford Langley School ,10/03/2021,5833.75,,
Education & Skills,SEND (0-25),Third Party Payments,DSG - High Needs Block,THOMAS TELFORD SCHOOL ,10/03/2021,696.57,,
Education & Skills,SEND (0-25),Third Party Payments,DSG - High Needs Block,Bredon School Ltd,25/03/2021,11540,,
Education & Skills,SEND (0-25),Third Party Payments,DSG - High Needs Block,HORIZON CARE & EDUCATION GROUP LTD,19/03/2021,15600,,
Education & Skills,SEND (0-25),Third Party Payments,DSG - High Needs Block,Keys PCE Limited,09/03/2021,2700,,
Education & Skills,SEND (0-25),Third Party Payments,DSG - High Needs Block,Peak Activity Services Ltd,16/03/2021,18290,,
Education & Skills,SEND (0-25),Third Party Payments,DSG - High Needs Block,Peak Activity Services Ltd,16/03/2021,18290,,
Education & Skills,SEND (0-25),Third Party Payments,DSG - High Needs Block,Peak Activity Services Ltd,16/03/2021,18290,,
Education & Skills,SEND (0-25),Third Party Payments,DSG - High Needs Block,Peak Activity Services Ltd,16/03/2021,18290,,
Education & Skills,SEND (0-25),Third Party Payments,DSG - High Needs Block,HEREFORDSHIRE COUNCIL,25/03/2021,5700,,
Education & Skills,SEND (0-25),Third Party Payments,DSG - High Needs Block,NOAH'S ARK NURS & AFTER SCH CLUB,16/03/2021,572.52,,
Education & Skills,SEND (0-25),Employees,Agency Supply Costs,Guide Dogs for the Blind,10/03/2021,812,,
Education & Skills,SEND (0-25),Supplies & Services,Aids & Appliances,DOLPHIN COMPUTER ACCESS LTD,18/03/2021,1756,,
Education & Skills,SEND (0-25),Supplies & Services,Other Services,GL Assessments,19/03/2021,160,,
Education & Skills,SEND (0-25),Supplies & Services,Other Services,GL Education Group,10/03/2021,468.89,,
Education & Skills,SEND (0-25),Supplies & Services,Equipment - Purchase,PHONAK UK LTD,25/03/2021,1094,,
Education & Skills,SEND (0-25),Supplies & Services,Equipment - Purchase,PURETONE LIMITED,22/03/2021,210.2,,
Education & Skills,SEND (0-25),Supplies & Services,Aids & Appliances,Sight and Sound Technology Ltd,01/03/2021,270,,
Education & Skills,SEND (0-25),Supplies & Services,Aids & Appliances,Sight and Sound Technology Ltd,01/03/2021,270,,
Education & Skills,SEND (0-25),Supplies & Services,Aids & Appliances,Sight and Sound Technology Ltd,01/03/2021,270,,
Education & Skills,SEND (0-25),Supplies & Services,Aids & Appliances,Sight and Sound Technology Ltd,01/03/2021,270,,
Education & Skills,SEND (0-25),Supplies & Services,Equipment - Purchase,HRP Education,25/03/2021,588,,
Education & Skills,SEND (0-25),Third Party Payments,DSG - High Needs Block,HRP Education,09/03/2021,588,,
Education & Skills,SEND (0-25),Third Party Payments,DSG - High Needs Block,HRP Education,09/03/2021,588,,
Education & Skills,SEND (0-25),Third Party Payments,DSG - High Needs Block,HRP Education,05/03/2021,441,,
Education & Skills,SEND (0-25),Third Party Payments,DSG - High Needs Block,HRP Education,05/03/2021,588,,
Education & Skills,SEND (0-25),Third Party Payments,DSG - High Needs Block,HRP Education,05/03/2021,588,,
Education & Skills,SEND (0-25),Third Party Payments,DSG - High Needs Block,HRP Education,19/03/2021,147,,
Education & Skills,SEND (0-25),Third Party Payments,DSG - High Needs Block,HRP Education,19/03/2021,588,,
Education & Skills,SEND (0-25),Third Party Payments,DSG - High Needs Block,HRP Education,19/03/2021,588,,
Education & Skills,SEND (0-25),Third Party Payments,DSG - High Needs Block,HRP Education,25/03/2021,490,,
Education & Skills,SEND (0-25),Third Party Payments,DSG - High Needs Block,HRP Education,25/03/2021,490,,
Education & Skills,SEND (0-25),Third Party Payments,DSG - High Needs Block,HRP Education,31/03/2021,588,,
Education & Skills,SEND (0-25),Third Party Payments,DSG - High Needs Block,The National Teaching & Advisory Service,05/03/2021,260,,
Education & Skills,SEND (0-25),Supplies & Services,Other Materials,Activate for Kids Ltd,22/03/2021,906.94,,
Education & Skills,SEND (0-25),Supplies & Services,Equipment - Purchase,Scribble Inc. Limited,05/03/2021,1500,,
Education & Skills,SEND (0-25),Third Party Payments,DSG - High Needs Block,CAT - Telford Priory School,10/03/2021,166.75,,
Education & Skills,SEND (0-25),Third Party Payments,DSG - High Needs Block,CROSSBAR COACHING,19/03/2021,6125,,
Education & Skills,SEND (0-25),Third Party Payments,DSG - High Needs Block,Peak Activity Services Ltd,16/03/2021,18290,,
Education & Skills,SEND (0-25),Third Party Payments,DSG - High Needs Block,Peak Activity Services Ltd,16/03/2021,18290,,
Education & Skills,SEND (0-25),Third Party Payments,DSG - High Needs Block,Peak Activity Services Ltd,16/03/2021,18290,,
Education & Skills,SEND (0-25),Third Party Payments,DSG - High Needs Block,Peak Activity Services Ltd,19/03/2021,21830,,
Education & Skills,SEND (0-25),Third Party Payments,DSG - High Needs Block,ROYAL MENCAP SOCIETY,29/03/2021,15500,,
Education & Skills,SEND (0-25),Third Party Payments,DSG - High Needs Block,Tettenhall College,05/03/2021,9245.95,,
Education & Skills,SEND (0-25),Third Party Payments,DSG - High Needs Block,SHREWSBURY COLLEGES GROUP,10/03/2021,43216.44,,
Education & Skills,SEND (0-25),Third Party Payments,DSG - High Needs Block,TELFORD COLLEGE,30/03/2021,220461.25,,
Finance & Human Resources,Employment Services & Purchase Ledger,Supplies & Services,Computer Software (Maint),Zellis UK Ltd,10/03/2021,3128.55,,
Finance & Human Resources,Employment Services & Purchase Ledger,Supplies & Services,Other Expenses,B M Care Ltd,25/03/2021,-472.81,,
Finance & Human Resources,Employment Services & Purchase Ledger,Supplies & Services,Other Expenses,Churches Fire Security Ltd,30/03/2021,-435.9,,
Finance & Human Resources,Employment Services & Purchase Ledger,Supplies & Services,Other Expenses,Churches Fire Security Ltd,30/03/2021,-180.25,,
Finance & Human Resources,Employment Services & Purchase Ledger,Supplies & Services,Other Expenses,Churches Fire Security Ltd,30/03/2021,-1195,,
Finance & Human Resources,Employment Services & Purchase Ledger,Supplies & Services,Other Expenses,Churches Fire Security Ltd,29/03/2021,-120,,
Finance & Human Resources,Employment Services & Purchase Ledger,Supplies & Services,Fees,MERIDIAN COST BENEFIT LTD,09/03/2021,4594.21,,
Finance & Human Resources,Employment Services & Purchase Ledger,Supplies & Services,Fees,MERIDIAN COST BENEFIT LTD,09/03/2021,459.85,,
Finance & Human Resources,Employment Services & Purchase Ledger,Supplies & Services,Other Expenses,Safehands Recruitment,29/03/2021,-609.58,,
Finance & Human Resources,Employment Services & Purchase Ledger,Supplies & Services,Other Expenses,Safehands Recruitment,29/03/2021,-389.34,,
Finance & Human Resources,Finance,Supplies & Services,Other Services,ALLPAY.NET LIMITED,08/03/2021,888.39,,
Finance & Human Resources,Finance,Supplies & Services,Other Services,ALLPAY.NET LIMITED,08/03/2021,126.05,,
Finance & Human Resources,Finance,Capital Financing Costs,Principal,SHROPSHIRE COUNCIL ,12/03/2021,1649,,
Finance & Human Resources,Finance,Capital Financing Costs,Principal,SHROPSHIRE COUNCIL ,02/03/2021,6557,,
Finance & Human Resources,Finance,Capital Financing Costs,Principal,SHROPSHIRE COUNCIL ,16/03/2021,1224286,,
Finance & Human Resources,Finance,Supplies & Services,External Audit Fees,CABINET OFFICE,18/03/2021,3900,,
Finance & Human Resources,Finance Manager (Corporate & Capital),Employees,Professional Subs,Chartered Institute of Management Accountants (CIMA),01/03/2021,-297,,
Finance & Human Resources,Finance Manager (Corporate & Capital),Employees,Staff Training,CIPFA BUSINESS LTD,19/03/2021,345,,
Finance & Human Resources,Finance Manager (Corporate & Capital),Supplies & Services,Furniture - Purchase,CHRISBEON OFFICE SUPPLIES,16/03/2021,294,,
Finance & Human Resources,Finance Manager (Corporate & Capital),Supplies & Services,Furniture - Purchase,CHRISBEON OFFICE SUPPLIES,16/03/2021,228.9,,
Finance & Human Resources,Finance Manager (Corporate & Capital),Supplies & Services,Subscriptions,CIPFA BUSINESS LTD,24/03/2021,4995,,
Finance & Human Resources,Finance Manager (Corporate & Capital),Supplies & Services,Subscriptions,CIPFA BUSINESS LTD,24/03/2021,4570,,
Finance & Human Resources,Finance Manager (Corporate & Capital),Supplies & Services,Publications,CIPFA BUSINESS LTD,29/03/2021,715,,
Finance & Human Resources,Finance Manager (Corporate & Capital),Supplies & Services,Subscriptions,LG Futures,24/03/2021,9585,,
Finance & Human Resources,Human Resources,Employees,Other Employee Costs,Health Assured Ltd,17/03/2021,5760.72,,
Finance & Human Resources,Human Resources,Supplies & Services,Doctors Fees,Health Assured Ltd,17/03/2021,5760.72,,
Finance & Human Resources,Human Resources,Employees,Criminal Records Bureau Checks,Capita Recruitment Vetting Service ,10/03/2021,340.4,,
Finance & Human Resources,Human Resources,Employees,Criminal Records Bureau Checks,DISCLOSURE & BARRING SERVICE,03/03/2021,4160,,
Finance & Human Resources,Human Resources,Employees,Criminal Records Bureau Checks,DISCLOSURE & BARRING SERVICE,29/03/2021,5829,,
Finance & Human Resources,Human Resources,Supplies & Services,Publications,FL MEMO LTD,02/03/2021,155.55,,
Finance & Human Resources,Human Resources,Supplies & Services,Doctors Fees,TELDOC Partnership,31/03/2021,104,,
Finance & Human Resources,Human Resources,Supplies & Services,Subscriptions,West Midlands Employers,25/03/2021,1305.12,,
Finance & Human Resources,Human Resources,Supplies & Services,Doctors Fees,SB Sports Injury & Physiotherapy Clinic,31/03/2021,114,,
Finance & Human Resources,Revenues,Supplies & Services,SUPPLY PARTS,DOCU-FINISH SOLUTIONS LTD,08/03/2021,1645.65,,
Finance & Human Resources,Revenues,Supplies & Services,SERVICE/REPAIR,DOCU-FINISH SOLUTIONS LTD,08/03/2021,1195,,
Finance & Human Resources,Revenues,Supplies & Services,Printing - Other,IMPACT MAIL & PRINT LTD,15/03/2021,275,,
Finance & Human Resources,Revenues,Supplies & Services,Printing - Other,LEXON GB LTD,15/03/2021,402.07,,
Finance & Human Resources,Revenues,Supplies & Services,Stationery,PREMIER PAPER GROUP LTD,01/03/2021,102.5,,
Finance & Human Resources,Revenues,Supplies & Services,Stationery,PREMIER PAPER GROUP LTD,16/03/2021,102.5,,
Finance & Human Resources,Revenues,Supplies & Services,Printing - Other,T PRINT & SIGNS,10/03/2021,161,,
Finance & Human Resources,Revenues,Supplies & Services,Postages,FREELANCE BUSINESS ASSOCIATES,12/03/2021,300,,
Finance & Human Resources,Revenues,Supplies & Services,Postages,ROYAL MAIL GROUP PLC ,01/03/2021,145.6,,
Finance & Human Resources,Revenues,Supplies & Services,Postages,Francotyp-Postalia Ltd,16/03/2021,421.95,,
Finance & Human Resources,Revenues,Supplies & Services,Franking Machine Service,FRANCOTYP-POSTALIA LTD,22/03/2021,1000,,
Finance & Human Resources,Revenues,Supplies & Services,Postages,G FORCE EXPRESS PARCELS LTD,18/03/2021,-184,,
Finance & Human Resources,Revenues,Supplies & Services,Postages,G FORCE EXPRESS PARCELS LTD,16/03/2021,141.17,,
Finance & Human Resources,Revenues,Supplies & Services,Postages,ROYAL MAIL GROUP PLC ,18/03/2021,11881.44,,
Finance & Human Resources,Revenues,Supplies & Services,Postages,ROYAL MAIL GROUP PLC ,09/03/2021,3179.91,,
Finance & Human Resources,Revenues,Supplies & Services,Postages,ROYAL MAIL GROUP PLC ,26/03/2021,2249.62,,
Finance & Human Resources,Revenues,Supplies & Services,Postages,ROYAL MAIL GROUP PLC ,26/03/2021,1289.95,,
Finance & Human Resources,Revenues,Supplies & Services,Postages,ROYAL MAIL GROUP PLC ,26/03/2021,519,,
Finance & Human Resources,Revenues,Supplies & Services,Postages,ROYAL MAIL GROUP PLC ,16/03/2021,1911.96,,
Finance & Human Resources,Revenues,Supplies & Services,COVID19 GRANT PAYMENTS,COVID19 GRANT PAYMENTS,26/03/2021,-25000,,
Finance & Human Resources,Revenues,Supplies & Services,COVID19 GRANT PAYMENTS,COVID19 GRANT PAYMENTS,03/03/2021,1067,,
Finance & Human Resources,Revenues,Supplies & Services,COVID19 GRANT PAYMENTS,COVID19 GRANT PAYMENTS,03/03/2021,1067,,
Finance & Human Resources,Revenues,Supplies & Services,COVID19 GRANT PAYMENTS,COVID19 GRANT PAYMENTS,03/03/2021,1067,,
Finance & Human Resources,Revenues,Supplies & Services,COVID19 GRANT PAYMENTS,COVID19 GRANT PAYMENTS,03/03/2021,1067,,
Finance & Human Resources,Revenues,Supplies & Services,COVID19 GRANT PAYMENTS,COVID19 GRANT PAYMENTS,03/03/2021,1067,,
Finance & Human Resources,Revenues,Supplies & Services,COVID19 GRANT PAYMENTS,COVID19 GRANT PAYMENTS,03/03/2021,1067,,
Finance & Human Resources,Revenues,Supplies & Services,COVID19 GRANT PAYMENTS,COVID19 GRANT PAYMENTS,03/03/2021,1067,,
Finance & Human Resources,Revenues,Supplies & Services,COVID19 GRANT PAYMENTS,COVID19 GRANT PAYMENTS,03/03/2021,1067,,
Finance & Human Resources,Revenues,Supplies & Services,COVID19 GRANT PAYMENTS,COVID19 GRANT PAYMENTS,03/03/2021,1067,,
Finance & Human Resources,Revenues,Supplies & Services,COVID19 GRANT PAYMENTS,COVID19 GRANT PAYMENTS,03/03/2021,1067,,
Finance & Human Resources,Revenues,Supplies & Services,COVID19 GRANT PAYMENTS,COVID19 GRANT PAYMENTS,03/03/2021,1067,,
Finance & Human Resources,Revenues,Supplies & Services,COVID19 GRANT PAYMENTS,COVID19 GRANT PAYMENTS,03/03/2021,1067,,
Finance & Human Resources,Revenues,Supplies & Services,COVID19 GRANT PAYMENTS,COVID19 GRANT PAYMENTS,03/03/2021,1067,,
Finance & Human Resources,Revenues,Supplies & Services,COVID19 GRANT PAYMENTS,COVID19 GRANT PAYMENTS,03/03/2021,1067,,
Finance & Human Resources,Revenues,Supplies & Services,COVID19 GRANT PAYMENTS,COVID19 GRANT PAYMENTS,03/03/2021,1067,,
Finance & Human Resources,Revenues,Supplies & Services,COVID19 GRANT PAYMENTS,COVID19 GRANT PAYMENTS,03/03/2021,4000,,
Finance & Human Resources,Revenues,Supplies & Services,COVID19 GRANT PAYMENTS,COVID19 GRANT PAYMENTS,03/03/2021,6000,,
Finance & Human Resources,Revenues,Supplies & Services,COVID19 GRANT PAYMENTS,COVID19 GRANT PAYMENTS,03/03/2021,1600,,
Finance & Human Resources,Revenues,Supplies & Services,COVID19 GRANT PAYMENTS,COVID19 GRANT PAYMENTS,03/03/2021,1067,,
Finance & Human Resources,Revenues,Supplies & Services,COVID19 GRANT PAYMENTS,COVID19 GRANT PAYMENTS,03/03/2021,1067,,
Finance & Human Resources,Revenues,Supplies & Services,COVID19 GRANT PAYMENTS,COVID19 GRANT PAYMENTS,18/03/2021,1067,,
Finance & Human Resources,Revenues,Supplies & Services,COVID19 GRANT PAYMENTS,COVID19 GRANT PAYMENTS,18/03/2021,1067,,
Finance & Human Resources,Revenues,Supplies & Services,COVID19 GRANT PAYMENTS,COVID19 GRANT PAYMENTS,18/03/2021,1067,,
